Body Name,Transaction Number,Account Code Description,Expenses Type,Service Code,Service Area Categorisation,Supplier Name,Date,Amount,
Bath & North East Somerset Council,10743954,LK1,Fees,P06,Sustainable Development,KEYNSHAM MUSIC FESTIVAL ASSOCIATION LTD,02/07/2014,1750,
Bath & North East Somerset Council,10744056,DB1,Agency Staff,P01,Transport,REDACTED,02/07/2014,1000,
Bath & North East Somerset Council,10742768,KE3,Transport & Travel,P07,Community Resources,REDACTED,02/07/2014,1010,
Bath & North East Somerset Council,10741345,LV1,Grants to Voluntary Bodies,P06,Sustainable Development,ROTARY CLUB OF BATH TRUST FUND,02/07/2014,2400,
Bath & North East Somerset Council,10743934,HP1,Rent Payable,P06,Sustainable Development,THE NATIONAL TRUST,02/07/2014,3750,
Bath & North East Somerset Council,80356284,PG1,Rent Allowances,P07,Community Resources,BRISTOL CITY COUNCIL,02/07/2014,4492.78,
Bath & North East Somerset Council,80356219,YF2,Fees & Charges,P03,Wellbeing,6 THE AVENUE -KEYNSHAM MENCAP,02/07/2014,77.85,
Bath & North East Somerset Council,80356219,YF2,Fees & Charges,P03,Wellbeing,6 THE AVENUE -KEYNSHAM MENCAP,02/07/2014,77.85,
Bath & North East Somerset Council,80356219,YF2,Fees & Charges,P03,Wellbeing,6 THE AVENUE -KEYNSHAM MENCAP,02/07/2014,77.85,
Bath & North East Somerset Council,80356219,YF2,Fees & Charges,P03,Wellbeing,6 THE AVENUE -KEYNSHAM MENCAP,02/07/2014,77.85,
Bath & North East Somerset Council,80356219,YF2,Fees & Charges,P03,Wellbeing,6 THE AVENUE -KEYNSHAM MENCAP,02/07/2014,77.85,
Bath & North East Somerset Council,80356219,YF2,Fees & Charges,P03,Wellbeing,6 THE AVENUE -KEYNSHAM MENCAP,02/07/2014,77.85,
Bath & North East Somerset Council,80356219,YF2,Fees & Charges,P03,Wellbeing,6 THE AVENUE -KEYNSHAM MENCAP,02/07/2014,77.85,
Bath & North East Somerset Council,80356219,YF2,Fees & Charges,P03,Wellbeing,6 THE AVENUE -KEYNSHAM MENCAP,02/07/2014,77.85,
Bath & North East Somerset Council,80356219,YF2,Fees & Charges,P03,Wellbeing,6 THE AVENUE -KEYNSHAM MENCAP,02/07/2014,77.85,
Bath & North East Somerset Council,80356219,YF2,Fees & Charges,P03,Wellbeing,6 THE AVENUE -KEYNSHAM MENCAP,02/07/2014,77.85,
Bath & North East Somerset Council,80356219,YF2,Fees & Charges,P03,Wellbeing,6 THE AVENUE -KEYNSHAM MENCAP,02/07/2014,77.85,
Bath & North East Somerset Council,80356219,YF2,Fees & Charges,P03,Wellbeing,6 THE AVENUE -KEYNSHAM MENCAP,02/07/2014,77.85,
Bath & North East Somerset Council,80356219,YF2,Fees & Charges,P03,Wellbeing,6 THE AVENUE -KEYNSHAM MENCAP,02/07/2014,77.85,
Bath & North East Somerset Council,80356219,YF2,Fees & Charges,P03,Wellbeing,6 THE AVENUE -KEYNSHAM MENCAP,02/07/2014,77.85,
Bath & North East Somerset Council,80356219,YF2,Fees & Charges,P03,Wellbeing,6 THE AVENUE -KEYNSHAM MENCAP,02/07/2014,77.85,
Bath & North East Somerset Council,80356219,YF2,Fees & Charges,P03,Wellbeing,6 THE AVENUE -KEYNSHAM MENCAP,02/07/2014,77.85,
Bath & North East Somerset Council,80356219,YF2,Fees & Charges,P03,Wellbeing,6 THE AVENUE -KEYNSHAM MENCAP,02/07/2014,77.85,
Bath & North East Somerset Council,80356219,YF2,Fees & Charges,P03,Wellbeing,6 THE AVENUE -KEYNSHAM MENCAP,02/07/2014,77.85,
Bath & North East Somerset Council,80356219,YF2,Fees & Charges,P03,Wellbeing,6 THE AVENUE -KEYNSHAM MENCAP,02/07/2014,77.85,
Bath & North East Somerset Council,80356219,YF2,Fees & Charges,P03,Wellbeing,6 THE AVENUE -KEYNSHAM MENCAP,02/07/2014,77.85,
Bath & North East Somerset Council,80356219,YF2,Fees & Charges,P03,Wellbeing,6 THE AVENUE -KEYNSHAM MENCAP,02/07/2014,77.85,
Bath & North East Somerset Council,80356219,YF2,Fees & Charges,P03,Wellbeing,6 THE AVENUE -KEYNSHAM MENCAP,02/07/2014,77.85,
Bath & North East Somerset Council,80356219,LM3,Residential Care,P03,Wellbeing,6 THE AVENUE -KEYNSHAM MENCAP,02/07/2014,577.87,
Bath & North East Somerset Council,80356219,LM3,Residential Care,P03,Wellbeing,6 THE AVENUE -KEYNSHAM MENCAP,02/07/2014,577.87,
Bath & North East Somerset Council,80356219,LM3,Residential Care,P03,Wellbeing,6 THE AVENUE -KEYNSHAM MENCAP,02/07/2014,577.87,
Bath & North East Somerset Council,80356219,LM3,Residential Care,P03,Wellbeing,6 THE AVENUE -KEYNSHAM MENCAP,02/07/2014,577.87,
Bath & North East Somerset Council,80356219,LM3,Residential Care,P03,Wellbeing,6 THE AVENUE -KEYNSHAM MENCAP,02/07/2014,577.87,
Bath & North East Somerset Council,80356219,LM3,Residential Care,P03,Wellbeing,6 THE AVENUE -KEYNSHAM MENCAP,02/07/2014,577.87,
Bath & North East Somerset Council,80356219,LM3,Residential Care,P03,Wellbeing,6 THE AVENUE -KEYNSHAM MENCAP,02/07/2014,577.87,
Bath & North East Somerset Council,80356219,LM3,Residential Care,P03,Wellbeing,6 THE AVENUE -KEYNSHAM MENCAP,02/07/2014,577.87,
Bath & North East Somerset Council,80356219,LM3,Residential Care,P03,Wellbeing,6 THE AVENUE -KEYNSHAM MENCAP,02/07/2014,577.87,
Bath & North East Somerset Council,80356219,LM3,Residential Care,P03,Wellbeing,6 THE AVENUE -KEYNSHAM MENCAP,02/07/2014,577.87,
Bath & North East Somerset Council,80356219,LM3,Residential Care,P03,Wellbeing,6 THE AVENUE -KEYNSHAM MENCAP,02/07/2014,971.93,
Bath & North East Somerset Council,80356219,LM3,Residential Care,P03,Wellbeing,6 THE AVENUE -KEYNSHAM MENCAP,02/07/2014,971.93,
Bath & North East Somerset Council,80356219,LM3,Residential Care,P03,Wellbeing,6 THE AVENUE -KEYNSHAM MENCAP,02/07/2014,1196.17,
Bath & North East Somerset Council,80356219,LM3,Residential Care,P03,Wellbeing,6 THE AVENUE -KEYNSHAM MENCAP,02/07/2014,1196.17,
Bath & North East Somerset Council,80356152,LM6,Nursing Care,P03,Wellbeing,ADIEMUS CARE LTD - T/A WICKWAR,02/07/2014,564,
Bath & North East Somerset Council,80356152,LM6,Nursing Care,P03,Wellbeing,ADIEMUS CARE LTD - T/A WICKWAR,02/07/2014,564,
Bath & North East Somerset Council,80356234,LM3,Residential Care,P03,Wellbeing,ANCHOR TRUST,02/07/2014,443,
Bath & North East Somerset Council,80356234,LM3,Residential Care,P03,Wellbeing,ANCHOR TRUST,02/07/2014,443,
Bath & North East Somerset Council,80356234,LM3,Residential Care,P03,Wellbeing,ANCHOR TRUST,02/07/2014,443,
Bath & North East Somerset Council,80356234,LM3,Residential Care,P03,Wellbeing,ANCHOR TRUST,02/07/2014,443,
Bath & North East Somerset Council,80356234,LM3,Residential Care,P03,Wellbeing,ANCHOR TRUST,02/07/2014,443,
Bath & North East Somerset Council,80356234,LM3,Residential Care,P03,Wellbeing,ANCHOR TRUST,02/07/2014,443,
Bath & North East Somerset Council,80356234,LM3,Residential Care,P03,Wellbeing,ANCHOR TRUST,02/07/2014,515.45,
Bath & North East Somerset Council,80356234,LM3,Residential Care,P03,Wellbeing,ANCHOR TRUST,02/07/2014,515.45,
Bath & North East Somerset Council,80356234,LM3,Residential Care,P03,Wellbeing,ANCHOR TRUST,02/07/2014,550,
Bath & North East Somerset Council,80356234,LM3,Residential Care,P03,Wellbeing,ANCHOR TRUST,02/07/2014,550,
Bath & North East Somerset Council,80356234,LM3,Residential Care,P03,Wellbeing,ANCHOR TRUST,02/07/2014,600,
Bath & North East Somerset Council,80356234,LM3,Residential Care,P03,Wellbeing,ANCHOR TRUST,02/07/2014,600,
Bath & North East Somerset Council,80356234,LM3,Residential Care,P03,Wellbeing,ANCHOR TRUST,02/07/2014,680,
Bath & North East Somerset Council,80356234,LM3,Residential Care,P03,Wellbeing,ANCHOR TRUST,02/07/2014,680,
Bath & North East Somerset Council,80356234,LM3,Residential Care,P03,Wellbeing,ANCHOR TRUST,02/07/2014,680,
Bath & North East Somerset Council,80356234,LM3,Residential Care,P03,Wellbeing,ANCHOR TRUST,02/07/2014,680,
Bath & North East Somerset Council,80356194,LM3,Residential Care,P03,Wellbeing,ANGELS KINGSLEIGH LTD,02/07/2014,443,
Bath & North East Somerset Council,80356194,LM3,Residential Care,P03,Wellbeing,ANGELS KINGSLEIGH LTD,02/07/2014,443,
Bath & North East Somerset Council,80356097,LM3,Residential Care,P03,Wellbeing,ARTI SERVICES LTD T/A THE MANOR FARM HOUSE,02/07/2014,443,
Bath & North East Somerset Council,80356097,LM3,Residential Care,P03,Wellbeing,ARTI SERVICES LTD T/A THE MANOR FARM HOUSE,02/07/2014,443,
Bath & North East Somerset Council,80356097,LM3,Residential Care,P03,Wellbeing,ARTI SERVICES LTD T/A THE MANOR FARM HOUSE,02/07/2014,443,
Bath & North East Somerset Council,80356097,LM3,Residential Care,P03,Wellbeing,ARTI SERVICES LTD T/A THE MANOR FARM HOUSE,02/07/2014,443,
Bath & North East Somerset Council,80356097,LM3,Residential Care,P03,Wellbeing,ARTI SERVICES LTD T/A THE MANOR FARM HOUSE,02/07/2014,443,
Bath & North East Somerset Council,80356097,LM3,Residential Care,P03,Wellbeing,ARTI SERVICES LTD T/A THE MANOR FARM HOUSE,02/07/2014,443,
Bath & North East Somerset Council,80356097,LM3,Residential Care,P03,Wellbeing,ARTI SERVICES LTD T/A THE MANOR FARM HOUSE,02/07/2014,443,
Bath & North East Somerset Council,80356097,LM3,Residential Care,P03,Wellbeing,ARTI SERVICES LTD T/A THE MANOR FARM HOUSE,02/07/2014,443,
Bath & North East Somerset Council,80356097,LM3,Residential Care,P03,Wellbeing,ARTI SERVICES LTD T/A THE MANOR FARM HOUSE,02/07/2014,443,
Bath & North East Somerset Council,80356097,LM3,Residential Care,P03,Wellbeing,ARTI SERVICES LTD T/A THE MANOR FARM HOUSE,02/07/2014,443,
Bath & North East Somerset Council,80356097,LM3,Residential Care,P03,Wellbeing,ARTI SERVICES LTD T/A THE MANOR FARM HOUSE,02/07/2014,486,
Bath & North East Somerset Council,80356097,LM3,Residential Care,P03,Wellbeing,ARTI SERVICES LTD T/A THE MANOR FARM HOUSE,02/07/2014,486,
Bath & North East Somerset Council,80356097,LM3,Residential Care,P03,Wellbeing,ARTI SERVICES LTD T/A THE MANOR FARM HOUSE,02/07/2014,486,
Bath & North East Somerset Council,80356097,LM3,Residential Care,P03,Wellbeing,ARTI SERVICES LTD T/A THE MANOR FARM HOUSE,02/07/2014,486,
Bath & North East Somerset Council,80356097,LM3,Residential Care,P03,Wellbeing,ARTI SERVICES LTD T/A THE MANOR FARM HOUSE,02/07/2014,486,
Bath & North East Somerset Council,80356097,LM3,Residential Care,P03,Wellbeing,ARTI SERVICES LTD T/A THE MANOR FARM HOUSE,02/07/2014,486,
Bath & North East Somerset Council,80356097,LM3,Residential Care,P03,Wellbeing,ARTI SERVICES LTD T/A THE MANOR FARM HOUSE,02/07/2014,486,
Bath & North East Somerset Council,80356097,LM3,Residential Care,P03,Wellbeing,ARTI SERVICES LTD T/A THE MANOR FARM HOUSE,02/07/2014,486,
Bath & North East Somerset Council,80356097,LM3,Residential Care,P03,Wellbeing,ARTI SERVICES LTD T/A THE MANOR FARM HOUSE,02/07/2014,486,
Bath & North East Somerset Council,80356097,LM3,Residential Care,P03,Wellbeing,ARTI SERVICES LTD T/A THE MANOR FARM HOUSE,02/07/2014,486,
Bath & North East Somerset Council,80356097,LM3,Residential Care,P03,Wellbeing,ARTI SERVICES LTD T/A THE MANOR FARM HOUSE,02/07/2014,486,
Bath & North East Somerset Council,80356097,LM3,Residential Care,P03,Wellbeing,ARTI SERVICES LTD T/A THE MANOR FARM HOUSE,02/07/2014,486,
Bath & North East Somerset Council,80356097,LM3,Residential Care,P03,Wellbeing,ARTI SERVICES LTD T/A THE MANOR FARM HOUSE,02/07/2014,495,
Bath & North East Somerset Council,80356097,LM3,Residential Care,P03,Wellbeing,ARTI SERVICES LTD T/A THE MANOR FARM HOUSE,02/07/2014,495,
Bath & North East Somerset Council,80356235,YF2,Fees & Charges,P03,Wellbeing,ASPECTS & MILESTONES TRUST,02/07/2014,77.85,
Bath & North East Somerset Council,80356235,YF2,Fees & Charges,P03,Wellbeing,ASPECTS & MILESTONES TRUST,02/07/2014,77.85,
Bath & North East Somerset Council,80356235,YF2,Fees & Charges,P03,Wellbeing,ASPECTS & MILESTONES TRUST,02/07/2014,77.85,
Bath & North East Somerset Council,80356235,YF2,Fees & Charges,P03,Wellbeing,ASPECTS & MILESTONES TRUST,02/07/2014,77.85,
Bath & North East Somerset Council,80356235,YF2,Fees & Charges,P03,Wellbeing,ASPECTS & MILESTONES TRUST,02/07/2014,77.85,
Bath & North East Somerset Council,80356235,YF2,Fees & Charges,P03,Wellbeing,ASPECTS & MILESTONES TRUST,02/07/2014,77.85,
Bath & North East Somerset Council,80356235,YF2,Fees & Charges,P03,Wellbeing,ASPECTS & MILESTONES TRUST,02/07/2014,77.85,
Bath & North East Somerset Council,80356235,YF2,Fees & Charges,P03,Wellbeing,ASPECTS & MILESTONES TRUST,02/07/2014,77.85,
Bath & North East Somerset Council,80356235,YF2,Fees & Charges,P03,Wellbeing,ASPECTS & MILESTONES TRUST,02/07/2014,77.85,
Bath & North East Somerset Council,80356235,YF2,Fees & Charges,P03,Wellbeing,ASPECTS & MILESTONES TRUST,02/07/2014,77.85,
Bath & North East Somerset Council,80356235,YF2,Fees & Charges,P03,Wellbeing,ASPECTS & MILESTONES TRUST,02/07/2014,77.85,
Bath & North East Somerset Council,80356235,LM3,Residential Care,P03,Wellbeing,ASPECTS & MILESTONES TRUST,02/07/2014,843.17,
Bath & North East Somerset Council,80356235,LM3,Residential Care,P03,Wellbeing,ASPECTS & MILESTONES TRUST,02/07/2014,843.17,
Bath & North East Somerset Council,80356027,LM3,Residential Care,P03,Wellbeing,ASPECTS & MILESTONES TRUST,02/07/2014,886.06,
Bath & North East Somerset Council,80356027,LM3,Residential Care,P03,Wellbeing,ASPECTS & MILESTONES TRUST,02/07/2014,886.06,
Bath & North East Somerset Council,80356239,LM6,Nursing Care,P03,Wellbeing,ASPECTS & MILESTONES TRUST,02/07/2014,1423.09,
Bath & North East Somerset Council,80356239,LM6,Nursing Care,P03,Wellbeing,ASPECTS & MILESTONES TRUST,02/07/2014,1423.09,
Bath & North East Somerset Council,80356237,LM3,Residential Care,P03,Wellbeing,ASPECTS & MILESTONES TRUST,02/07/2014,1877.25,
Bath & North East Somerset Council,80356237,LM3,Residential Care,P03,Wellbeing,ASPECTS & MILESTONES TRUST,02/07/2014,1877.25,
Bath & North East Somerset Council,80356238,LM3,Residential Care,P03,Wellbeing,ASPECTS & MILESTONES TRUST,02/07/2014,2202.48,
Bath & North East Somerset Council,80356238,LM3,Residential Care,P03,Wellbeing,ASPECTS & MILESTONES TRUST,02/07/2014,2202.48,
Bath & North East Somerset Council,80356238,LM3,Residential Care,P03,Wellbeing,ASPECTS & MILESTONES TRUST,02/07/2014,2508.64,
Bath & North East Somerset Council,80356238,LM3,Residential Care,P03,Wellbeing,ASPECTS & MILESTONES TRUST,02/07/2014,2508.64,
Bath & North East Somerset Council,80356059,YF2,Fees & Charges,P03,Wellbeing,AUTISM SPECIALISED CARE HOMES LTD,02/07/2014,87.35,
Bath & North East Somerset Council,80356059,YF2,Fees & Charges,P03,Wellbeing,AUTISM SPECIALISED CARE HOMES LTD,02/07/2014,87.35,
Bath & North East Somerset Council,80356059,YF2,Fees & Charges,P03,Wellbeing,AUTISM SPECIALISED CARE HOMES LTD,02/07/2014,87.35,
Bath & North East Somerset Council,80356059,YF2,Fees & Charges,P03,Wellbeing,AUTISM SPECIALISED CARE HOMES LTD,02/07/2014,87.35,
Bath & North East Somerset Council,80356059,YF2,Fees & Charges,P03,Wellbeing,AUTISM SPECIALISED CARE HOMES LTD,02/07/2014,87.35,
Bath & North East Somerset Council,80356059,YF2,Fees & Charges,P03,Wellbeing,AUTISM SPECIALISED CARE HOMES LTD,02/07/2014,87.35,
Bath & North East Somerset Council,80356059,YF2,Fees & Charges,P03,Wellbeing,AUTISM SPECIALISED CARE HOMES LTD,02/07/2014,87.35,
Bath & North East Somerset Council,80356059,YF2,Fees & Charges,P03,Wellbeing,AUTISM SPECIALISED CARE HOMES LTD,02/07/2014,87.35,
Bath & North East Somerset Council,80356059,YF2,Fees & Charges,P03,Wellbeing,AUTISM SPECIALISED CARE HOMES LTD,02/07/2014,87.35,
Bath & North East Somerset Council,80356059,YF2,Fees & Charges,P03,Wellbeing,AUTISM SPECIALISED CARE HOMES LTD,02/07/2014,87.35,
Bath & North East Somerset Council,80356059,YF2,Fees & Charges,P03,Wellbeing,AUTISM SPECIALISED CARE HOMES LTD,02/07/2014,87.35,
Bath & North East Somerset Council,80356059,LM3,Residential Care,P03,Wellbeing,AUTISM SPECIALISED CARE HOMES LTD,02/07/2014,1284.26,
Bath & North East Somerset Council,80356059,LM3,Residential Care,P03,Wellbeing,AUTISM SPECIALISED CARE HOMES LTD,02/07/2014,1284.26,
Bath & North East Somerset Council,80356120,LM3,Residential Care,P03,Wellbeing,AVERY HOMES BRISTOL LIMITED,02/07/2014,486,
Bath & North East Somerset Council,80356120,LM3,Residential Care,P03,Wellbeing,AVERY HOMES BRISTOL LIMITED,02/07/2014,486,
Bath & North East Somerset Council,80356142,LM6,Nursing Care,P03,Wellbeing,AVONPARK VILLAGE (CARE HOMES) LTD,02/07/2014,588,
Bath & North East Somerset Council,80356142,LM6,Nursing Care,P03,Wellbeing,AVONPARK VILLAGE (CARE HOMES) LTD,02/07/2014,588,
Bath & North East Somerset Council,80356168,LM6,Nursing Care,P03,Wellbeing,BARCHESTER HEALTH CARE,02/07/2014,564,
Bath & North East Somerset Council,80356168,LM6,Nursing Care,P03,Wellbeing,BARCHESTER HEALTH CARE,02/07/2014,564,
Bath & North East Somerset Council,80356168,LM6,Nursing Care,P03,Wellbeing,BARCHESTER HEALTH CARE,02/07/2014,564,
Bath & North East Somerset Council,80356168,LM6,Nursing Care,P03,Wellbeing,BARCHESTER HEALTH CARE,02/07/2014,564,
Bath & North East Somerset Council,80356168,LM6,Nursing Care,P03,Wellbeing,BARCHESTER HEALTH CARE,02/07/2014,564,
Bath & North East Somerset Council,80356168,LM6,Nursing Care,P03,Wellbeing,BARCHESTER HEALTH CARE,02/07/2014,564,
Bath & North East Somerset Council,80356168,LM6,Nursing Care,P03,Wellbeing,BARCHESTER HEALTH CARE,02/07/2014,900,
Bath & North East Somerset Council,80356168,LM6,Nursing Care,P03,Wellbeing,BARCHESTER HEALTH CARE,02/07/2014,900,
Bath & North East Somerset Council,80356061,LM6,Nursing Care,P03,Wellbeing,BARCHESTER HEALTHCARE,02/07/2014,700,
Bath & North East Somerset Council,80356061,LM6,Nursing Care,P03,Wellbeing,BARCHESTER HEALTHCARE,02/07/2014,700,
Bath & North East Somerset Council,80356061,LM6,Nursing Care,P03,Wellbeing,BARCHESTER HEALTHCARE,02/07/2014,700,
Bath & North East Somerset Council,80356061,LM6,Nursing Care,P03,Wellbeing,BARCHESTER HEALTHCARE,02/07/2014,700,
Bath & North East Somerset Council,80356206,YF2,Fees & Charges,P03,Wellbeing,BARCHESTER HEALTHCARE HOMES LTD,02/07/2014,6.05,
Bath & North East Somerset Council,80356206,YF2,Fees & Charges,P03,Wellbeing,BARCHESTER HEALTHCARE HOMES LTD,02/07/2014,77.85,
Bath & North East Somerset Council,80356206,YF2,Fees & Charges,P03,Wellbeing,BARCHESTER HEALTHCARE HOMES LTD,02/07/2014,77.85,
Bath & North East Somerset Council,80356206,YF2,Fees & Charges,P03,Wellbeing,BARCHESTER HEALTHCARE HOMES LTD,02/07/2014,77.85,
Bath & North East Somerset Council,80356206,YF2,Fees & Charges,P03,Wellbeing,BARCHESTER HEALTHCARE HOMES LTD,02/07/2014,77.85,
Bath & North East Somerset Council,80356206,YF2,Fees & Charges,P03,Wellbeing,BARCHESTER HEALTHCARE HOMES LTD,02/07/2014,77.85,
Bath & North East Somerset Council,80356206,YF2,Fees & Charges,P03,Wellbeing,BARCHESTER HEALTHCARE HOMES LTD,02/07/2014,77.85,
Bath & North East Somerset Council,80356206,YF2,Fees & Charges,P03,Wellbeing,BARCHESTER HEALTHCARE HOMES LTD,02/07/2014,77.85,
Bath & North East Somerset Council,80356206,YF2,Fees & Charges,P03,Wellbeing,BARCHESTER HEALTHCARE HOMES LTD,02/07/2014,77.85,
Bath & North East Somerset Council,80356206,YF2,Fees & Charges,P03,Wellbeing,BARCHESTER HEALTHCARE HOMES LTD,02/07/2014,77.85,
Bath & North East Somerset Council,80356206,YF2,Fees & Charges,P03,Wellbeing,BARCHESTER HEALTHCARE HOMES LTD,02/07/2014,77.85,
Bath & North East Somerset Council,80356206,YF2,Fees & Charges,P03,Wellbeing,BARCHESTER HEALTHCARE HOMES LTD,02/07/2014,77.85,
Bath & North East Somerset Council,80356206,YF2,Fees & Charges,P03,Wellbeing,BARCHESTER HEALTHCARE HOMES LTD,02/07/2014,121.5,
Bath & North East Somerset Council,80356206,YF2,Fees & Charges,P03,Wellbeing,BARCHESTER HEALTHCARE HOMES LTD,02/07/2014,121.5,
Bath & North East Somerset Council,80356206,YF2,Fees & Charges,P03,Wellbeing,BARCHESTER HEALTHCARE HOMES LTD,02/07/2014,121.5,
Bath & North East Somerset Council,80356206,YF2,Fees & Charges,P03,Wellbeing,BARCHESTER HEALTHCARE HOMES LTD,02/07/2014,121.5,
Bath & North East Somerset Council,80356206,YF2,Fees & Charges,P03,Wellbeing,BARCHESTER HEALTHCARE HOMES LTD,02/07/2014,121.5,
Bath & North East Somerset Council,80356206,YF2,Fees & Charges,P03,Wellbeing,BARCHESTER HEALTHCARE HOMES LTD,02/07/2014,121.5,
Bath & North East Somerset Council,80356206,YF2,Fees & Charges,P03,Wellbeing,BARCHESTER HEALTHCARE HOMES LTD,02/07/2014,121.5,
Bath & North East Somerset Council,80356206,YF2,Fees & Charges,P03,Wellbeing,BARCHESTER HEALTHCARE HOMES LTD,02/07/2014,121.5,
Bath & North East Somerset Council,80356206,YF2,Fees & Charges,P03,Wellbeing,BARCHESTER HEALTHCARE HOMES LTD,02/07/2014,121.5,
Bath & North East Somerset Council,80356206,YF2,Fees & Charges,P03,Wellbeing,BARCHESTER HEALTHCARE HOMES LTD,02/07/2014,121.5,
Bath & North East Somerset Council,80356206,YF2,Fees & Charges,P03,Wellbeing,BARCHESTER HEALTHCARE HOMES LTD,02/07/2014,121.5,
Bath & North East Somerset Council,80356206,YF2,Fees & Charges,P03,Wellbeing,BARCHESTER HEALTHCARE HOMES LTD,02/07/2014,151.58,
Bath & North East Somerset Council,80356206,YF2,Fees & Charges,P03,Wellbeing,BARCHESTER HEALTHCARE HOMES LTD,02/07/2014,151.58,
Bath & North East Somerset Council,80356206,YF2,Fees & Charges,P03,Wellbeing,BARCHESTER HEALTHCARE HOMES LTD,02/07/2014,151.58,
Bath & North East Somerset Council,80356206,YF2,Fees & Charges,P03,Wellbeing,BARCHESTER HEALTHCARE HOMES LTD,02/07/2014,151.58,
Bath & North East Somerset Council,80356206,LM3,Residential Care,P03,Wellbeing,BARCHESTER HEALTHCARE HOMES LTD,02/07/2014,185.79,
Bath & North East Somerset Council,80356206,LM6,Nursing Care,P03,Wellbeing,BARCHESTER HEALTHCARE HOMES LTD,02/07/2014,257.14,
Bath & North East Somerset Council,80356206,LM3,Residential Care,P03,Wellbeing,BARCHESTER HEALTHCARE HOMES LTD,02/07/2014,309.64,
Bath & North East Somerset Council,80356206,LM6,Nursing Care,P03,Wellbeing,BARCHESTER HEALTHCARE HOMES LTD,02/07/2014,321.43,
Bath & North East Somerset Council,80356206,LM6,Nursing Care,P03,Wellbeing,BARCHESTER HEALTHCARE HOMES LTD,02/07/2014,322.29,
Bath & North East Somerset Council,80356206,LM3,Residential Care,P03,Wellbeing,BARCHESTER HEALTHCARE HOMES LTD,02/07/2014,433.5,
Bath & North East Somerset Council,80356206,LM3,Residential Care,P03,Wellbeing,BARCHESTER HEALTHCARE HOMES LTD,02/07/2014,433.5,
Bath & North East Somerset Council,80356206,LM3,Residential Care,P03,Wellbeing,BARCHESTER HEALTHCARE HOMES LTD,02/07/2014,433.5,
Bath & North East Somerset Council,80356206,LM3,Residential Care,P03,Wellbeing,BARCHESTER HEALTHCARE HOMES LTD,02/07/2014,433.5,
Bath & North East Somerset Council,80356206,LM3,Residential Care,P03,Wellbeing,BARCHESTER HEALTHCARE HOMES LTD,02/07/2014,433.5,
Bath & North East Somerset Council,80356206,LM3,Residential Care,P03,Wellbeing,BARCHESTER HEALTHCARE HOMES LTD,02/07/2014,486,
Bath & North East Somerset Council,80356206,LM3,Residential Care,P03,Wellbeing,BARCHESTER HEALTHCARE HOMES LTD,02/07/2014,486,
Bath & North East Somerset Council,80356206,LM3,Residential Care,P03,Wellbeing,BARCHESTER HEALTHCARE HOMES LTD,02/07/2014,505,
Bath & North East Somerset Council,80356206,LM3,Residential Care,P03,Wellbeing,BARCHESTER HEALTHCARE HOMES LTD,02/07/2014,505,
Bath & North East Somerset Council,80356206,LM6,Nursing Care,P03,Wellbeing,BARCHESTER HEALTHCARE HOMES LTD,02/07/2014,564,
Bath & North East Somerset Council,80356206,LM6,Nursing Care,P03,Wellbeing,BARCHESTER HEALTHCARE HOMES LTD,02/07/2014,564,
Bath & North East Somerset Council,80356206,LM6,Nursing Care,P03,Wellbeing,BARCHESTER HEALTHCARE HOMES LTD,02/07/2014,564,
Bath & North East Somerset Council,80356206,LM6,Nursing Care,P03,Wellbeing,BARCHESTER HEALTHCARE HOMES LTD,02/07/2014,564,
Bath & North East Somerset Council,80356206,LM6,Nursing Care,P03,Wellbeing,BARCHESTER HEALTHCARE HOMES LTD,02/07/2014,564,
Bath & North East Somerset Council,80356206,LM6,Nursing Care,P03,Wellbeing,BARCHESTER HEALTHCARE HOMES LTD,02/07/2014,564,
Bath & North East Somerset Council,80356206,LM6,Nursing Care,P03,Wellbeing,BARCHESTER HEALTHCARE HOMES LTD,02/07/2014,564,
Bath & North East Somerset Council,80356206,LM6,Nursing Care,P03,Wellbeing,BARCHESTER HEALTHCARE HOMES LTD,02/07/2014,564,
Bath & North East Somerset Council,80356206,LM6,Nursing Care,P03,Wellbeing,BARCHESTER HEALTHCARE HOMES LTD,02/07/2014,564,
Bath & North East Somerset Council,80356206,LM6,Nursing Care,P03,Wellbeing,BARCHESTER HEALTHCARE HOMES LTD,02/07/2014,564,
Bath & North East Somerset Council,80356206,LM6,Nursing Care,P03,Wellbeing,BARCHESTER HEALTHCARE HOMES LTD,02/07/2014,564,
Bath & North East Somerset Council,80356206,LM6,Nursing Care,P03,Wellbeing,BARCHESTER HEALTHCARE HOMES LTD,02/07/2014,564,
Bath & North East Somerset Council,80356206,LM6,Nursing Care,P03,Wellbeing,BARCHESTER HEALTHCARE HOMES LTD,02/07/2014,564,
Bath & North East Somerset Council,80356206,LM6,Nursing Care,P03,Wellbeing,BARCHESTER HEALTHCARE HOMES LTD,02/07/2014,564,
Bath & North East Somerset Council,80356206,LM6,Nursing Care,P03,Wellbeing,BARCHESTER HEALTHCARE HOMES LTD,02/07/2014,564,
Bath & North East Somerset Council,80356206,LM6,Nursing Care,P03,Wellbeing,BARCHESTER HEALTHCARE HOMES LTD,02/07/2014,564,
Bath & North East Somerset Council,80356206,LM6,Nursing Care,P03,Wellbeing,BARCHESTER HEALTHCARE HOMES LTD,02/07/2014,564,
Bath & North East Somerset Council,80356206,LM6,Nursing Care,P03,Wellbeing,BARCHESTER HEALTHCARE HOMES LTD,02/07/2014,564,
Bath & North East Somerset Council,80356206,LM6,Nursing Care,P03,Wellbeing,BARCHESTER HEALTHCARE HOMES LTD,02/07/2014,564,
Bath & North East Somerset Council,80356206,LM6,Nursing Care,P03,Wellbeing,BARCHESTER HEALTHCARE HOMES LTD,02/07/2014,564,
Bath & North East Somerset Council,80356206,LM6,Nursing Care,P03,Wellbeing,BARCHESTER HEALTHCARE HOMES LTD,02/07/2014,564,
Bath & North East Somerset Council,80356206,LM6,Nursing Care,P03,Wellbeing,BARCHESTER HEALTHCARE HOMES LTD,02/07/2014,564,
Bath & North East Somerset Council,80356206,LM6,Nursing Care,P03,Wellbeing,BARCHESTER HEALTHCARE HOMES LTD,02/07/2014,564,
Bath & North East Somerset Council,80356206,LM6,Nursing Care,P03,Wellbeing,BARCHESTER HEALTHCARE HOMES LTD,02/07/2014,564,
Bath & North East Somerset Council,80356206,LM6,Nursing Care,P03,Wellbeing,BARCHESTER HEALTHCARE HOMES LTD,02/07/2014,564,
Bath & North East Somerset Council,80356206,LM6,Nursing Care,P03,Wellbeing,BARCHESTER HEALTHCARE HOMES LTD,02/07/2014,564,
Bath & North East Somerset Council,80356206,LM6,Nursing Care,P03,Wellbeing,BARCHESTER HEALTHCARE HOMES LTD,02/07/2014,564,
Bath & North East Somerset Council,80356206,LM6,Nursing Care,P03,Wellbeing,BARCHESTER HEALTHCARE HOMES LTD,02/07/2014,564,
Bath & North East Somerset Council,80356206,LM6,Nursing Care,P03,Wellbeing,BARCHESTER HEALTHCARE HOMES LTD,02/07/2014,588,
Bath & North East Somerset Council,80356206,LM6,Nursing Care,P03,Wellbeing,BARCHESTER HEALTHCARE HOMES LTD,02/07/2014,588,
Bath & North East Somerset Council,80356206,LM6,Nursing Care,P03,Wellbeing,BARCHESTER HEALTHCARE HOMES LTD,02/07/2014,588,
Bath & North East Somerset Council,80356206,LM6,Nursing Care,P03,Wellbeing,BARCHESTER HEALTHCARE HOMES LTD,02/07/2014,588,
Bath & North East Somerset Council,80356206,LM6,Nursing Care,P03,Wellbeing,BARCHESTER HEALTHCARE HOMES LTD,02/07/2014,588,
Bath & North East Somerset Council,80356206,LM6,Nursing Care,P03,Wellbeing,BARCHESTER HEALTHCARE HOMES LTD,02/07/2014,588,
Bath & North East Somerset Council,80356206,LM6,Nursing Care,P03,Wellbeing,BARCHESTER HEALTHCARE HOMES LTD,02/07/2014,596,
Bath & North East Somerset Council,80356206,LM6,Nursing Care,P03,Wellbeing,BARCHESTER HEALTHCARE HOMES LTD,02/07/2014,596,
Bath & North East Somerset Council,80356206,LM6,Nursing Care,P03,Wellbeing,BARCHESTER HEALTHCARE HOMES LTD,02/07/2014,600,
Bath & North East Somerset Council,80356206,LM6,Nursing Care,P03,Wellbeing,BARCHESTER HEALTHCARE HOMES LTD,02/07/2014,600,
Bath & North East Somerset Council,80356206,LM6,Nursing Care,P03,Wellbeing,BARCHESTER HEALTHCARE HOMES LTD,02/07/2014,642.86,
Bath & North East Somerset Council,80356206,LM3,Residential Care,P03,Wellbeing,BARCHESTER HEALTHCARE HOMES LTD,02/07/2014,650,
Bath & North East Somerset Council,80356206,LM6,Nursing Care,P03,Wellbeing,BARCHESTER HEALTHCARE HOMES LTD,02/07/2014,650,
Bath & North East Somerset Council,80356206,LM3,Residential Care,P03,Wellbeing,BARCHESTER HEALTHCARE HOMES LTD,02/07/2014,650,
Bath & North East Somerset Council,80356206,LM6,Nursing Care,P03,Wellbeing,BARCHESTER HEALTHCARE HOMES LTD,02/07/2014,650,
Bath & North East Somerset Council,80356206,LM6,Nursing Care,P03,Wellbeing,BARCHESTER HEALTHCARE HOMES LTD,02/07/2014,656.5,
Bath & North East Somerset Council,80356206,LM6,Nursing Care,P03,Wellbeing,BARCHESTER HEALTHCARE HOMES LTD,02/07/2014,656.5,
Bath & North East Somerset Council,80356206,LM6,Nursing Care,P03,Wellbeing,BARCHESTER HEALTHCARE HOMES LTD,02/07/2014,750,
Bath & North East Somerset Council,80356206,LM6,Nursing Care,P03,Wellbeing,BARCHESTER HEALTHCARE HOMES LTD,02/07/2014,750,
Bath & North East Somerset Council,80356206,LM3,Residential Care,P03,Wellbeing,BARCHESTER HEALTHCARE HOMES LTD,02/07/2014,750,
Bath & North East Somerset Council,80356206,LM6,Nursing Care,P03,Wellbeing,BARCHESTER HEALTHCARE HOMES LTD,02/07/2014,750,
Bath & North East Somerset Council,80356206,LM3,Residential Care,P03,Wellbeing,BARCHESTER HEALTHCARE HOMES LTD,02/07/2014,750,
Bath & North East Somerset Council,80356206,LM6,Nursing Care,P03,Wellbeing,BARCHESTER HEALTHCARE HOMES LTD,02/07/2014,750,
Bath & North East Somerset Council,80356206,LM6,Nursing Care,P03,Wellbeing,BARCHESTER HEALTHCARE HOMES LTD,02/07/2014,750,
Bath & North East Somerset Council,80356206,LM6,Nursing Care,P03,Wellbeing,BARCHESTER HEALTHCARE HOMES LTD,02/07/2014,750,
Bath & North East Somerset Council,80356206,LM6,Nursing Care,P03,Wellbeing,BARCHESTER HEALTHCARE HOMES LTD,02/07/2014,816.66,
Bath & North East Somerset Council,80356206,LM6,Nursing Care,P03,Wellbeing,BARCHESTER HEALTHCARE HOMES LTD,02/07/2014,816.66,
Bath & North East Somerset Council,80356206,LM6,Nursing Care,P03,Wellbeing,BARCHESTER HEALTHCARE HOMES LTD,02/07/2014,900,
Bath & North East Somerset Council,80356206,LM6,Nursing Care,P03,Wellbeing,BARCHESTER HEALTHCARE HOMES LTD,02/07/2014,900,
Bath & North East Somerset Council,80356206,LM6,Nursing Care,P03,Wellbeing,BARCHESTER HEALTHCARE HOMES LTD,02/07/2014,900,
Bath & North East Somerset Council,80356206,LM6,Nursing Care,P03,Wellbeing,BARCHESTER HEALTHCARE HOMES LTD,02/07/2014,900,
Bath & North East Somerset Council,80356206,LM6,Nursing Care,P03,Wellbeing,BARCHESTER HEALTHCARE HOMES LTD,02/07/2014,900,
Bath & North East Somerset Council,80356206,LM6,Nursing Care,P03,Wellbeing,BARCHESTER HEALTHCARE HOMES LTD,02/07/2014,900,
Bath & North East Somerset Council,80356206,LM6,Nursing Care,P03,Wellbeing,BARCHESTER HEALTHCARE HOMES LTD,02/07/2014,900,
Bath & North East Somerset Council,80356206,LM6,Nursing Care,P03,Wellbeing,BARCHESTER HEALTHCARE HOMES LTD,02/07/2014,900,
Bath & North East Somerset Council,80356206,LM6,Nursing Care,P03,Wellbeing,BARCHESTER HEALTHCARE HOMES LTD,02/07/2014,959.5,
Bath & North East Somerset Council,80356206,LM6,Nursing Care,P03,Wellbeing,BARCHESTER HEALTHCARE HOMES LTD,02/07/2014,959.5,
Bath & North East Somerset Council,80356118,LM3,Residential Care,P03,Wellbeing,BARCHESTER HEALTHCARE HOMES LTD,02/07/2014,1735,
Bath & North East Somerset Council,80356118,LM3,Residential Care,P03,Wellbeing,BARCHESTER HEALTHCARE HOMES LTD,02/07/2014,1735,
Bath & North East Somerset Council,80356109,YF2,Fees & Charges,P03,Wellbeing,BARKER CHEMICALS LTD T/A ST TERESA'S NH,02/07/2014,51.59,
Bath & North East Somerset Council,80356109,YF2,Fees & Charges,P03,Wellbeing,BARKER CHEMICALS LTD T/A ST TERESA'S NH,02/07/2014,88.54,
Bath & North East Somerset Council,80356109,YF2,Fees & Charges,P03,Wellbeing,BARKER CHEMICALS LTD T/A ST TERESA'S NH,02/07/2014,180.55,
Bath & North East Somerset Council,80356109,LM6,Nursing Care,P03,Wellbeing,BARKER CHEMICALS LTD T/A ST TERESA'S NH,02/07/2014,300,
Bath & North East Somerset Council,80356109,LM6,Nursing Care,P03,Wellbeing,BARKER CHEMICALS LTD T/A ST TERESA'S NH,02/07/2014,300,
Bath & North East Somerset Council,80356109,LM6,Nursing Care,P03,Wellbeing,BARKER CHEMICALS LTD T/A ST TERESA'S NH,02/07/2014,552,
Bath & North East Somerset Council,80356109,LM6,Nursing Care,P03,Wellbeing,BARKER CHEMICALS LTD T/A ST TERESA'S NH,02/07/2014,552,
Bath & North East Somerset Council,80356109,LM6,Nursing Care,P03,Wellbeing,BARKER CHEMICALS LTD T/A ST TERESA'S NH,02/07/2014,564,
Bath & North East Somerset Council,80356109,LM6,Nursing Care,P03,Wellbeing,BARKER CHEMICALS LTD T/A ST TERESA'S NH,02/07/2014,564,
Bath & North East Somerset Council,80356109,LM6,Nursing Care,P03,Wellbeing,BARKER CHEMICALS LTD T/A ST TERESA'S NH,02/07/2014,564,
Bath & North East Somerset Council,80356109,LM6,Nursing Care,P03,Wellbeing,BARKER CHEMICALS LTD T/A ST TERESA'S NH,02/07/2014,564,
Bath & North East Somerset Council,80356109,LM6,Nursing Care,P03,Wellbeing,BARKER CHEMICALS LTD T/A ST TERESA'S NH,02/07/2014,564,
Bath & North East Somerset Council,80356109,LM6,Nursing Care,P03,Wellbeing,BARKER CHEMICALS LTD T/A ST TERESA'S NH,02/07/2014,564,
Bath & North East Somerset Council,80356109,LM6,Nursing Care,P03,Wellbeing,BARKER CHEMICALS LTD T/A ST TERESA'S NH,02/07/2014,564,
Bath & North East Somerset Council,80356109,LM6,Nursing Care,P03,Wellbeing,BARKER CHEMICALS LTD T/A ST TERESA'S NH,02/07/2014,564,
Bath & North East Somerset Council,80356109,LM6,Nursing Care,P03,Wellbeing,BARKER CHEMICALS LTD T/A ST TERESA'S NH,02/07/2014,564,
Bath & North East Somerset Council,80356109,LM6,Nursing Care,P03,Wellbeing,BARKER CHEMICALS LTD T/A ST TERESA'S NH,02/07/2014,564,
Bath & North East Somerset Council,80356109,LM6,Nursing Care,P03,Wellbeing,BARKER CHEMICALS LTD T/A ST TERESA'S NH,02/07/2014,564,
Bath & North East Somerset Council,80356109,LM6,Nursing Care,P03,Wellbeing,BARKER CHEMICALS LTD T/A ST TERESA'S NH,02/07/2014,564,
Bath & North East Somerset Council,80356109,LM6,Nursing Care,P03,Wellbeing,BARKER CHEMICALS LTD T/A ST TERESA'S NH,02/07/2014,564,
Bath & North East Somerset Council,80356109,LM6,Nursing Care,P03,Wellbeing,BARKER CHEMICALS LTD T/A ST TERESA'S NH,02/07/2014,564,
Bath & North East Somerset Council,80356109,LM6,Nursing Care,P03,Wellbeing,BARKER CHEMICALS LTD T/A ST TERESA'S NH,02/07/2014,564,
Bath & North East Somerset Council,80356109,LM6,Nursing Care,P03,Wellbeing,BARKER CHEMICALS LTD T/A ST TERESA'S NH,02/07/2014,564,
Bath & North East Somerset Council,80356109,LM6,Nursing Care,P03,Wellbeing,BARKER CHEMICALS LTD T/A ST TERESA'S NH,02/07/2014,588,
Bath & North East Somerset Council,80356109,LM6,Nursing Care,P03,Wellbeing,BARKER CHEMICALS LTD T/A ST TERESA'S NH,02/07/2014,588,
Bath & North East Somerset Council,80356109,LM6,Nursing Care,P03,Wellbeing,BARKER CHEMICALS LTD T/A ST TERESA'S NH,02/07/2014,588,
Bath & North East Somerset Council,80356109,LM6,Nursing Care,P03,Wellbeing,BARKER CHEMICALS LTD T/A ST TERESA'S NH,02/07/2014,588,
Bath & North East Somerset Council,80356109,LM6,Nursing Care,P03,Wellbeing,BARKER CHEMICALS LTD T/A ST TERESA'S NH,02/07/2014,588,
Bath & North East Somerset Council,80356109,LM6,Nursing Care,P03,Wellbeing,BARKER CHEMICALS LTD T/A ST TERESA'S NH,02/07/2014,588,
Bath & North East Somerset Council,80356109,LM6,Nursing Care,P03,Wellbeing,BARKER CHEMICALS LTD T/A ST TERESA'S NH,02/07/2014,588,
Bath & North East Somerset Council,80356109,LM6,Nursing Care,P03,Wellbeing,BARKER CHEMICALS LTD T/A ST TERESA'S NH,02/07/2014,588,
Bath & North East Somerset Council,80356109,LM6,Nursing Care,P03,Wellbeing,BARKER CHEMICALS LTD T/A ST TERESA'S NH,02/07/2014,588,
Bath & North East Somerset Council,80356109,LM6,Nursing Care,P03,Wellbeing,BARKER CHEMICALS LTD T/A ST TERESA'S NH,02/07/2014,588,
Bath & North East Somerset Council,80356109,LM6,Nursing Care,P03,Wellbeing,BARKER CHEMICALS LTD T/A ST TERESA'S NH,02/07/2014,600,
Bath & North East Somerset Council,80356109,LM6,Nursing Care,P03,Wellbeing,BARKER CHEMICALS LTD T/A ST TERESA'S NH,02/07/2014,600,
Bath & North East Somerset Council,80356109,LM6,Nursing Care,P03,Wellbeing,BARKER CHEMICALS LTD T/A ST TERESA'S NH,02/07/2014,600,
Bath & North East Somerset Council,80356109,LM6,Nursing Care,P03,Wellbeing,BARKER CHEMICALS LTD T/A ST TERESA'S NH,02/07/2014,600,
Bath & North East Somerset Council,80356109,LM6,Nursing Care,P03,Wellbeing,BARKER CHEMICALS LTD T/A ST TERESA'S NH,02/07/2014,600,
Bath & North East Somerset Council,80356109,LM6,Nursing Care,P03,Wellbeing,BARKER CHEMICALS LTD T/A ST TERESA'S NH,02/07/2014,600,
Bath & North East Somerset Council,80356109,LM6,Nursing Care,P03,Wellbeing,BARKER CHEMICALS LTD T/A ST TERESA'S NH,02/07/2014,600,
Bath & North East Somerset Council,80356109,LM6,Nursing Care,P03,Wellbeing,BARKER CHEMICALS LTD T/A ST TERESA'S NH,02/07/2014,600,
Bath & North East Somerset Council,80356109,LM6,Nursing Care,P03,Wellbeing,BARKER CHEMICALS LTD T/A ST TERESA'S NH,02/07/2014,600,
Bath & North East Somerset Council,80356109,LM6,Nursing Care,P03,Wellbeing,BARKER CHEMICALS LTD T/A ST TERESA'S NH,02/07/2014,600,
Bath & North East Somerset Council,80356109,LM6,Nursing Care,P03,Wellbeing,BARKER CHEMICALS LTD T/A ST TERESA'S NH,02/07/2014,600,
Bath & North East Somerset Council,80356109,LM6,Nursing Care,P03,Wellbeing,BARKER CHEMICALS LTD T/A ST TERESA'S NH,02/07/2014,600,
Bath & North East Somerset Council,80356109,LM6,Nursing Care,P03,Wellbeing,BARKER CHEMICALS LTD T/A ST TERESA'S NH,02/07/2014,600,
Bath & North East Somerset Council,80356109,LM6,Nursing Care,P03,Wellbeing,BARKER CHEMICALS LTD T/A ST TERESA'S NH,02/07/2014,600,
Bath & North East Somerset Council,80356109,LM6,Nursing Care,P03,Wellbeing,BARKER CHEMICALS LTD T/A ST TERESA'S NH,02/07/2014,601,
Bath & North East Somerset Council,80356109,LM6,Nursing Care,P03,Wellbeing,BARKER CHEMICALS LTD T/A ST TERESA'S NH,02/07/2014,601,
Bath & North East Somerset Council,80356109,LM6,Nursing Care,P03,Wellbeing,BARKER CHEMICALS LTD T/A ST TERESA'S NH,02/07/2014,650,
Bath & North East Somerset Council,80356109,LM6,Nursing Care,P03,Wellbeing,BARKER CHEMICALS LTD T/A ST TERESA'S NH,02/07/2014,650,
Bath & North East Somerset Council,80356109,LM6,Nursing Care,P03,Wellbeing,BARKER CHEMICALS LTD T/A ST TERESA'S NH,02/07/2014,650,
Bath & North East Somerset Council,80356109,LM6,Nursing Care,P03,Wellbeing,BARKER CHEMICALS LTD T/A ST TERESA'S NH,02/07/2014,650,
Bath & North East Somerset Council,80356109,LM6,Nursing Care,P03,Wellbeing,BARKER CHEMICALS LTD T/A ST TERESA'S NH,02/07/2014,650,
Bath & North East Somerset Council,80356109,LM6,Nursing Care,P03,Wellbeing,BARKER CHEMICALS LTD T/A ST TERESA'S NH,02/07/2014,650,
Bath & North East Somerset Council,80356109,LM6,Nursing Care,P03,Wellbeing,BARKER CHEMICALS LTD T/A ST TERESA'S NH,02/07/2014,650,
Bath & North East Somerset Council,80356109,LM6,Nursing Care,P03,Wellbeing,BARKER CHEMICALS LTD T/A ST TERESA'S NH,02/07/2014,650,
Bath & North East Somerset Council,80356109,LM6,Nursing Care,P03,Wellbeing,BARKER CHEMICALS LTD T/A ST TERESA'S NH,02/07/2014,650,
Bath & North East Somerset Council,80356109,LM6,Nursing Care,P03,Wellbeing,BARKER CHEMICALS LTD T/A ST TERESA'S NH,02/07/2014,650,
Bath & North East Somerset Council,80356109,LM6,Nursing Care,P03,Wellbeing,BARKER CHEMICALS LTD T/A ST TERESA'S NH,02/07/2014,650,
Bath & North East Somerset Council,80356109,LM6,Nursing Care,P03,Wellbeing,BARKER CHEMICALS LTD T/A ST TERESA'S NH,02/07/2014,650,
Bath & North East Somerset Council,80356109,LM6,Nursing Care,P03,Wellbeing,BARKER CHEMICALS LTD T/A ST TERESA'S NH,02/07/2014,650,
Bath & North East Somerset Council,80356109,LM6,Nursing Care,P03,Wellbeing,BARKER CHEMICALS LTD T/A ST TERESA'S NH,02/07/2014,650,
Bath & North East Somerset Council,80356109,LM6,Nursing Care,P03,Wellbeing,BARKER CHEMICALS LTD T/A ST TERESA'S NH,02/07/2014,675,
Bath & North East Somerset Council,80356109,LM6,Nursing Care,P03,Wellbeing,BARKER CHEMICALS LTD T/A ST TERESA'S NH,02/07/2014,675,
Bath & North East Somerset Council,80356109,LM6,Nursing Care,P03,Wellbeing,BARKER CHEMICALS LTD T/A ST TERESA'S NH,02/07/2014,700,
Bath & North East Somerset Council,80356109,LM6,Nursing Care,P03,Wellbeing,BARKER CHEMICALS LTD T/A ST TERESA'S NH,02/07/2014,700,
Bath & North East Somerset Council,80356109,LM6,Nursing Care,P03,Wellbeing,BARKER CHEMICALS LTD T/A ST TERESA'S NH,02/07/2014,700,
Bath & North East Somerset Council,80356109,LM6,Nursing Care,P03,Wellbeing,BARKER CHEMICALS LTD T/A ST TERESA'S NH,02/07/2014,700,
Bath & North East Somerset Council,80356109,LM6,Nursing Care,P03,Wellbeing,BARKER CHEMICALS LTD T/A ST TERESA'S NH,02/07/2014,700,
Bath & North East Somerset Council,80356029,YF2,Fees & Charges,P03,Wellbeing,BATH MIND,02/07/2014,97.75,
Bath & North East Somerset Council,80356029,YF2,Fees & Charges,P03,Wellbeing,BATH MIND,02/07/2014,97.75,
Bath & North East Somerset Council,80356029,YF2,Fees & Charges,P03,Wellbeing,BATH MIND,02/07/2014,97.75,
Bath & North East Somerset Council,80356029,YF2,Fees & Charges,P03,Wellbeing,BATH MIND,02/07/2014,97.75,
Bath & North East Somerset Council,80356029,YF2,Fees & Charges,P03,Wellbeing,BATH MIND,02/07/2014,97.75,
Bath & North East Somerset Council,80356029,YF2,Fees & Charges,P03,Wellbeing,BATH MIND,02/07/2014,97.75,
Bath & North East Somerset Council,80356029,YF2,Fees & Charges,P03,Wellbeing,BATH MIND,02/07/2014,97.75,
Bath & North East Somerset Council,80356029,YF2,Fees & Charges,P03,Wellbeing,BATH MIND,02/07/2014,97.75,
Bath & North East Somerset Council,80356029,YF2,Fees & Charges,P03,Wellbeing,BATH MIND,02/07/2014,97.75,
Bath & North East Somerset Council,80356029,YF2,Fees & Charges,P03,Wellbeing,BATH MIND,02/07/2014,97.75,
Bath & North East Somerset Council,80356029,YF2,Fees & Charges,P03,Wellbeing,BATH MIND,02/07/2014,97.75,
Bath & North East Somerset Council,80356029,LM3,Residential Care,P03,Wellbeing,BATH MIND,02/07/2014,662.18,
Bath & North East Somerset Council,80356029,LM3,Residential Care,P03,Wellbeing,BATH MIND,02/07/2014,662.18,
Bath & North East Somerset Council,80356029,LM3,Residential Care,P03,Wellbeing,BATH MIND,02/07/2014,662.18,
Bath & North East Somerset Council,80356029,LM3,Residential Care,P03,Wellbeing,BATH MIND,02/07/2014,662.18,
Bath & North East Somerset Council,80356029,LM3,Residential Care,P03,Wellbeing,BATH MIND,02/07/2014,662.18,
Bath & North East Somerset Council,80356029,LM3,Residential Care,P03,Wellbeing,BATH MIND,02/07/2014,662.18,
Bath & North East Somerset Council,80356029,LM3,Residential Care,P03,Wellbeing,BATH MIND,02/07/2014,662.18,
Bath & North East Somerset Council,80356029,LM3,Residential Care,P03,Wellbeing,BATH MIND,02/07/2014,662.18,
Bath & North East Somerset Council,80356029,LM3,Residential Care,P03,Wellbeing,BATH MIND,02/07/2014,662.18,
Bath & North East Somerset Council,80356029,LM3,Residential Care,P03,Wellbeing,BATH MIND,02/07/2014,662.18,
Bath & North East Somerset Council,80356029,LM3,Residential Care,P03,Wellbeing,BATH MIND,02/07/2014,662.18,
Bath & North East Somerset Council,80356029,LM3,Residential Care,P03,Wellbeing,BATH MIND,02/07/2014,662.18,
Bath & North East Somerset Council,80356029,LM3,Residential Care,P03,Wellbeing,BATH MIND,02/07/2014,662.18,
Bath & North East Somerset Council,80356029,LM3,Residential Care,P03,Wellbeing,BATH MIND,02/07/2014,662.18,
Bath & North East Somerset Council,80356229,LM3,Residential Care,P03,Wellbeing,BCVS HOMES,02/07/2014,427.23,
Bath & North East Somerset Council,80356229,LM3,Residential Care,P03,Wellbeing,BCVS HOMES,02/07/2014,427.23,
Bath & North East Somerset Council,80356228,LM3,Residential Care,P03,Wellbeing,BCVS HOMES,02/07/2014,443,
Bath & North East Somerset Council,80356228,LM3,Residential Care,P03,Wellbeing,BCVS HOMES,02/07/2014,443,
Bath & North East Somerset Council,80356228,LM3,Residential Care,P03,Wellbeing,BCVS HOMES,02/07/2014,443,
Bath & North East Somerset Council,80356228,LM3,Residential Care,P03,Wellbeing,BCVS HOMES,02/07/2014,443,
Bath & North East Somerset Council,80356229,LM3,Residential Care,P03,Wellbeing,BCVS HOMES,02/07/2014,443,
Bath & North East Somerset Council,80356229,LM3,Residential Care,P03,Wellbeing,BCVS HOMES,02/07/2014,443,
Bath & North East Somerset Council,80356229,LM3,Residential Care,P03,Wellbeing,BCVS HOMES,02/07/2014,443,
Bath & North East Somerset Council,80356229,LM3,Residential Care,P03,Wellbeing,BCVS HOMES,02/07/2014,443,
Bath & North East Somerset Council,80356229,LM3,Residential Care,P03,Wellbeing,BCVS HOMES,02/07/2014,443,
Bath & North East Somerset Council,80356229,LM3,Residential Care,P03,Wellbeing,BCVS HOMES,02/07/2014,443,
Bath & North East Somerset Council,80356229,LM3,Residential Care,P03,Wellbeing,BCVS HOMES,02/07/2014,454.5,
Bath & North East Somerset Council,80356229,LM3,Residential Care,P03,Wellbeing,BCVS HOMES,02/07/2014,454.5,
Bath & North East Somerset Council,80356229,LM3,Residential Care,P03,Wellbeing,BCVS HOMES,02/07/2014,455.51,
Bath & North East Somerset Council,80356229,LM3,Residential Care,P03,Wellbeing,BCVS HOMES,02/07/2014,455.51,
Bath & North East Somerset Council,80356229,LM3,Residential Care,P03,Wellbeing,BCVS HOMES,02/07/2014,486,
Bath & North East Somerset Council,80356229,LM3,Residential Care,P03,Wellbeing,BCVS HOMES,02/07/2014,486,
Bath & North East Somerset Council,80356228,LM3,Residential Care,P03,Wellbeing,BCVS HOMES,02/07/2014,500.96,
Bath & North East Somerset Council,80356228,LM3,Residential Care,P03,Wellbeing,BCVS HOMES,02/07/2014,500.96,
Bath & North East Somerset Council,80356060,YF2,Fees & Charges,P03,Wellbeing,BEDROCK LODGE,02/07/2014,81.55,
Bath & North East Somerset Council,80356060,YF2,Fees & Charges,P03,Wellbeing,BEDROCK LODGE,02/07/2014,81.55,
Bath & North East Somerset Council,80356060,YF2,Fees & Charges,P03,Wellbeing,BEDROCK LODGE,02/07/2014,81.55,
Bath & North East Somerset Council,80356060,YF2,Fees & Charges,P03,Wellbeing,BEDROCK LODGE,02/07/2014,81.55,
Bath & North East Somerset Council,80356060,YF2,Fees & Charges,P03,Wellbeing,BEDROCK LODGE,02/07/2014,81.55,
Bath & North East Somerset Council,80356060,YF2,Fees & Charges,P03,Wellbeing,BEDROCK LODGE,02/07/2014,81.55,
Bath & North East Somerset Council,80356060,YF2,Fees & Charges,P03,Wellbeing,BEDROCK LODGE,02/07/2014,81.55,
Bath & North East Somerset Council,80356060,YF2,Fees & Charges,P03,Wellbeing,BEDROCK LODGE,02/07/2014,81.55,
Bath & North East Somerset Council,80356060,YF2,Fees & Charges,P03,Wellbeing,BEDROCK LODGE,02/07/2014,81.55,
Bath & North East Somerset Council,80356060,YF2,Fees & Charges,P03,Wellbeing,BEDROCK LODGE,02/07/2014,81.55,
Bath & North East Somerset Council,80356060,YF2,Fees & Charges,P03,Wellbeing,BEDROCK LODGE,02/07/2014,81.55,
Bath & North East Somerset Council,80356060,LM3,Residential Care,P03,Wellbeing,BEDROCK LODGE,02/07/2014,789.7,
Bath & North East Somerset Council,80356060,LM3,Residential Care,P03,Wellbeing,BEDROCK LODGE,02/07/2014,789.7,
Bath & North East Somerset Council,80356103,LM3,Residential Care,P03,Wellbeing,BELMONT VILLA RESIDENTIAL NURSING HOME LTD,02/07/2014,550,
Bath & North East Somerset Council,80356103,LM3,Residential Care,P03,Wellbeing,BELMONT VILLA RESIDENTIAL NURSING HOME LTD,02/07/2014,550,
Bath & North East Somerset Council,80356166,LM6,Nursing Care,P03,Wellbeing,BLAKESHIELDS T/A TREWISTON LODGE NURSING HOME,02/07/2014,507.75,
Bath & North East Somerset Council,80356166,LM6,Nursing Care,P03,Wellbeing,BLAKESHIELDS T/A TREWISTON LODGE NURSING HOME,02/07/2014,507.75,
Bath & North East Somerset Council,80356098,LM3,Residential Care,P03,Wellbeing,BOLE ALLER HOUSE LTD,02/07/2014,728.63,
Bath & North East Somerset Council,80356098,LM3,Residential Care,P03,Wellbeing,BOLE ALLER HOUSE LTD,02/07/2014,728.63,
Bath & North East Somerset Council,80356139,LM3,Residential Care,P03,Wellbeing,BOROUGH CARE LIMITED,02/07/2014,376,
Bath & North East Somerset Council,80356139,LM3,Residential Care,P03,Wellbeing,BOROUGH CARE LIMITED,02/07/2014,376,
Bath & North East Somerset Council,80356123,LM3,Residential Care,P03,Wellbeing,BRIDGE CARE LTD,02/07/2014,443,
Bath & North East Somerset Council,80356123,LM3,Residential Care,P03,Wellbeing,BRIDGE CARE LTD,02/07/2014,443,
Bath & North East Somerset Council,80356123,LM3,Residential Care,P03,Wellbeing,BRIDGE CARE LTD,02/07/2014,443,
Bath & North East Somerset Council,80356123,LM3,Residential Care,P03,Wellbeing,BRIDGE CARE LTD,02/07/2014,443,
Bath & North East Somerset Council,80356123,LM3,Residential Care,P03,Wellbeing,BRIDGE CARE LTD,02/07/2014,443,
Bath & North East Somerset Council,80356123,LM3,Residential Care,P03,Wellbeing,BRIDGE CARE LTD,02/07/2014,443,
Bath & North East Somerset Council,80356123,LM3,Residential Care,P03,Wellbeing,BRIDGE CARE LTD,02/07/2014,443,
Bath & North East Somerset Council,80356123,LM3,Residential Care,P03,Wellbeing,BRIDGE CARE LTD,02/07/2014,443,
Bath & North East Somerset Council,80356123,LM3,Residential Care,P03,Wellbeing,BRIDGE CARE LTD,02/07/2014,443,
Bath & North East Somerset Council,80356123,LM3,Residential Care,P03,Wellbeing,BRIDGE CARE LTD,02/07/2014,443,
Bath & North East Somerset Council,80356123,LM6,Nursing Care,P03,Wellbeing,BRIDGE CARE LTD,02/07/2014,564,
Bath & North East Somerset Council,80356123,LM6,Nursing Care,P03,Wellbeing,BRIDGE CARE LTD,02/07/2014,564,
Bath & North East Somerset Council,80356123,LM6,Nursing Care,P03,Wellbeing,BRIDGE CARE LTD,02/07/2014,564,
Bath & North East Somerset Council,80356123,LM6,Nursing Care,P03,Wellbeing,BRIDGE CARE LTD,02/07/2014,564,
Bath & North East Somerset Council,80356123,LM6,Nursing Care,P03,Wellbeing,BRIDGE CARE LTD,02/07/2014,564,
Bath & North East Somerset Council,80356123,LM6,Nursing Care,P03,Wellbeing,BRIDGE CARE LTD,02/07/2014,564,
Bath & North East Somerset Council,80356123,LM6,Nursing Care,P03,Wellbeing,BRIDGE CARE LTD,02/07/2014,564,
Bath & North East Somerset Council,80356123,LM6,Nursing Care,P03,Wellbeing,BRIDGE CARE LTD,02/07/2014,564,
Bath & North East Somerset Council,80356123,LM6,Nursing Care,P03,Wellbeing,BRIDGE CARE LTD,02/07/2014,800,
Bath & North East Somerset Council,80356123,LM6,Nursing Care,P03,Wellbeing,BRIDGE CARE LTD,02/07/2014,800,
Bath & North East Somerset Council,80356134,YF2,Fees & Charges,P03,Wellbeing,BRIGHTBOW LODGE,02/07/2014,87.35,
Bath & North East Somerset Council,80356134,YF2,Fees & Charges,P03,Wellbeing,BRIGHTBOW LODGE,02/07/2014,87.35,
Bath & North East Somerset Council,80356134,YF2,Fees & Charges,P03,Wellbeing,BRIGHTBOW LODGE,02/07/2014,87.35,
Bath & North East Somerset Council,80356134,YF2,Fees & Charges,P03,Wellbeing,BRIGHTBOW LODGE,02/07/2014,87.35,
Bath & North East Somerset Council,80356134,YF2,Fees & Charges,P03,Wellbeing,BRIGHTBOW LODGE,02/07/2014,87.35,
Bath & North East Somerset Council,80356134,YF2,Fees & Charges,P03,Wellbeing,BRIGHTBOW LODGE,02/07/2014,87.35,
Bath & North East Somerset Council,80356134,YF2,Fees & Charges,P03,Wellbeing,BRIGHTBOW LODGE,02/07/2014,87.35,
Bath & North East Somerset Council,80356134,YF2,Fees & Charges,P03,Wellbeing,BRIGHTBOW LODGE,02/07/2014,87.35,
Bath & North East Somerset Council,80356134,YF2,Fees & Charges,P03,Wellbeing,BRIGHTBOW LODGE,02/07/2014,87.35,
Bath & North East Somerset Council,80356134,YF2,Fees & Charges,P03,Wellbeing,BRIGHTBOW LODGE,02/07/2014,87.35,
Bath & North East Somerset Council,80356134,YF2,Fees & Charges,P03,Wellbeing,BRIGHTBOW LODGE,02/07/2014,87.35,
Bath & North East Somerset Council,80356134,YF2,Fees & Charges,P03,Wellbeing,BRIGHTBOW LODGE,02/07/2014,203.22,
Bath & North East Somerset Council,80356134,YF2,Fees & Charges,P03,Wellbeing,BRIGHTBOW LODGE,02/07/2014,203.22,
Bath & North East Somerset Council,80356134,YF2,Fees & Charges,P03,Wellbeing,BRIGHTBOW LODGE,02/07/2014,203.22,
Bath & North East Somerset Council,80356134,YF2,Fees & Charges,P03,Wellbeing,BRIGHTBOW LODGE,02/07/2014,203.22,
Bath & North East Somerset Council,80356134,YF2,Fees & Charges,P03,Wellbeing,BRIGHTBOW LODGE,02/07/2014,203.22,
Bath & North East Somerset Council,80356134,YF2,Fees & Charges,P03,Wellbeing,BRIGHTBOW LODGE,02/07/2014,203.22,
Bath & North East Somerset Council,80356134,YF2,Fees & Charges,P03,Wellbeing,BRIGHTBOW LODGE,02/07/2014,203.22,
Bath & North East Somerset Council,80356134,YF2,Fees & Charges,P03,Wellbeing,BRIGHTBOW LODGE,02/07/2014,203.22,
Bath & North East Somerset Council,80356134,YF2,Fees & Charges,P03,Wellbeing,BRIGHTBOW LODGE,02/07/2014,203.22,
Bath & North East Somerset Council,80356134,YF2,Fees & Charges,P03,Wellbeing,BRIGHTBOW LODGE,02/07/2014,203.22,
Bath & North East Somerset Council,80356134,YF2,Fees & Charges,P03,Wellbeing,BRIGHTBOW LODGE,02/07/2014,203.22,
Bath & North East Somerset Council,80356134,LM6,Nursing Care,P03,Wellbeing,BRIGHTBOW LODGE,02/07/2014,564,
Bath & North East Somerset Council,80356134,LM6,Nursing Care,P03,Wellbeing,BRIGHTBOW LODGE,02/07/2014,564,
Bath & North East Somerset Council,80356134,LM6,Nursing Care,P03,Wellbeing,BRIGHTBOW LODGE,02/07/2014,673.22,
Bath & North East Somerset Council,80356134,LM6,Nursing Care,P03,Wellbeing,BRIGHTBOW LODGE,02/07/2014,673.22,
Bath & North East Somerset Council,80356134,LM6,Nursing Care,P03,Wellbeing,BRIGHTBOW LODGE,02/07/2014,673.22,
Bath & North East Somerset Council,80356134,LM6,Nursing Care,P03,Wellbeing,BRIGHTBOW LODGE,02/07/2014,673.22,
Bath & North East Somerset Council,80356134,LM6,Nursing Care,P03,Wellbeing,BRIGHTBOW LODGE,02/07/2014,673.22,
Bath & North East Somerset Council,80356134,LM6,Nursing Care,P03,Wellbeing,BRIGHTBOW LODGE,02/07/2014,673.22,
Bath & North East Somerset Council,80356134,LM3,Residential Care,P03,Wellbeing,BRIGHTBOW LODGE,02/07/2014,673.22,
Bath & North East Somerset Council,80356134,LM3,Residential Care,P03,Wellbeing,BRIGHTBOW LODGE,02/07/2014,673.22,
Bath & North East Somerset Council,80356134,LM3,Residential Care,P03,Wellbeing,BRIGHTBOW LODGE,02/07/2014,735,
Bath & North East Somerset Council,80356134,LM3,Residential Care,P03,Wellbeing,BRIGHTBOW LODGE,02/07/2014,735,
Bath & North East Somerset Council,80356231,YF2,Fees & Charges,P03,Wellbeing,BRISTOL AGE CARE,02/07/2014,43.31,
Bath & North East Somerset Council,80356231,YF2,Fees & Charges,P03,Wellbeing,BRISTOL AGE CARE,02/07/2014,43.31,
Bath & North East Somerset Council,80356231,YF2,Fees & Charges,P03,Wellbeing,BRISTOL AGE CARE,02/07/2014,43.31,
Bath & North East Somerset Council,80356231,YF2,Fees & Charges,P03,Wellbeing,BRISTOL AGE CARE,02/07/2014,43.31,
Bath & North East Somerset Council,80356231,YF2,Fees & Charges,P03,Wellbeing,BRISTOL AGE CARE,02/07/2014,43.31,
Bath & North East Somerset Council,80356231,YF2,Fees & Charges,P03,Wellbeing,BRISTOL AGE CARE,02/07/2014,43.31,
Bath & North East Somerset Council,80356231,YF2,Fees & Charges,P03,Wellbeing,BRISTOL AGE CARE,02/07/2014,43.31,
Bath & North East Somerset Council,80356231,YF2,Fees & Charges,P03,Wellbeing,BRISTOL AGE CARE,02/07/2014,43.31,
Bath & North East Somerset Council,80356231,YF2,Fees & Charges,P03,Wellbeing,BRISTOL AGE CARE,02/07/2014,43.31,
Bath & North East Somerset Council,80356231,YF2,Fees & Charges,P03,Wellbeing,BRISTOL AGE CARE,02/07/2014,43.31,
Bath & North East Somerset Council,80356231,YF2,Fees & Charges,P03,Wellbeing,BRISTOL AGE CARE,02/07/2014,43.31,
Bath & North East Somerset Council,80356231,YF2,Fees & Charges,P03,Wellbeing,BRISTOL AGE CARE,02/07/2014,70.83,
Bath & North East Somerset Council,80356231,YF2,Fees & Charges,P03,Wellbeing,BRISTOL AGE CARE,02/07/2014,123.95,
Bath & North East Somerset Council,80356231,YF2,Fees & Charges,P03,Wellbeing,BRISTOL AGE CARE,02/07/2014,123.95,
Bath & North East Somerset Council,80356231,YF2,Fees & Charges,P03,Wellbeing,BRISTOL AGE CARE,02/07/2014,123.95,
Bath & North East Somerset Council,80356231,YF2,Fees & Charges,P03,Wellbeing,BRISTOL AGE CARE,02/07/2014,123.95,
Bath & North East Somerset Council,80356231,YF2,Fees & Charges,P03,Wellbeing,BRISTOL AGE CARE,02/07/2014,123.95,
Bath & North East Somerset Council,80356231,YF2,Fees & Charges,P03,Wellbeing,BRISTOL AGE CARE,02/07/2014,123.95,
Bath & North East Somerset Council,80356231,YF2,Fees & Charges,P03,Wellbeing,BRISTOL AGE CARE,02/07/2014,123.95,
Bath & North East Somerset Council,80356231,YF2,Fees & Charges,P03,Wellbeing,BRISTOL AGE CARE,02/07/2014,123.95,
Bath & North East Somerset Council,80356231,YF2,Fees & Charges,P03,Wellbeing,BRISTOL AGE CARE,02/07/2014,123.95,
Bath & North East Somerset Council,80356231,YF2,Fees & Charges,P03,Wellbeing,BRISTOL AGE CARE,02/07/2014,123.95,
Bath & North East Somerset Council,80356231,YF2,Fees & Charges,P03,Wellbeing,BRISTOL AGE CARE,02/07/2014,123.95,
Bath & North East Somerset Council,80356231,YF2,Fees & Charges,P03,Wellbeing,BRISTOL AGE CARE,02/07/2014,123.95,
Bath & North East Somerset Council,80356231,LM6,Nursing Care,P03,Wellbeing,BRISTOL AGE CARE,02/07/2014,600,
Bath & North East Somerset Council,80356231,LM6,Nursing Care,P03,Wellbeing,BRISTOL AGE CARE,02/07/2014,600,
Bath & North East Somerset Council,80356231,LM6,Nursing Care,P03,Wellbeing,BRISTOL AGE CARE,02/07/2014,700,
Bath & North East Somerset Council,80356231,LM6,Nursing Care,P03,Wellbeing,BRISTOL AGE CARE,02/07/2014,700,
Bath & North East Somerset Council,80356231,LM6,Nursing Care,P03,Wellbeing,BRISTOL AGE CARE,02/07/2014,749.79,
Bath & North East Somerset Council,80356231,LM6,Nursing Care,P03,Wellbeing,BRISTOL AGE CARE,02/07/2014,749.79,
Bath & North East Somerset Council,80356164,LM6,Nursing Care,P03,Wellbeing,BRONDESBURY LODGE LTD,02/07/2014,606.56,
Bath & North East Somerset Council,80356164,LM6,Nursing Care,P03,Wellbeing,BRONDESBURY LODGE LTD,02/07/2014,606.56,
Bath & North East Somerset Council,80356125,LM3,Residential Care,P03,Wellbeing,BROUGHTON LODGE CARE HOME,02/07/2014,443,
Bath & North East Somerset Council,80356125,LM3,Residential Care,P03,Wellbeing,BROUGHTON LODGE CARE HOME,02/07/2014,443,
Bath & North East Somerset Council,80356063,LM6,Nursing Care,P03,Wellbeing,BUPA CARE SERVICES BACS RECEIPTS,02/07/2014,564,
Bath & North East Somerset Council,80356063,LM6,Nursing Care,P03,Wellbeing,BUPA CARE SERVICES BACS RECEIPTS,02/07/2014,564,
Bath & North East Somerset Council,80356063,LM6,Nursing Care,P03,Wellbeing,BUPA CARE SERVICES BACS RECEIPTS,02/07/2014,588,
Bath & North East Somerset Council,80356063,LM6,Nursing Care,P03,Wellbeing,BUPA CARE SERVICES BACS RECEIPTS,02/07/2014,588,
Bath & North East Somerset Council,80356188,LM6,Nursing Care,P03,Wellbeing,BUPA CARE SERVICES BACS RECEIPTS,02/07/2014,615.88,
Bath & North East Somerset Council,80356188,LM6,Nursing Care,P03,Wellbeing,BUPA CARE SERVICES BACS RECEIPTS,02/07/2014,615.88,
Bath & North East Somerset Council,80356188,LM6,Nursing Care,P03,Wellbeing,BUPA CARE SERVICES BACS RECEIPTS,02/07/2014,646.15,
Bath & North East Somerset Council,80356188,LM6,Nursing Care,P03,Wellbeing,BUPA CARE SERVICES BACS RECEIPTS,02/07/2014,646.15,
Bath & North East Somerset Council,80356198,LM6,Nursing Care,P03,Wellbeing,BYBROOK HOUSE,02/07/2014,750,
Bath & North East Somerset Council,80356198,LM6,Nursing Care,P03,Wellbeing,BYBROOK HOUSE,02/07/2014,750,
Bath & North East Somerset Council,80356133,LM3,Residential Care,P03,Wellbeing,CAMPANIA CARE HOME,02/07/2014,750,
Bath & North East Somerset Council,80356133,LM3,Residential Care,P03,Wellbeing,CAMPANIA CARE HOME,02/07/2014,750,
Bath & North East Somerset Council,80356128,LM3,Residential Care,P03,Wellbeing,CAMPHILL DEVON COMMUNITY LTD,02/07/2014,841.5,
Bath & North East Somerset Council,80356128,LM3,Residential Care,P03,Wellbeing,CAMPHILL DEVON COMMUNITY LTD,02/07/2014,841.5,
Bath & North East Somerset Council,80356126,LM6,Nursing Care,P03,Wellbeing,CARE FIRST CARE HOMES LTD,02/07/2014,564,
Bath & North East Somerset Council,80356126,LM6,Nursing Care,P03,Wellbeing,CARE FIRST CARE HOMES LTD,02/07/2014,564,
Bath & North East Somerset Council,80356126,LM6,Nursing Care,P03,Wellbeing,CARE FIRST CARE HOMES LTD,02/07/2014,564,
Bath & North East Somerset Council,80356126,LM6,Nursing Care,P03,Wellbeing,CARE FIRST CARE HOMES LTD,02/07/2014,564,
Bath & North East Somerset Council,80356126,LM6,Nursing Care,P03,Wellbeing,CARE FIRST CARE HOMES LTD,02/07/2014,564,
Bath & North East Somerset Council,80356126,LM6,Nursing Care,P03,Wellbeing,CARE FIRST CARE HOMES LTD,02/07/2014,564,
Bath & North East Somerset Council,80356126,LM6,Nursing Care,P03,Wellbeing,CARE FIRST CARE HOMES LTD,02/07/2014,564,
Bath & North East Somerset Council,80356126,LM6,Nursing Care,P03,Wellbeing,CARE FIRST CARE HOMES LTD,02/07/2014,564,
Bath & North East Somerset Council,80356035,LM6,Nursing Care,P03,Wellbeing,CARE FIRST CARE HOMES LTD,02/07/2014,590.55,
Bath & North East Somerset Council,80356035,LM6,Nursing Care,P03,Wellbeing,CARE FIRST CARE HOMES LTD,02/07/2014,590.55,
Bath & North East Somerset Council,80356126,LM3,Residential Care,P03,Wellbeing,CARE FIRST CARE HOMES LTD,02/07/2014,696.1,
Bath & North East Somerset Council,80356126,LM3,Residential Care,P03,Wellbeing,CARE FIRST CARE HOMES LTD,02/07/2014,696.1,
Bath & North East Somerset Council,80356126,LM6,Nursing Care,P03,Wellbeing,CARE FIRST CARE HOMES LTD,02/07/2014,927.18,
Bath & North East Somerset Council,80356126,LM6,Nursing Care,P03,Wellbeing,CARE FIRST CARE HOMES LTD,02/07/2014,927.18,
Bath & North East Somerset Council,80356126,LM6,Nursing Care,P03,Wellbeing,CARE FIRST CARE HOMES LTD,02/07/2014,950,
Bath & North East Somerset Council,80356126,LM6,Nursing Care,P03,Wellbeing,CARE FIRST CARE HOMES LTD,02/07/2014,950,
Bath & North East Somerset Council,80356159,LM6,Nursing Care,P03,Wellbeing,CARE HOMES UK LTD,02/07/2014,564,
Bath & North East Somerset Council,80356159,LM6,Nursing Care,P03,Wellbeing,CARE HOMES UK LTD,02/07/2014,564,
Bath & North East Somerset Council,80356169,LM3,Residential Care,P03,Wellbeing,CARE UK COMMUNITY PARTNERSHIP LIMITED,02/07/2014,732.95,
Bath & North East Somerset Council,80356169,LM3,Residential Care,P03,Wellbeing,CARE UK COMMUNITY PARTNERSHIP LIMITED,02/07/2014,732.95,
Bath & North East Somerset Council,10744097,EA1,Training,P05,Neighbourhoods,SCANIA (GREAT BRITAIN) LIMITED,02/07/2014,115,
Bath & North East Somerset Council,80356064,LM3,Residential Care,P03,Wellbeing,CEDAR CARE HOMES LTD,02/07/2014,475.5,
Bath & North East Somerset Council,80356064,LM3,Residential Care,P03,Wellbeing,CEDAR CARE HOMES LTD,02/07/2014,475.5,
Bath & North East Somerset Council,80356064,LM3,Residential Care,P03,Wellbeing,CEDAR CARE HOMES LTD,02/07/2014,486,
Bath & North East Somerset Council,80356064,LM3,Residential Care,P03,Wellbeing,CEDAR CARE HOMES LTD,02/07/2014,486,
Bath & North East Somerset Council,80356064,LM3,Residential Care,P03,Wellbeing,CEDAR CARE HOMES LTD,02/07/2014,486,
Bath & North East Somerset Council,80356064,LM3,Residential Care,P03,Wellbeing,CEDAR CARE HOMES LTD,02/07/2014,486,
Bath & North East Somerset Council,80356064,LM3,Residential Care,P03,Wellbeing,CEDAR CARE HOMES LTD,02/07/2014,486,
Bath & North East Somerset Council,80356064,LM3,Residential Care,P03,Wellbeing,CEDAR CARE HOMES LTD,02/07/2014,486,
Bath & North East Somerset Council,80356064,LM3,Residential Care,P03,Wellbeing,CEDAR CARE HOMES LTD,02/07/2014,486,
Bath & North East Somerset Council,80356064,LM3,Residential Care,P03,Wellbeing,CEDAR CARE HOMES LTD,02/07/2014,486,
Bath & North East Somerset Council,80356064,LM3,Residential Care,P03,Wellbeing,CEDAR CARE HOMES LTD,02/07/2014,500,
Bath & North East Somerset Council,80356064,LM3,Residential Care,P03,Wellbeing,CEDAR CARE HOMES LTD,02/07/2014,500,
Bath & North East Somerset Council,80356064,LM3,Residential Care,P03,Wellbeing,CEDAR CARE HOMES LTD,02/07/2014,510,
Bath & North East Somerset Council,80356064,LM3,Residential Care,P03,Wellbeing,CEDAR CARE HOMES LTD,02/07/2014,510,
Bath & North East Somerset Council,80356064,LM3,Residential Care,P03,Wellbeing,CEDAR CARE HOMES LTD,02/07/2014,510,
Bath & North East Somerset Council,80356064,LM3,Residential Care,P03,Wellbeing,CEDAR CARE HOMES LTD,02/07/2014,510,
Bath & North East Somerset Council,80356064,LM3,Residential Care,P03,Wellbeing,CEDAR CARE HOMES LTD,02/07/2014,510,
Bath & North East Somerset Council,80356064,LM3,Residential Care,P03,Wellbeing,CEDAR CARE HOMES LTD,02/07/2014,510,
Bath & North East Somerset Council,80356064,LM3,Residential Care,P03,Wellbeing,CEDAR CARE HOMES LTD,02/07/2014,550,
Bath & North East Somerset Council,80356064,LM3,Residential Care,P03,Wellbeing,CEDAR CARE HOMES LTD,02/07/2014,550,
Bath & North East Somerset Council,80356131,LM6,Nursing Care,P03,Wellbeing,CEDAR CARE HOMES LTD,02/07/2014,564,
Bath & North East Somerset Council,80356131,LM6,Nursing Care,P03,Wellbeing,CEDAR CARE HOMES LTD,02/07/2014,564,
Bath & North East Somerset Council,80356131,LM6,Nursing Care,P03,Wellbeing,CEDAR CARE HOMES LTD,02/07/2014,564,
Bath & North East Somerset Council,80356131,LM6,Nursing Care,P03,Wellbeing,CEDAR CARE HOMES LTD,02/07/2014,564,
Bath & North East Somerset Council,80356131,LM6,Nursing Care,P03,Wellbeing,CEDAR CARE HOMES LTD,02/07/2014,564,
Bath & North East Somerset Council,80356131,LM6,Nursing Care,P03,Wellbeing,CEDAR CARE HOMES LTD,02/07/2014,564,
Bath & North East Somerset Council,80356131,LM6,Nursing Care,P03,Wellbeing,CEDAR CARE HOMES LTD,02/07/2014,564,
Bath & North East Somerset Council,80356131,LM6,Nursing Care,P03,Wellbeing,CEDAR CARE HOMES LTD,02/07/2014,564,
Bath & North East Somerset Council,80356131,LM6,Nursing Care,P03,Wellbeing,CEDAR CARE HOMES LTD,02/07/2014,564,
Bath & North East Somerset Council,80356131,LM6,Nursing Care,P03,Wellbeing,CEDAR CARE HOMES LTD,02/07/2014,564,
Bath & North East Somerset Council,80356088,LM3,Residential Care,P03,Wellbeing,CEDAR CARE HOMES LTD,02/07/2014,569,
Bath & North East Somerset Council,80356088,LM3,Residential Care,P03,Wellbeing,CEDAR CARE HOMES LTD,02/07/2014,569,
Bath & North East Somerset Council,80356088,LM6,Nursing Care,P03,Wellbeing,CEDAR CARE HOMES LTD,02/07/2014,588,
Bath & North East Somerset Council,80356088,LM6,Nursing Care,P03,Wellbeing,CEDAR CARE HOMES LTD,02/07/2014,588,
Bath & North East Somerset Council,80356131,LM6,Nursing Care,P03,Wellbeing,CEDAR CARE HOMES LTD,02/07/2014,588,
Bath & North East Somerset Council,80356131,LM6,Nursing Care,P03,Wellbeing,CEDAR CARE HOMES LTD,02/07/2014,588,
Bath & North East Somerset Council,80356131,LM6,Nursing Care,P03,Wellbeing,CEDAR CARE HOMES LTD,02/07/2014,596.91,
Bath & North East Somerset Council,80356131,LM6,Nursing Care,P03,Wellbeing,CEDAR CARE HOMES LTD,02/07/2014,596.91,
Bath & North East Somerset Council,80356088,LM6,Nursing Care,P03,Wellbeing,CEDAR CARE HOMES LTD,02/07/2014,600,
Bath & North East Somerset Council,80356088,LM6,Nursing Care,P03,Wellbeing,CEDAR CARE HOMES LTD,02/07/2014,600,
Bath & North East Somerset Council,80356131,LM6,Nursing Care,P03,Wellbeing,CEDAR CARE HOMES LTD,02/07/2014,600,
Bath & North East Somerset Council,80356131,LM6,Nursing Care,P03,Wellbeing,CEDAR CARE HOMES LTD,02/07/2014,600,
Bath & North East Somerset Council,80356088,LM6,Nursing Care,P03,Wellbeing,CEDAR CARE HOMES LTD,02/07/2014,610,
Bath & North East Somerset Council,80356088,LM6,Nursing Care,P03,Wellbeing,CEDAR CARE HOMES LTD,02/07/2014,610,
Bath & North East Somerset Council,80356088,LM6,Nursing Care,P03,Wellbeing,CEDAR CARE HOMES LTD,02/07/2014,650,
Bath & North East Somerset Council,80356088,LM6,Nursing Care,P03,Wellbeing,CEDAR CARE HOMES LTD,02/07/2014,650,
Bath & North East Somerset Council,80356088,LM6,Nursing Care,P03,Wellbeing,CEDAR CARE HOMES LTD,02/07/2014,650,
Bath & North East Somerset Council,80356088,LM6,Nursing Care,P03,Wellbeing,CEDAR CARE HOMES LTD,02/07/2014,650,
Bath & North East Somerset Council,80356088,LM6,Nursing Care,P03,Wellbeing,CEDAR CARE HOMES LTD,02/07/2014,650,
Bath & North East Somerset Council,80356088,LM6,Nursing Care,P03,Wellbeing,CEDAR CARE HOMES LTD,02/07/2014,650,
Bath & North East Somerset Council,80356131,LM6,Nursing Care,P03,Wellbeing,CEDAR CARE HOMES LTD,02/07/2014,650,
Bath & North East Somerset Council,80356131,LM6,Nursing Care,P03,Wellbeing,CEDAR CARE HOMES LTD,02/07/2014,650,
Bath & North East Somerset Council,80356131,LM6,Nursing Care,P03,Wellbeing,CEDAR CARE HOMES LTD,02/07/2014,650,
Bath & North East Somerset Council,80356131,LM6,Nursing Care,P03,Wellbeing,CEDAR CARE HOMES LTD,02/07/2014,650,
Bath & North East Somerset Council,80356131,LM6,Nursing Care,P03,Wellbeing,CEDAR CARE HOMES LTD,02/07/2014,667,
Bath & North East Somerset Council,80356131,LM6,Nursing Care,P03,Wellbeing,CEDAR CARE HOMES LTD,02/07/2014,667,
Bath & North East Somerset Council,80356131,LM6,Nursing Care,P03,Wellbeing,CEDAR CARE HOMES LTD,02/07/2014,700,
Bath & North East Somerset Council,80356131,LM6,Nursing Care,P03,Wellbeing,CEDAR CARE HOMES LTD,02/07/2014,700,
Bath & North East Somerset Council,80356192,LM3,Residential Care,P03,Wellbeing,CEDAR CARE HOMES LTD,02/07/2014,700,
Bath & North East Somerset Council,80356192,LM6,Nursing Care,P03,Wellbeing,CEDAR CARE HOMES LTD,02/07/2014,700,
Bath & North East Somerset Council,80356192,LM3,Residential Care,P03,Wellbeing,CEDAR CARE HOMES LTD,02/07/2014,700,
Bath & North East Somerset Council,80356192,LM6,Nursing Care,P03,Wellbeing,CEDAR CARE HOMES LTD,02/07/2014,700,
Bath & North East Somerset Council,80356131,LM6,Nursing Care,P03,Wellbeing,CEDAR CARE HOMES LTD,02/07/2014,732.25,
Bath & North East Somerset Council,80356131,LM6,Nursing Care,P03,Wellbeing,CEDAR CARE HOMES LTD,02/07/2014,732.25,
Bath & North East Somerset Council,80356088,LM6,Nursing Care,P03,Wellbeing,CEDAR CARE HOMES LTD,02/07/2014,750,
Bath & North East Somerset Council,80356088,LM6,Nursing Care,P03,Wellbeing,CEDAR CARE HOMES LTD,02/07/2014,750,
Bath & North East Somerset Council,80356088,LM6,Nursing Care,P03,Wellbeing,CEDAR CARE HOMES LTD,02/07/2014,750,
Bath & North East Somerset Council,80356088,LM6,Nursing Care,P03,Wellbeing,CEDAR CARE HOMES LTD,02/07/2014,750,
Bath & North East Somerset Council,80356088,LM6,Nursing Care,P03,Wellbeing,CEDAR CARE HOMES LTD,02/07/2014,810,
Bath & North East Somerset Council,80356088,LM6,Nursing Care,P03,Wellbeing,CEDAR CARE HOMES LTD,02/07/2014,810,
Bath & North East Somerset Council,80356088,LM6,Nursing Care,P03,Wellbeing,CEDAR CARE HOMES LTD,02/07/2014,810,
Bath & North East Somerset Council,80356088,LM6,Nursing Care,P03,Wellbeing,CEDAR CARE HOMES LTD,02/07/2014,810,
Bath & North East Somerset Council,80356088,LM6,Nursing Care,P03,Wellbeing,CEDAR CARE HOMES LTD,02/07/2014,810,
Bath & North East Somerset Council,80356088,LM6,Nursing Care,P03,Wellbeing,CEDAR CARE HOMES LTD,02/07/2014,810,
Bath & North East Somerset Council,80356088,LM6,Nursing Care,P03,Wellbeing,CEDAR CARE HOMES LTD,02/07/2014,850,
Bath & North East Somerset Council,80356088,LM6,Nursing Care,P03,Wellbeing,CEDAR CARE HOMES LTD,02/07/2014,850,
Bath & North East Somerset Council,80356088,LM6,Nursing Care,P03,Wellbeing,CEDAR CARE HOMES LTD,02/07/2014,1300,
Bath & North East Somerset Council,80356088,LM6,Nursing Care,P03,Wellbeing,CEDAR CARE HOMES LTD,02/07/2014,1300,
Bath & North East Somerset Council,80356190,YF2,Fees & Charges,P03,Wellbeing,CEDAR PARK NURSING HOME,02/07/2014,77.85,
Bath & North East Somerset Council,80356190,YF2,Fees & Charges,P03,Wellbeing,CEDAR PARK NURSING HOME,02/07/2014,77.85,
Bath & North East Somerset Council,80356190,YF2,Fees & Charges,P03,Wellbeing,CEDAR PARK NURSING HOME,02/07/2014,77.85,
Bath & North East Somerset Council,80356190,YF2,Fees & Charges,P03,Wellbeing,CEDAR PARK NURSING HOME,02/07/2014,77.85,
Bath & North East Somerset Council,80356190,YF2,Fees & Charges,P03,Wellbeing,CEDAR PARK NURSING HOME,02/07/2014,77.85,
Bath & North East Somerset Council,80356190,YF2,Fees & Charges,P03,Wellbeing,CEDAR PARK NURSING HOME,02/07/2014,77.85,
Bath & North East Somerset Council,80356190,YF2,Fees & Charges,P03,Wellbeing,CEDAR PARK NURSING HOME,02/07/2014,77.85,
Bath & North East Somerset Council,80356190,YF2,Fees & Charges,P03,Wellbeing,CEDAR PARK NURSING HOME,02/07/2014,77.85,
Bath & North East Somerset Council,80356190,YF2,Fees & Charges,P03,Wellbeing,CEDAR PARK NURSING HOME,02/07/2014,77.85,
Bath & North East Somerset Council,80356190,YF2,Fees & Charges,P03,Wellbeing,CEDAR PARK NURSING HOME,02/07/2014,77.85,
Bath & North East Somerset Council,80356190,YF2,Fees & Charges,P03,Wellbeing,CEDAR PARK NURSING HOME,02/07/2014,77.85,
Bath & North East Somerset Council,80356190,YF2,Fees & Charges,P03,Wellbeing,CEDAR PARK NURSING HOME,02/07/2014,116.58,
Bath & North East Somerset Council,80356190,YF2,Fees & Charges,P03,Wellbeing,CEDAR PARK NURSING HOME,02/07/2014,116.58,
Bath & North East Somerset Council,80356190,YF2,Fees & Charges,P03,Wellbeing,CEDAR PARK NURSING HOME,02/07/2014,116.58,
Bath & North East Somerset Council,80356190,YF2,Fees & Charges,P03,Wellbeing,CEDAR PARK NURSING HOME,02/07/2014,116.58,
Bath & North East Somerset Council,80356190,YF2,Fees & Charges,P03,Wellbeing,CEDAR PARK NURSING HOME,02/07/2014,116.58,
Bath & North East Somerset Council,80356190,YF2,Fees & Charges,P03,Wellbeing,CEDAR PARK NURSING HOME,02/07/2014,116.58,
Bath & North East Somerset Council,80356190,YF2,Fees & Charges,P03,Wellbeing,CEDAR PARK NURSING HOME,02/07/2014,116.58,
Bath & North East Somerset Council,80356190,YF2,Fees & Charges,P03,Wellbeing,CEDAR PARK NURSING HOME,02/07/2014,116.58,
Bath & North East Somerset Council,80356190,YF2,Fees & Charges,P03,Wellbeing,CEDAR PARK NURSING HOME,02/07/2014,116.58,
Bath & North East Somerset Council,80356190,YF2,Fees & Charges,P03,Wellbeing,CEDAR PARK NURSING HOME,02/07/2014,116.58,
Bath & North East Somerset Council,80356190,YF2,Fees & Charges,P03,Wellbeing,CEDAR PARK NURSING HOME,02/07/2014,116.58,
Bath & North East Somerset Council,80356190,YF2,Fees & Charges,P03,Wellbeing,CEDAR PARK NURSING HOME,02/07/2014,122.5,
Bath & North East Somerset Council,80356190,YF2,Fees & Charges,P03,Wellbeing,CEDAR PARK NURSING HOME,02/07/2014,122.5,
Bath & North East Somerset Council,80356190,YF2,Fees & Charges,P03,Wellbeing,CEDAR PARK NURSING HOME,02/07/2014,122.5,
Bath & North East Somerset Council,80356190,YF2,Fees & Charges,P03,Wellbeing,CEDAR PARK NURSING HOME,02/07/2014,122.5,
Bath & North East Somerset Council,80356190,YF2,Fees & Charges,P03,Wellbeing,CEDAR PARK NURSING HOME,02/07/2014,122.5,
Bath & North East Somerset Council,80356190,YF2,Fees & Charges,P03,Wellbeing,CEDAR PARK NURSING HOME,02/07/2014,122.5,
Bath & North East Somerset Council,80356190,YF2,Fees & Charges,P03,Wellbeing,CEDAR PARK NURSING HOME,02/07/2014,122.5,
Bath & North East Somerset Council,80356190,YF2,Fees & Charges,P03,Wellbeing,CEDAR PARK NURSING HOME,02/07/2014,122.5,
Bath & North East Somerset Council,80356190,YF2,Fees & Charges,P03,Wellbeing,CEDAR PARK NURSING HOME,02/07/2014,122.5,
Bath & North East Somerset Council,80356190,YF2,Fees & Charges,P03,Wellbeing,CEDAR PARK NURSING HOME,02/07/2014,122.5,
Bath & North East Somerset Council,80356190,YF2,Fees & Charges,P03,Wellbeing,CEDAR PARK NURSING HOME,02/07/2014,122.5,
Bath & North East Somerset Council,80356190,YF2,Fees & Charges,P03,Wellbeing,CEDAR PARK NURSING HOME,02/07/2014,122.5,
Bath & North East Somerset Council,80356190,YF2,Fees & Charges,P03,Wellbeing,CEDAR PARK NURSING HOME,02/07/2014,122.5,
Bath & North East Somerset Council,80356190,YF2,Fees & Charges,P03,Wellbeing,CEDAR PARK NURSING HOME,02/07/2014,122.5,
Bath & North East Somerset Council,80356190,YF2,Fees & Charges,P03,Wellbeing,CEDAR PARK NURSING HOME,02/07/2014,122.5,
Bath & North East Somerset Council,80356190,YF2,Fees & Charges,P03,Wellbeing,CEDAR PARK NURSING HOME,02/07/2014,122.5,
Bath & North East Somerset Council,80356190,YF2,Fees & Charges,P03,Wellbeing,CEDAR PARK NURSING HOME,02/07/2014,122.5,
Bath & North East Somerset Council,80356190,YF2,Fees & Charges,P03,Wellbeing,CEDAR PARK NURSING HOME,02/07/2014,122.5,
Bath & North East Somerset Council,80356190,YF2,Fees & Charges,P03,Wellbeing,CEDAR PARK NURSING HOME,02/07/2014,122.5,
Bath & North East Somerset Council,80356190,YF2,Fees & Charges,P03,Wellbeing,CEDAR PARK NURSING HOME,02/07/2014,122.5,
Bath & North East Somerset Council,80356190,YF2,Fees & Charges,P03,Wellbeing,CEDAR PARK NURSING HOME,02/07/2014,122.5,
Bath & North East Somerset Council,80356190,YF2,Fees & Charges,P03,Wellbeing,CEDAR PARK NURSING HOME,02/07/2014,122.5,
Bath & North East Somerset Council,80356190,YF2,Fees & Charges,P03,Wellbeing,CEDAR PARK NURSING HOME,02/07/2014,122.5,
Bath & North East Somerset Council,80356190,YF2,Fees & Charges,P03,Wellbeing,CEDAR PARK NURSING HOME,02/07/2014,122.5,
Bath & North East Somerset Council,80356190,YF2,Fees & Charges,P03,Wellbeing,CEDAR PARK NURSING HOME,02/07/2014,122.5,
Bath & North East Somerset Council,80356190,YF2,Fees & Charges,P03,Wellbeing,CEDAR PARK NURSING HOME,02/07/2014,122.5,
Bath & North East Somerset Council,80356190,YF2,Fees & Charges,P03,Wellbeing,CEDAR PARK NURSING HOME,02/07/2014,122.5,
Bath & North East Somerset Council,80356190,YF2,Fees & Charges,P03,Wellbeing,CEDAR PARK NURSING HOME,02/07/2014,122.5,
Bath & North East Somerset Council,80356190,YF2,Fees & Charges,P03,Wellbeing,CEDAR PARK NURSING HOME,02/07/2014,122.5,
Bath & North East Somerset Council,80356190,YF2,Fees & Charges,P03,Wellbeing,CEDAR PARK NURSING HOME,02/07/2014,122.5,
Bath & North East Somerset Council,80356190,YF2,Fees & Charges,P03,Wellbeing,CEDAR PARK NURSING HOME,02/07/2014,122.5,
Bath & North East Somerset Council,80356190,YF2,Fees & Charges,P03,Wellbeing,CEDAR PARK NURSING HOME,02/07/2014,122.5,
Bath & North East Somerset Council,80356190,YF2,Fees & Charges,P03,Wellbeing,CEDAR PARK NURSING HOME,02/07/2014,122.5,
Bath & North East Somerset Council,80356190,YF2,Fees & Charges,P03,Wellbeing,CEDAR PARK NURSING HOME,02/07/2014,122.5,
Bath & North East Somerset Council,80356190,YF2,Fees & Charges,P03,Wellbeing,CEDAR PARK NURSING HOME,02/07/2014,122.5,
Bath & North East Somerset Council,80356190,YF2,Fees & Charges,P03,Wellbeing,CEDAR PARK NURSING HOME,02/07/2014,122.5,
Bath & North East Somerset Council,80356190,YF2,Fees & Charges,P03,Wellbeing,CEDAR PARK NURSING HOME,02/07/2014,122.5,
Bath & North East Somerset Council,80356190,YF2,Fees & Charges,P03,Wellbeing,CEDAR PARK NURSING HOME,02/07/2014,122.5,
Bath & North East Somerset Council,80356190,YF2,Fees & Charges,P03,Wellbeing,CEDAR PARK NURSING HOME,02/07/2014,122.5,
Bath & North East Somerset Council,80356190,YF2,Fees & Charges,P03,Wellbeing,CEDAR PARK NURSING HOME,02/07/2014,122.5,
Bath & North East Somerset Council,80356190,YF2,Fees & Charges,P03,Wellbeing,CEDAR PARK NURSING HOME,02/07/2014,122.5,
Bath & North East Somerset Council,80356190,YF2,Fees & Charges,P03,Wellbeing,CEDAR PARK NURSING HOME,02/07/2014,122.5,
Bath & North East Somerset Council,80356190,YF2,Fees & Charges,P03,Wellbeing,CEDAR PARK NURSING HOME,02/07/2014,122.5,
Bath & North East Somerset Council,80356190,YF2,Fees & Charges,P03,Wellbeing,CEDAR PARK NURSING HOME,02/07/2014,122.5,
Bath & North East Somerset Council,80356190,YF2,Fees & Charges,P03,Wellbeing,CEDAR PARK NURSING HOME,02/07/2014,122.5,
Bath & North East Somerset Council,80356190,YF2,Fees & Charges,P03,Wellbeing,CEDAR PARK NURSING HOME,02/07/2014,122.5,
Bath & North East Somerset Council,80356190,YF2,Fees & Charges,P03,Wellbeing,CEDAR PARK NURSING HOME,02/07/2014,122.5,
Bath & North East Somerset Council,80356190,YF2,Fees & Charges,P03,Wellbeing,CEDAR PARK NURSING HOME,02/07/2014,122.5,
Bath & North East Somerset Council,80356190,YF2,Fees & Charges,P03,Wellbeing,CEDAR PARK NURSING HOME,02/07/2014,122.5,
Bath & North East Somerset Council,80356190,YF2,Fees & Charges,P03,Wellbeing,CEDAR PARK NURSING HOME,02/07/2014,122.5,
Bath & North East Somerset Council,80356190,YF2,Fees & Charges,P03,Wellbeing,CEDAR PARK NURSING HOME,02/07/2014,122.5,
Bath & North East Somerset Council,80356190,YF2,Fees & Charges,P03,Wellbeing,CEDAR PARK NURSING HOME,02/07/2014,122.5,
Bath & North East Somerset Council,80356190,YF2,Fees & Charges,P03,Wellbeing,CEDAR PARK NURSING HOME,02/07/2014,124.95,
Bath & North East Somerset Council,80356190,YF2,Fees & Charges,P03,Wellbeing,CEDAR PARK NURSING HOME,02/07/2014,124.95,
Bath & North East Somerset Council,80356190,YF2,Fees & Charges,P03,Wellbeing,CEDAR PARK NURSING HOME,02/07/2014,124.95,
Bath & North East Somerset Council,80356190,YF2,Fees & Charges,P03,Wellbeing,CEDAR PARK NURSING HOME,02/07/2014,124.95,
Bath & North East Somerset Council,80356190,YF2,Fees & Charges,P03,Wellbeing,CEDAR PARK NURSING HOME,02/07/2014,124.95,
Bath & North East Somerset Council,80356190,YF2,Fees & Charges,P03,Wellbeing,CEDAR PARK NURSING HOME,02/07/2014,124.95,
Bath & North East Somerset Council,80356190,YF2,Fees & Charges,P03,Wellbeing,CEDAR PARK NURSING HOME,02/07/2014,124.95,
Bath & North East Somerset Council,80356190,YF2,Fees & Charges,P03,Wellbeing,CEDAR PARK NURSING HOME,02/07/2014,124.95,
Bath & North East Somerset Council,80356190,YF2,Fees & Charges,P03,Wellbeing,CEDAR PARK NURSING HOME,02/07/2014,124.95,
Bath & North East Somerset Council,80356190,YF2,Fees & Charges,P03,Wellbeing,CEDAR PARK NURSING HOME,02/07/2014,124.95,
Bath & North East Somerset Council,80356190,YF2,Fees & Charges,P03,Wellbeing,CEDAR PARK NURSING HOME,02/07/2014,124.95,
Bath & North East Somerset Council,80356190,LM3,Residential Care,P03,Wellbeing,CEDAR PARK NURSING HOME,02/07/2014,486,
Bath & North East Somerset Council,80356190,LM3,Residential Care,P03,Wellbeing,CEDAR PARK NURSING HOME,02/07/2014,486,
Bath & North East Somerset Council,80356190,LM6,Nursing Care,P03,Wellbeing,CEDAR PARK NURSING HOME,02/07/2014,564,
Bath & North East Somerset Council,80356190,LM6,Nursing Care,P03,Wellbeing,CEDAR PARK NURSING HOME,02/07/2014,564,
Bath & North East Somerset Council,80356190,LM6,Nursing Care,P03,Wellbeing,CEDAR PARK NURSING HOME,02/07/2014,564,
Bath & North East Somerset Council,80356190,LM6,Nursing Care,P03,Wellbeing,CEDAR PARK NURSING HOME,02/07/2014,564,
Bath & North East Somerset Council,80356190,LM6,Nursing Care,P03,Wellbeing,CEDAR PARK NURSING HOME,02/07/2014,564,
Bath & North East Somerset Council,80356190,LM6,Nursing Care,P03,Wellbeing,CEDAR PARK NURSING HOME,02/07/2014,564,
Bath & North East Somerset Council,80356190,LM6,Nursing Care,P03,Wellbeing,CEDAR PARK NURSING HOME,02/07/2014,564,
Bath & North East Somerset Council,80356190,LM6,Nursing Care,P03,Wellbeing,CEDAR PARK NURSING HOME,02/07/2014,564,
Bath & North East Somerset Council,80356190,LM6,Nursing Care,P03,Wellbeing,CEDAR PARK NURSING HOME,02/07/2014,564,
Bath & North East Somerset Council,80356190,LM6,Nursing Care,P03,Wellbeing,CEDAR PARK NURSING HOME,02/07/2014,564,
Bath & North East Somerset Council,80356190,LM6,Nursing Care,P03,Wellbeing,CEDAR PARK NURSING HOME,02/07/2014,564,
Bath & North East Somerset Council,80356190,LM6,Nursing Care,P03,Wellbeing,CEDAR PARK NURSING HOME,02/07/2014,564,
Bath & North East Somerset Council,80356190,LM6,Nursing Care,P03,Wellbeing,CEDAR PARK NURSING HOME,02/07/2014,564,
Bath & North East Somerset Council,80356190,LM6,Nursing Care,P03,Wellbeing,CEDAR PARK NURSING HOME,02/07/2014,564,
Bath & North East Somerset Council,80356190,LM6,Nursing Care,P03,Wellbeing,CEDAR PARK NURSING HOME,02/07/2014,564,
Bath & North East Somerset Council,80356190,LM6,Nursing Care,P03,Wellbeing,CEDAR PARK NURSING HOME,02/07/2014,564,
Bath & North East Somerset Council,80356190,LM6,Nursing Care,P03,Wellbeing,CEDAR PARK NURSING HOME,02/07/2014,564,
Bath & North East Somerset Council,80356190,LM6,Nursing Care,P03,Wellbeing,CEDAR PARK NURSING HOME,02/07/2014,564,
Bath & North East Somerset Council,80356190,LM6,Nursing Care,P03,Wellbeing,CEDAR PARK NURSING HOME,02/07/2014,564,
Bath & North East Somerset Council,80356190,LM6,Nursing Care,P03,Wellbeing,CEDAR PARK NURSING HOME,02/07/2014,564,
Bath & North East Somerset Council,80356190,LM6,Nursing Care,P03,Wellbeing,CEDAR PARK NURSING HOME,02/07/2014,564,
Bath & North East Somerset Council,80356190,LM6,Nursing Care,P03,Wellbeing,CEDAR PARK NURSING HOME,02/07/2014,564,
Bath & North East Somerset Council,80356190,LM6,Nursing Care,P03,Wellbeing,CEDAR PARK NURSING HOME,02/07/2014,564,
Bath & North East Somerset Council,80356190,LM6,Nursing Care,P03,Wellbeing,CEDAR PARK NURSING HOME,02/07/2014,564,
Bath & North East Somerset Council,80356190,LM6,Nursing Care,P03,Wellbeing,CEDAR PARK NURSING HOME,02/07/2014,564,
Bath & North East Somerset Council,80356190,LM6,Nursing Care,P03,Wellbeing,CEDAR PARK NURSING HOME,02/07/2014,564,
Bath & North East Somerset Council,80356190,LM6,Nursing Care,P03,Wellbeing,CEDAR PARK NURSING HOME,02/07/2014,564,
Bath & North East Somerset Council,80356190,LM6,Nursing Care,P03,Wellbeing,CEDAR PARK NURSING HOME,02/07/2014,564,
Bath & North East Somerset Council,80356190,LM6,Nursing Care,P03,Wellbeing,CEDAR PARK NURSING HOME,02/07/2014,564,
Bath & North East Somerset Council,80356190,LM6,Nursing Care,P03,Wellbeing,CEDAR PARK NURSING HOME,02/07/2014,564,
Bath & North East Somerset Council,80356190,LM6,Nursing Care,P03,Wellbeing,CEDAR PARK NURSING HOME,02/07/2014,564,
Bath & North East Somerset Council,80356190,LM6,Nursing Care,P03,Wellbeing,CEDAR PARK NURSING HOME,02/07/2014,564,
Bath & North East Somerset Council,80356190,LM6,Nursing Care,P03,Wellbeing,CEDAR PARK NURSING HOME,02/07/2014,564,
Bath & North East Somerset Council,80356190,LM6,Nursing Care,P03,Wellbeing,CEDAR PARK NURSING HOME,02/07/2014,564,
Bath & North East Somerset Council,80356190,LM6,Nursing Care,P03,Wellbeing,CEDAR PARK NURSING HOME,02/07/2014,564,
Bath & North East Somerset Council,80356190,LM6,Nursing Care,P03,Wellbeing,CEDAR PARK NURSING HOME,02/07/2014,564,
Bath & North East Somerset Council,80356190,LM6,Nursing Care,P03,Wellbeing,CEDAR PARK NURSING HOME,02/07/2014,564,
Bath & North East Somerset Council,80356190,LM6,Nursing Care,P03,Wellbeing,CEDAR PARK NURSING HOME,02/07/2014,564,
Bath & North East Somerset Council,80356190,LM6,Nursing Care,P03,Wellbeing,CEDAR PARK NURSING HOME,02/07/2014,564,
Bath & North East Somerset Council,80356190,LM6,Nursing Care,P03,Wellbeing,CEDAR PARK NURSING HOME,02/07/2014,564,
Bath & North East Somerset Council,80356190,LM6,Nursing Care,P03,Wellbeing,CEDAR PARK NURSING HOME,02/07/2014,564,
Bath & North East Somerset Council,80356190,LM6,Nursing Care,P03,Wellbeing,CEDAR PARK NURSING HOME,02/07/2014,564,
Bath & North East Somerset Council,80356190,LM6,Nursing Care,P03,Wellbeing,CEDAR PARK NURSING HOME,02/07/2014,564,
Bath & North East Somerset Council,80356190,LM6,Nursing Care,P03,Wellbeing,CEDAR PARK NURSING HOME,02/07/2014,564,
Bath & North East Somerset Council,80356190,LM6,Nursing Care,P03,Wellbeing,CEDAR PARK NURSING HOME,02/07/2014,588,
Bath & North East Somerset Council,80356190,LM6,Nursing Care,P03,Wellbeing,CEDAR PARK NURSING HOME,02/07/2014,588,
Bath & North East Somerset Council,80356190,LM6,Nursing Care,P03,Wellbeing,CEDAR PARK NURSING HOME,02/07/2014,588,
Bath & North East Somerset Council,80356190,LM6,Nursing Care,P03,Wellbeing,CEDAR PARK NURSING HOME,02/07/2014,588,
Bath & North East Somerset Council,80356190,LM6,Nursing Care,P03,Wellbeing,CEDAR PARK NURSING HOME,02/07/2014,602,
Bath & North East Somerset Council,80356190,LM6,Nursing Care,P03,Wellbeing,CEDAR PARK NURSING HOME,02/07/2014,602,
Bath & North East Somerset Council,80356190,LM6,Nursing Care,P03,Wellbeing,CEDAR PARK NURSING HOME,02/07/2014,650,
Bath & North East Somerset Council,80356190,LM6,Nursing Care,P03,Wellbeing,CEDAR PARK NURSING HOME,02/07/2014,650,
Bath & North East Somerset Council,80356190,LM6,Nursing Care,P03,Wellbeing,CEDAR PARK NURSING HOME,02/07/2014,650,
Bath & North East Somerset Council,80356190,LM6,Nursing Care,P03,Wellbeing,CEDAR PARK NURSING HOME,02/07/2014,650,
Bath & North East Somerset Council,80356190,LM6,Nursing Care,P03,Wellbeing,CEDAR PARK NURSING HOME,02/07/2014,650,
Bath & North East Somerset Council,80356190,LM6,Nursing Care,P03,Wellbeing,CEDAR PARK NURSING HOME,02/07/2014,650,
Bath & North East Somerset Council,80356190,LM6,Nursing Care,P03,Wellbeing,CEDAR PARK NURSING HOME,02/07/2014,650,
Bath & North East Somerset Council,80356190,LM6,Nursing Care,P03,Wellbeing,CEDAR PARK NURSING HOME,02/07/2014,650,
Bath & North East Somerset Council,80356190,LM6,Nursing Care,P03,Wellbeing,CEDAR PARK NURSING HOME,02/07/2014,700,
Bath & North East Somerset Council,80356190,LM6,Nursing Care,P03,Wellbeing,CEDAR PARK NURSING HOME,02/07/2014,700,
Bath & North East Somerset Council,80356138,LM6,Nursing Care,P03,Wellbeing,CEDARS CARE (WINSCOMBE HALL) LTD,02/07/2014,597,
Bath & North East Somerset Council,80356138,LM6,Nursing Care,P03,Wellbeing,CEDARS CARE (WINSCOMBE HALL) LTD,02/07/2014,597,
Bath & North East Somerset Council,80356138,LM6,Nursing Care,P03,Wellbeing,CEDARS CARE (WINSCOMBE HALL) LTD,02/07/2014,646,
Bath & North East Somerset Council,80356138,LM6,Nursing Care,P03,Wellbeing,CEDARS CARE (WINSCOMBE HALL) LTD,02/07/2014,646,
Bath & North East Somerset Council,80356138,LM6,Nursing Care,P03,Wellbeing,CEDARS CARE (WINSCOMBE HALL) LTD,02/07/2014,646.38,
Bath & North East Somerset Council,80356138,LM6,Nursing Care,P03,Wellbeing,CEDARS CARE (WINSCOMBE HALL) LTD,02/07/2014,646.38,
Bath & North East Somerset Council,80356165,LM6,Nursing Care,P03,Wellbeing,CHERRY GARDEN PROPERTIES LTD,02/07/2014,564,
Bath & North East Somerset Council,80356165,LM6,Nursing Care,P03,Wellbeing,CHERRY GARDEN PROPERTIES LTD,02/07/2014,564,
Bath & North East Somerset Council,80356165,LM6,Nursing Care,P03,Wellbeing,CHERRY GARDEN PROPERTIES LTD,02/07/2014,564,
Bath & North East Somerset Council,80356165,LM6,Nursing Care,P03,Wellbeing,CHERRY GARDEN PROPERTIES LTD,02/07/2014,564,
Bath & North East Somerset Council,80356165,LM6,Nursing Care,P03,Wellbeing,CHERRY GARDEN PROPERTIES LTD,02/07/2014,564,
Bath & North East Somerset Council,80356165,LM6,Nursing Care,P03,Wellbeing,CHERRY GARDEN PROPERTIES LTD,02/07/2014,564,
Bath & North East Somerset Council,80356165,LM6,Nursing Care,P03,Wellbeing,CHERRY GARDEN PROPERTIES LTD,02/07/2014,564,
Bath & North East Somerset Council,80356165,LM6,Nursing Care,P03,Wellbeing,CHERRY GARDEN PROPERTIES LTD,02/07/2014,564,
Bath & North East Somerset Council,80356165,LM6,Nursing Care,P03,Wellbeing,CHERRY GARDEN PROPERTIES LTD,02/07/2014,564,
Bath & North East Somerset Council,80356165,LM6,Nursing Care,P03,Wellbeing,CHERRY GARDEN PROPERTIES LTD,02/07/2014,564,
Bath & North East Somerset Council,80356165,LM6,Nursing Care,P03,Wellbeing,CHERRY GARDEN PROPERTIES LTD,02/07/2014,564,
Bath & North East Somerset Council,80356165,LM6,Nursing Care,P03,Wellbeing,CHERRY GARDEN PROPERTIES LTD,02/07/2014,564,
Bath & North East Somerset Council,80356165,LM6,Nursing Care,P03,Wellbeing,CHERRY GARDEN PROPERTIES LTD,02/07/2014,564,
Bath & North East Somerset Council,80356165,LM6,Nursing Care,P03,Wellbeing,CHERRY GARDEN PROPERTIES LTD,02/07/2014,564,
Bath & North East Somerset Council,80356165,LM6,Nursing Care,P03,Wellbeing,CHERRY GARDEN PROPERTIES LTD,02/07/2014,564,
Bath & North East Somerset Council,80356165,LM6,Nursing Care,P03,Wellbeing,CHERRY GARDEN PROPERTIES LTD,02/07/2014,564,
Bath & North East Somerset Council,80356165,LM6,Nursing Care,P03,Wellbeing,CHERRY GARDEN PROPERTIES LTD,02/07/2014,564,
Bath & North East Somerset Council,80356165,LM6,Nursing Care,P03,Wellbeing,CHERRY GARDEN PROPERTIES LTD,02/07/2014,564,
Bath & North East Somerset Council,80356165,LM6,Nursing Care,P03,Wellbeing,CHERRY GARDEN PROPERTIES LTD,02/07/2014,564,
Bath & North East Somerset Council,80356165,LM6,Nursing Care,P03,Wellbeing,CHERRY GARDEN PROPERTIES LTD,02/07/2014,564,
Bath & North East Somerset Council,80356165,LM6,Nursing Care,P03,Wellbeing,CHERRY GARDEN PROPERTIES LTD,02/07/2014,564,
Bath & North East Somerset Council,80356165,LM6,Nursing Care,P03,Wellbeing,CHERRY GARDEN PROPERTIES LTD,02/07/2014,564,
Bath & North East Somerset Council,80356165,LM6,Nursing Care,P03,Wellbeing,CHERRY GARDEN PROPERTIES LTD,02/07/2014,564,
Bath & North East Somerset Council,80356165,LM6,Nursing Care,P03,Wellbeing,CHERRY GARDEN PROPERTIES LTD,02/07/2014,564,
Bath & North East Somerset Council,80356197,YF2,Fees & Charges,P03,Wellbeing,CHESCOMBE TRUST,02/07/2014,77.85,
Bath & North East Somerset Council,80356197,YF2,Fees & Charges,P03,Wellbeing,CHESCOMBE TRUST,02/07/2014,77.85,
Bath & North East Somerset Council,80356197,YF2,Fees & Charges,P03,Wellbeing,CHESCOMBE TRUST,02/07/2014,77.85,
Bath & North East Somerset Council,80356197,YF2,Fees & Charges,P03,Wellbeing,CHESCOMBE TRUST,02/07/2014,77.85,
Bath & North East Somerset Council,80356197,YF2,Fees & Charges,P03,Wellbeing,CHESCOMBE TRUST,02/07/2014,77.85,
Bath & North East Somerset Council,80356197,YF2,Fees & Charges,P03,Wellbeing,CHESCOMBE TRUST,02/07/2014,77.85,
Bath & North East Somerset Council,80356197,YF2,Fees & Charges,P03,Wellbeing,CHESCOMBE TRUST,02/07/2014,77.85,
Bath & North East Somerset Council,80356197,YF2,Fees & Charges,P03,Wellbeing,CHESCOMBE TRUST,02/07/2014,77.85,
Bath & North East Somerset Council,80356197,YF2,Fees & Charges,P03,Wellbeing,CHESCOMBE TRUST,02/07/2014,77.85,
Bath & North East Somerset Council,80356197,YF2,Fees & Charges,P03,Wellbeing,CHESCOMBE TRUST,02/07/2014,77.85,
Bath & North East Somerset Council,80356197,YF2,Fees & Charges,P03,Wellbeing,CHESCOMBE TRUST,02/07/2014,77.85,
Bath & North East Somerset Council,80356197,LM3,Residential Care,P03,Wellbeing,CHESCOMBE TRUST,02/07/2014,907.91,
Bath & North East Somerset Council,80356197,LM3,Residential Care,P03,Wellbeing,CHESCOMBE TRUST,02/07/2014,907.91,
Bath & North East Somerset Council,80356094,LM3,Residential Care,P03,Wellbeing,CHOICE LTD,02/07/2014,2074.51,
Bath & North East Somerset Council,80356094,LM3,Residential Care,P03,Wellbeing,CHOICE LTD,02/07/2014,2074.51,
Bath & North East Somerset Council,80356090,YF2,Fees & Charges,P03,Wellbeing,CHOLWELL HOUSE NURSING HOME,02/07/2014,123.95,
Bath & North East Somerset Council,80356090,YF2,Fees & Charges,P03,Wellbeing,CHOLWELL HOUSE NURSING HOME,02/07/2014,123.95,
Bath & North East Somerset Council,80356090,LM6,Nursing Care,P03,Wellbeing,CHOLWELL HOUSE NURSING HOME,02/07/2014,210,
Bath & North East Somerset Council,80356090,LM6,Nursing Care,P03,Wellbeing,CHOLWELL HOUSE NURSING HOME,02/07/2014,210,
Bath & North East Somerset Council,80356090,LM6,Nursing Care,P03,Wellbeing,CHOLWELL HOUSE NURSING HOME,02/07/2014,310.71,
Bath & North East Somerset Council,80356090,LM6,Nursing Care,P03,Wellbeing,CHOLWELL HOUSE NURSING HOME,02/07/2014,517.86,
Bath & North East Somerset Council,80356090,LM6,Nursing Care,P03,Wellbeing,CHOLWELL HOUSE NURSING HOME,02/07/2014,625,
Bath & North East Somerset Council,80356090,LM6,Nursing Care,P03,Wellbeing,CHOLWELL HOUSE NURSING HOME,02/07/2014,625,
Bath & North East Somerset Council,80356090,LM6,Nursing Care,P03,Wellbeing,CHOLWELL HOUSE NURSING HOME,02/07/2014,675,
Bath & North East Somerset Council,80356090,LM6,Nursing Care,P03,Wellbeing,CHOLWELL HOUSE NURSING HOME,02/07/2014,675,
Bath & North East Somerset Council,80356090,LM6,Nursing Care,P03,Wellbeing,CHOLWELL HOUSE NURSING HOME,02/07/2014,675,
Bath & North East Somerset Council,80356090,LM6,Nursing Care,P03,Wellbeing,CHOLWELL HOUSE NURSING HOME,02/07/2014,675,
Bath & North East Somerset Council,80356116,LM3,Residential Care,P03,Wellbeing,CLEEVE LODGE CARE LTD,02/07/2014,443,
Bath & North East Somerset Council,80356116,LM3,Residential Care,P03,Wellbeing,CLEEVE LODGE CARE LTD,02/07/2014,443,
Bath & North East Somerset Council,80356220,LM3,Residential Care,P03,Wellbeing,COCKLEBURY FARMHOUSE,02/07/2014,985.3,
Bath & North East Somerset Council,80356220,LM3,Residential Care,P03,Wellbeing,COCKLEBURY FARMHOUSE,02/07/2014,985.3,
Bath & North East Somerset Council,80356096,LL3,Supported Living,P03,Wellbeing,COMMUNITY OF ST ANTONY & ST ELIAS & REV FR BGPR &,02/07/2014,1780,
Bath & North East Somerset Council,80356096,LL3,Supported Living,P03,Wellbeing,COMMUNITY OF ST ANTONY & ST ELIAS & REV FR BGPR &,02/07/2014,1780,
Bath & North East Somerset Council,80356146,YF2,Fees & Charges,P03,Wellbeing,COMMUNITY THERAPEUTIC SERVICES LTD,02/07/2014,87.35,
Bath & North East Somerset Council,80356146,YF2,Fees & Charges,P03,Wellbeing,COMMUNITY THERAPEUTIC SERVICES LTD,02/07/2014,87.35,
Bath & North East Somerset Council,80356146,YF2,Fees & Charges,P03,Wellbeing,COMMUNITY THERAPEUTIC SERVICES LTD,02/07/2014,87.35,
Bath & North East Somerset Council,80356146,YF2,Fees & Charges,P03,Wellbeing,COMMUNITY THERAPEUTIC SERVICES LTD,02/07/2014,87.35,
Bath & North East Somerset Council,80356146,YF2,Fees & Charges,P03,Wellbeing,COMMUNITY THERAPEUTIC SERVICES LTD,02/07/2014,87.35,
Bath & North East Somerset Council,80356146,YF2,Fees & Charges,P03,Wellbeing,COMMUNITY THERAPEUTIC SERVICES LTD,02/07/2014,87.35,
Bath & North East Somerset Council,80356146,YF2,Fees & Charges,P03,Wellbeing,COMMUNITY THERAPEUTIC SERVICES LTD,02/07/2014,87.35,
Bath & North East Somerset Council,80356146,YF2,Fees & Charges,P03,Wellbeing,COMMUNITY THERAPEUTIC SERVICES LTD,02/07/2014,87.35,
Bath & North East Somerset Council,80356146,YF2,Fees & Charges,P03,Wellbeing,COMMUNITY THERAPEUTIC SERVICES LTD,02/07/2014,87.35,
Bath & North East Somerset Council,80356146,YF2,Fees & Charges,P03,Wellbeing,COMMUNITY THERAPEUTIC SERVICES LTD,02/07/2014,87.35,
Bath & North East Somerset Council,80356146,YF2,Fees & Charges,P03,Wellbeing,COMMUNITY THERAPEUTIC SERVICES LTD,02/07/2014,87.35,
Bath & North East Somerset Council,80356146,LM3,Residential Care,P03,Wellbeing,COMMUNITY THERAPEUTIC SERVICES LTD,02/07/2014,2637.83,
Bath & North East Somerset Council,80356146,LM3,Residential Care,P03,Wellbeing,COMMUNITY THERAPEUTIC SERVICES LTD,02/07/2014,2637.83,
Bath & North East Somerset Council,80356124,YF2,Fees & Charges,P03,Wellbeing,CONSENSUS SUPPORT SERVICES LTD,02/07/2014,77.85,
Bath & North East Somerset Council,80356124,YF2,Fees & Charges,P03,Wellbeing,CONSENSUS SUPPORT SERVICES LTD,02/07/2014,77.85,
Bath & North East Somerset Council,80356124,YF2,Fees & Charges,P03,Wellbeing,CONSENSUS SUPPORT SERVICES LTD,02/07/2014,77.85,
Bath & North East Somerset Council,80356124,YF2,Fees & Charges,P03,Wellbeing,CONSENSUS SUPPORT SERVICES LTD,02/07/2014,77.85,
Bath & North East Somerset Council,80356124,YF2,Fees & Charges,P03,Wellbeing,CONSENSUS SUPPORT SERVICES LTD,02/07/2014,77.85,
Bath & North East Somerset Council,80356124,YF2,Fees & Charges,P03,Wellbeing,CONSENSUS SUPPORT SERVICES LTD,02/07/2014,77.85,
Bath & North East Somerset Council,80356124,YF2,Fees & Charges,P03,Wellbeing,CONSENSUS SUPPORT SERVICES LTD,02/07/2014,77.85,
Bath & North East Somerset Council,80356124,YF2,Fees & Charges,P03,Wellbeing,CONSENSUS SUPPORT SERVICES LTD,02/07/2014,77.85,
Bath & North East Somerset Council,80356124,YF2,Fees & Charges,P03,Wellbeing,CONSENSUS SUPPORT SERVICES LTD,02/07/2014,77.85,
Bath & North East Somerset Council,80356124,YF2,Fees & Charges,P03,Wellbeing,CONSENSUS SUPPORT SERVICES LTD,02/07/2014,77.85,
Bath & North East Somerset Council,80356124,YF2,Fees & Charges,P03,Wellbeing,CONSENSUS SUPPORT SERVICES LTD,02/07/2014,77.85,
Bath & North East Somerset Council,80356124,LM3,Residential Care,P03,Wellbeing,CONSENSUS SUPPORT SERVICES LTD,02/07/2014,1917.74,
Bath & North East Somerset Council,80356124,LM3,Residential Care,P03,Wellbeing,CONSENSUS SUPPORT SERVICES LTD,02/07/2014,1917.74,
Bath & North East Somerset Council,80356124,LM3,Residential Care,P03,Wellbeing,CONSENSUS SUPPORT SERVICES LTD,02/07/2014,1956.88,
Bath & North East Somerset Council,80356124,LM3,Residential Care,P03,Wellbeing,CONSENSUS SUPPORT SERVICES LTD,02/07/2014,1956.88,
Bath & North East Somerset Council,80356124,LM3,Residential Care,P03,Wellbeing,CONSENSUS SUPPORT SERVICES LTD,02/07/2014,1996.01,
Bath & North East Somerset Council,80356124,LM3,Residential Care,P03,Wellbeing,CONSENSUS SUPPORT SERVICES LTD,02/07/2014,1996.01,
Bath & North East Somerset Council,80356124,LM3,Residential Care,P03,Wellbeing,CONSENSUS SUPPORT SERVICES LTD,02/07/2014,1996.01,
Bath & North East Somerset Council,80356124,LM3,Residential Care,P03,Wellbeing,CONSENSUS SUPPORT SERVICES LTD,02/07/2014,1996.01,
Bath & North East Somerset Council,80356124,LM3,Residential Care,P03,Wellbeing,CONSENSUS SUPPORT SERVICES LTD,02/07/2014,3921.83,
Bath & North East Somerset Council,80356124,LM3,Residential Care,P03,Wellbeing,CONSENSUS SUPPORT SERVICES LTD,02/07/2014,3921.83,
Bath & North East Somerset Council,80356222,YF2,Fees & Charges,P03,Wellbeing,CORNERSTONES UK LTD,02/07/2014,77.85,
Bath & North East Somerset Council,80356222,YF2,Fees & Charges,P03,Wellbeing,CORNERSTONES UK LTD,02/07/2014,77.85,
Bath & North East Somerset Council,80356222,YF2,Fees & Charges,P03,Wellbeing,CORNERSTONES UK LTD,02/07/2014,77.85,
Bath & North East Somerset Council,80356222,YF2,Fees & Charges,P03,Wellbeing,CORNERSTONES UK LTD,02/07/2014,77.85,
Bath & North East Somerset Council,80356222,YF2,Fees & Charges,P03,Wellbeing,CORNERSTONES UK LTD,02/07/2014,77.85,
Bath & North East Somerset Council,80356222,YF2,Fees & Charges,P03,Wellbeing,CORNERSTONES UK LTD,02/07/2014,77.85,
Bath & North East Somerset Council,80356222,YF2,Fees & Charges,P03,Wellbeing,CORNERSTONES UK LTD,02/07/2014,77.85,
Bath & North East Somerset Council,80356222,YF2,Fees & Charges,P03,Wellbeing,CORNERSTONES UK LTD,02/07/2014,77.85,
Bath & North East Somerset Council,80356222,YF2,Fees & Charges,P03,Wellbeing,CORNERSTONES UK LTD,02/07/2014,77.85,
Bath & North East Somerset Council,80356222,YF2,Fees & Charges,P03,Wellbeing,CORNERSTONES UK LTD,02/07/2014,77.85,
Bath & North East Somerset Council,80356222,YF2,Fees & Charges,P03,Wellbeing,CORNERSTONES UK LTD,02/07/2014,77.85,
Bath & North East Somerset Council,80356069,YF2,Fees & Charges,P03,Wellbeing,CORNERSTONES UK LTD,02/07/2014,77.85,
Bath & North East Somerset Council,80356069,YF2,Fees & Charges,P03,Wellbeing,CORNERSTONES UK LTD,02/07/2014,77.85,
Bath & North East Somerset Council,80356069,YF2,Fees & Charges,P03,Wellbeing,CORNERSTONES UK LTD,02/07/2014,77.85,
Bath & North East Somerset Council,80356069,YF2,Fees & Charges,P03,Wellbeing,CORNERSTONES UK LTD,02/07/2014,77.85,
Bath & North East Somerset Council,80356069,YF2,Fees & Charges,P03,Wellbeing,CORNERSTONES UK LTD,02/07/2014,77.85,
Bath & North East Somerset Council,80356069,YF2,Fees & Charges,P03,Wellbeing,CORNERSTONES UK LTD,02/07/2014,77.85,
Bath & North East Somerset Council,80356069,YF2,Fees & Charges,P03,Wellbeing,CORNERSTONES UK LTD,02/07/2014,77.85,
Bath & North East Somerset Council,80356069,YF2,Fees & Charges,P03,Wellbeing,CORNERSTONES UK LTD,02/07/2014,77.85,
Bath & North East Somerset Council,80356069,YF2,Fees & Charges,P03,Wellbeing,CORNERSTONES UK LTD,02/07/2014,77.85,
Bath & North East Somerset Council,80356069,YF2,Fees & Charges,P03,Wellbeing,CORNERSTONES UK LTD,02/07/2014,77.85,
Bath & North East Somerset Council,80356069,YF2,Fees & Charges,P03,Wellbeing,CORNERSTONES UK LTD,02/07/2014,77.85,
Bath & North East Somerset Council,80356222,LM3,Residential Care,P03,Wellbeing,CORNERSTONES UK LTD,02/07/2014,737.11,
Bath & North East Somerset Council,80356222,LM3,Residential Care,P03,Wellbeing,CORNERSTONES UK LTD,02/07/2014,737.11,
Bath & North East Somerset Council,80356069,LM3,Residential Care,P03,Wellbeing,CORNERSTONES UK LTD,02/07/2014,1037.8,
Bath & North East Somerset Council,80356069,LM3,Residential Care,P03,Wellbeing,CORNERSTONES UK LTD,02/07/2014,1037.8,
Bath & North East Somerset Council,80356082,LM3,Residential Care,P03,Wellbeing,CRAEGMOOR FACILITIES - ALEXANDRA HOUSE,02/07/2014,1666.78,
Bath & North East Somerset Council,80356082,LM3,Residential Care,P03,Wellbeing,CRAEGMOOR FACILITIES - ALEXANDRA HOUSE,02/07/2014,1666.78,
Bath & North East Somerset Council,80356115,LM3,Residential Care,P03,Wellbeing,CRAEGMOOR FACILITIES - CHERRYWOOD HOU,02/07/2014,783.47,
Bath & North East Somerset Council,80356115,LM3,Residential Care,P03,Wellbeing,CRAEGMOOR FACILITIES - CHERRYWOOD HOU,02/07/2014,783.47,
Bath & North East Somerset Council,80356079,LM3,Residential Care,P03,Wellbeing,CRAEGMOOR FACILITIES - ELM TREE HOUSE,02/07/2014,974.68,
Bath & North East Somerset Council,80356079,LM3,Residential Care,P03,Wellbeing,CRAEGMOOR FACILITIES - ELM TREE HOUSE,02/07/2014,974.68,
Bath & North East Somerset Council,80356079,LM3,Residential Care,P03,Wellbeing,CRAEGMOOR FACILITIES - ELM TREE HOUSE,02/07/2014,1121.04,
Bath & North East Somerset Council,80356079,LM3,Residential Care,P03,Wellbeing,CRAEGMOOR FACILITIES - ELM TREE HOUSE,02/07/2014,1121.04,
Bath & North East Somerset Council,80356221,LM3,Residential Care,P03,Wellbeing,CRAEGMOOR FACILITIES - OLD VICARAGE,02/07/2014,1217.39,
Bath & North East Somerset Council,80356221,LM3,Residential Care,P03,Wellbeing,CRAEGMOOR FACILITIES - OLD VICARAGE,02/07/2014,1217.39,
Bath & North East Somerset Council,80356070,LM3,Residential Care,P03,Wellbeing,CRAEGMOOR FACILITIES-ROSEHILL REHAB UNI,02/07/2014,1491.91,
Bath & North East Somerset Council,80356070,LM3,Residential Care,P03,Wellbeing,CRAEGMOOR FACILITIES-ROSEHILL REHAB UNI,02/07/2014,1491.91,
Bath & North East Somerset Council,80356179,LM6,Nursing Care,P03,Wellbeing,CRANHILL NURSING HOME,02/07/2014,564,
Bath & North East Somerset Council,80356179,LM6,Nursing Care,P03,Wellbeing,CRANHILL NURSING HOME,02/07/2014,564,
Bath & North East Somerset Council,80356179,LM6,Nursing Care,P03,Wellbeing,CRANHILL NURSING HOME,02/07/2014,564,
Bath & North East Somerset Council,80356179,LM6,Nursing Care,P03,Wellbeing,CRANHILL NURSING HOME,02/07/2014,564,
Bath & North East Somerset Council,80356157,LM3,Residential Care,P03,Wellbeing,CREAM HOLDING (TAUNTON) LTD,02/07/2014,2483,
Bath & North East Somerset Council,80356157,LM3,Residential Care,P03,Wellbeing,CREAM HOLDING (TAUNTON) LTD,02/07/2014,2483,
Bath & North East Somerset Council,80356104,LM3,Residential Care,P03,Wellbeing,CREAM I LTD,02/07/2014,1522.64,
Bath & North East Somerset Council,80356104,LM3,Residential Care,P03,Wellbeing,CREAM I LTD,02/07/2014,1522.64,
Bath & North East Somerset Council,80356199,YF2,Fees & Charges,P03,Wellbeing,CULVERHAY NURSING HOME,02/07/2014,118.48,
Bath & North East Somerset Council,80356199,LM6,Nursing Care,P03,Wellbeing,CULVERHAY NURSING HOME,02/07/2014,347.14,
Bath & North East Somerset Council,80356199,LM6,Nursing Care,P03,Wellbeing,CULVERHAY NURSING HOME,02/07/2014,810,
Bath & North East Somerset Council,80356199,LM6,Nursing Care,P03,Wellbeing,CULVERHAY NURSING HOME,02/07/2014,810,
Bath & North East Somerset Council,80356199,LM6,Nursing Care,P03,Wellbeing,CULVERHAY NURSING HOME,02/07/2014,810,
Bath & North East Somerset Council,80356199,LM6,Nursing Care,P03,Wellbeing,CULVERHAY NURSING HOME,02/07/2014,810,
Bath & North East Somerset Council,80356199,LM6,Nursing Care,P03,Wellbeing,CULVERHAY NURSING HOME,02/07/2014,810,
Bath & North East Somerset Council,80356199,LM6,Nursing Care,P03,Wellbeing,CULVERHAY NURSING HOME,02/07/2014,810,
Bath & North East Somerset Council,80356199,LM6,Nursing Care,P03,Wellbeing,CULVERHAY NURSING HOME,02/07/2014,810,
Bath & North East Somerset Council,80356199,LM6,Nursing Care,P03,Wellbeing,CULVERHAY NURSING HOME,02/07/2014,810,
Bath & North East Somerset Council,80356199,LM6,Nursing Care,P03,Wellbeing,CULVERHAY NURSING HOME,02/07/2014,810,
Bath & North East Somerset Council,80356199,LM6,Nursing Care,P03,Wellbeing,CULVERHAY NURSING HOME,02/07/2014,810,
Bath & North East Somerset Council,80356199,LM6,Nursing Care,P03,Wellbeing,CULVERHAY NURSING HOME,02/07/2014,810,
Bath & North East Somerset Council,80356199,LM6,Nursing Care,P03,Wellbeing,CULVERHAY NURSING HOME,02/07/2014,810,
Bath & North East Somerset Council,80356199,LM6,Nursing Care,P03,Wellbeing,CULVERHAY NURSING HOME,02/07/2014,810,
Bath & North East Somerset Council,80356199,LM6,Nursing Care,P03,Wellbeing,CULVERHAY NURSING HOME,02/07/2014,810,
Bath & North East Somerset Council,80356199,LM6,Nursing Care,P03,Wellbeing,CULVERHAY NURSING HOME,02/07/2014,810,
Bath & North East Somerset Council,80356199,LM6,Nursing Care,P03,Wellbeing,CULVERHAY NURSING HOME,02/07/2014,810,
Bath & North East Somerset Council,80356199,LM6,Nursing Care,P03,Wellbeing,CULVERHAY NURSING HOME,02/07/2014,810,
Bath & North East Somerset Council,80356199,LM6,Nursing Care,P03,Wellbeing,CULVERHAY NURSING HOME,02/07/2014,810,
Bath & North East Somerset Council,80356199,LM6,Nursing Care,P03,Wellbeing,CULVERHAY NURSING HOME,02/07/2014,810,
Bath & North East Somerset Council,80356199,LM6,Nursing Care,P03,Wellbeing,CULVERHAY NURSING HOME,02/07/2014,810,
Bath & North East Somerset Council,80356199,LM6,Nursing Care,P03,Wellbeing,CULVERHAY NURSING HOME,02/07/2014,810,
Bath & North East Somerset Council,80356199,LM6,Nursing Care,P03,Wellbeing,CULVERHAY NURSING HOME,02/07/2014,810,
Bath & North East Somerset Council,80356199,LM6,Nursing Care,P03,Wellbeing,CULVERHAY NURSING HOME,02/07/2014,810,
Bath & North East Somerset Council,80356199,LM6,Nursing Care,P03,Wellbeing,CULVERHAY NURSING HOME,02/07/2014,810,
Bath & North East Somerset Council,80356199,LM6,Nursing Care,P03,Wellbeing,CULVERHAY NURSING HOME,02/07/2014,810,
Bath & North East Somerset Council,80356199,LM6,Nursing Care,P03,Wellbeing,CULVERHAY NURSING HOME,02/07/2014,810,
Bath & North East Somerset Council,80356199,LM6,Nursing Care,P03,Wellbeing,CULVERHAY NURSING HOME,02/07/2014,810,
Bath & North East Somerset Council,80356199,LM6,Nursing Care,P03,Wellbeing,CULVERHAY NURSING HOME,02/07/2014,810,
Bath & North East Somerset Council,80356199,LM6,Nursing Care,P03,Wellbeing,CULVERHAY NURSING HOME,02/07/2014,810,
Bath & North East Somerset Council,80356199,LM6,Nursing Care,P03,Wellbeing,CULVERHAY NURSING HOME,02/07/2014,810,
Bath & North East Somerset Council,80356199,LM6,Nursing Care,P03,Wellbeing,CULVERHAY NURSING HOME,02/07/2014,810,
Bath & North East Somerset Council,80356199,LM6,Nursing Care,P03,Wellbeing,CULVERHAY NURSING HOME,02/07/2014,810,
Bath & North East Somerset Council,80356199,LM6,Nursing Care,P03,Wellbeing,CULVERHAY NURSING HOME,02/07/2014,810,
Bath & North East Somerset Council,80356199,LM6,Nursing Care,P03,Wellbeing,CULVERHAY NURSING HOME,02/07/2014,810,
Bath & North East Somerset Council,80356199,LM6,Nursing Care,P03,Wellbeing,CULVERHAY NURSING HOME,02/07/2014,810,
Bath & North East Somerset Council,80356199,LM6,Nursing Care,P03,Wellbeing,CULVERHAY NURSING HOME,02/07/2014,810,
Bath & North East Somerset Council,80356199,LM6,Nursing Care,P03,Wellbeing,CULVERHAY NURSING HOME,02/07/2014,810,
Bath & North East Somerset Council,80356199,LM6,Nursing Care,P03,Wellbeing,CULVERHAY NURSING HOME,02/07/2014,810,
Bath & North East Somerset Council,80356199,LM6,Nursing Care,P03,Wellbeing,CULVERHAY NURSING HOME,02/07/2014,810,
Bath & North East Somerset Council,80356199,LM6,Nursing Care,P03,Wellbeing,CULVERHAY NURSING HOME,02/07/2014,810,
Bath & North East Somerset Council,80356199,LM6,Nursing Care,P03,Wellbeing,CULVERHAY NURSING HOME,02/07/2014,810,
Bath & North East Somerset Council,80356199,LM6,Nursing Care,P03,Wellbeing,CULVERHAY NURSING HOME,02/07/2014,810,
Bath & North East Somerset Council,80356199,LM6,Nursing Care,P03,Wellbeing,CULVERHAY NURSING HOME,02/07/2014,810,
Bath & North East Somerset Council,80356199,LM6,Nursing Care,P03,Wellbeing,CULVERHAY NURSING HOME,02/07/2014,810,
Bath & North East Somerset Council,80356199,LM6,Nursing Care,P03,Wellbeing,CULVERHAY NURSING HOME,02/07/2014,810,
Bath & North East Somerset Council,80356199,LM6,Nursing Care,P03,Wellbeing,CULVERHAY NURSING HOME,02/07/2014,810,
Bath & North East Somerset Council,80356199,LM6,Nursing Care,P03,Wellbeing,CULVERHAY NURSING HOME,02/07/2014,810,
Bath & North East Somerset Council,80356199,LM6,Nursing Care,P03,Wellbeing,CULVERHAY NURSING HOME,02/07/2014,810,
Bath & North East Somerset Council,80356171,LM3,Residential Care,P03,Wellbeing,DAVID NERY LTD,02/07/2014,379.71,
Bath & North East Somerset Council,80356171,LM3,Residential Care,P03,Wellbeing,DAVID NERY LTD,02/07/2014,443,
Bath & North East Somerset Council,80356171,LM3,Residential Care,P03,Wellbeing,DAVID NERY LTD,02/07/2014,443,
Bath & North East Somerset Council,80356171,LM3,Residential Care,P03,Wellbeing,DAVID NERY LTD,02/07/2014,443,
Bath & North East Somerset Council,80356171,LM3,Residential Care,P03,Wellbeing,DAVID NERY LTD,02/07/2014,443,
Bath & North East Somerset Council,80356171,LM3,Residential Care,P03,Wellbeing,DAVID NERY LTD,02/07/2014,443,
Bath & North East Somerset Council,80356171,LM3,Residential Care,P03,Wellbeing,DAVID NERY LTD,02/07/2014,443,
Bath & North East Somerset Council,80356171,LM3,Residential Care,P03,Wellbeing,DAVID NERY LTD,02/07/2014,443,
Bath & North East Somerset Council,80356171,LM3,Residential Care,P03,Wellbeing,DAVID NERY LTD,02/07/2014,443,
Bath & North East Somerset Council,80356171,LM3,Residential Care,P03,Wellbeing,DAVID NERY LTD,02/07/2014,443,
Bath & North East Somerset Council,80356171,LM3,Residential Care,P03,Wellbeing,DAVID NERY LTD,02/07/2014,443,
Bath & North East Somerset Council,80356171,LM3,Residential Care,P03,Wellbeing,DAVID NERY LTD,02/07/2014,443,
Bath & North East Somerset Council,80356171,LM3,Residential Care,P03,Wellbeing,DAVID NERY LTD,02/07/2014,443,
Bath & North East Somerset Council,80356171,LM3,Residential Care,P03,Wellbeing,DAVID NERY LTD,02/07/2014,443,
Bath & North East Somerset Council,80356171,LM3,Residential Care,P03,Wellbeing,DAVID NERY LTD,02/07/2014,443,
Bath & North East Somerset Council,80356171,LM3,Residential Care,P03,Wellbeing,DAVID NERY LTD,02/07/2014,443,
Bath & North East Somerset Council,80356171,LM3,Residential Care,P03,Wellbeing,DAVID NERY LTD,02/07/2014,443,
Bath & North East Somerset Council,80356171,LM3,Residential Care,P03,Wellbeing,DAVID NERY LTD,02/07/2014,443,
Bath & North East Somerset Council,80356144,LM6,Nursing Care,P03,Wellbeing,DELPHINE HOME CARE,02/07/2014,624.4,
Bath & North East Somerset Council,80356144,LM6,Nursing Care,P03,Wellbeing,DELPHINE HOME CARE,02/07/2014,624.4,
Bath & North East Somerset Council,80356144,LM6,Nursing Care,P03,Wellbeing,DELPHINE HOME CARE,02/07/2014,640,
Bath & North East Somerset Council,80356144,LM6,Nursing Care,P03,Wellbeing,DELPHINE HOME CARE,02/07/2014,640,
Bath & North East Somerset Council,80356095,LM3,Residential Care,P03,Wellbeing,DEVON SHELTERED HOMES TRUST - REDACTED,02/07/2014,600.29,
Bath & North East Somerset Council,80356095,LM3,Residential Care,P03,Wellbeing,DEVON SHELTERED HOMES TRUST - REDACTED,02/07/2014,600.29,
Bath & North East Somerset Council,80356041,YF2,Fees & Charges,P03,Wellbeing,DIMENSIONS (UK) LTD,02/07/2014,77.85,
Bath & North East Somerset Council,80356041,YF2,Fees & Charges,P03,Wellbeing,DIMENSIONS (UK) LTD,02/07/2014,77.85,
Bath & North East Somerset Council,80356041,YF2,Fees & Charges,P03,Wellbeing,DIMENSIONS (UK) LTD,02/07/2014,77.85,
Bath & North East Somerset Council,80356041,YF2,Fees & Charges,P03,Wellbeing,DIMENSIONS (UK) LTD,02/07/2014,77.85,
Bath & North East Somerset Council,80356041,YF2,Fees & Charges,P03,Wellbeing,DIMENSIONS (UK) LTD,02/07/2014,77.85,
Bath & North East Somerset Council,80356041,YF2,Fees & Charges,P03,Wellbeing,DIMENSIONS (UK) LTD,02/07/2014,77.85,
Bath & North East Somerset Council,80356041,YF2,Fees & Charges,P03,Wellbeing,DIMENSIONS (UK) LTD,02/07/2014,77.85,
Bath & North East Somerset Council,80356041,YF2,Fees & Charges,P03,Wellbeing,DIMENSIONS (UK) LTD,02/07/2014,77.85,
Bath & North East Somerset Council,80356041,YF2,Fees & Charges,P03,Wellbeing,DIMENSIONS (UK) LTD,02/07/2014,77.85,
Bath & North East Somerset Council,80356041,YF2,Fees & Charges,P03,Wellbeing,DIMENSIONS (UK) LTD,02/07/2014,77.85,
Bath & North East Somerset Council,80356041,YF2,Fees & Charges,P03,Wellbeing,DIMENSIONS (UK) LTD,02/07/2014,77.85,
Bath & North East Somerset Council,80356040,LM3,Residential Care,P03,Wellbeing,DIMENSIONS (UK) LTD,02/07/2014,316.19,
Bath & North East Somerset Council,80356040,LM3,Residential Care,P03,Wellbeing,DIMENSIONS (UK) LTD,02/07/2014,316.19,
Bath & North East Somerset Council,80356036,LM3,Residential Care,P03,Wellbeing,DIMENSIONS (UK) LTD,02/07/2014,362.38,
Bath & North East Somerset Council,80356036,LM3,Residential Care,P03,Wellbeing,DIMENSIONS (UK) LTD,02/07/2014,362.38,
Bath & North East Somerset Council,80356036,LM3,Residential Care,P03,Wellbeing,DIMENSIONS (UK) LTD,02/07/2014,366,
Bath & North East Somerset Council,80356036,LM3,Residential Care,P03,Wellbeing,DIMENSIONS (UK) LTD,02/07/2014,366,
Bath & North East Somerset Council,80356036,LM3,Residential Care,P03,Wellbeing,DIMENSIONS (UK) LTD,02/07/2014,366,
Bath & North East Somerset Council,80356036,LM3,Residential Care,P03,Wellbeing,DIMENSIONS (UK) LTD,02/07/2014,366,
Bath & North East Somerset Council,80356036,LM3,Residential Care,P03,Wellbeing,DIMENSIONS (UK) LTD,02/07/2014,366,
Bath & North East Somerset Council,80356036,LM3,Residential Care,P03,Wellbeing,DIMENSIONS (UK) LTD,02/07/2014,366,
Bath & North East Somerset Council,80356036,LM3,Residential Care,P03,Wellbeing,DIMENSIONS (UK) LTD,02/07/2014,384.14,
Bath & North East Somerset Council,80356036,LM3,Residential Care,P03,Wellbeing,DIMENSIONS (UK) LTD,02/07/2014,384.14,
Bath & North East Somerset Council,80356038,LM3,Residential Care,P03,Wellbeing,DIMENSIONS (UK) LTD,02/07/2014,385.26,
Bath & North East Somerset Council,80356038,LM3,Residential Care,P03,Wellbeing,DIMENSIONS (UK) LTD,02/07/2014,385.26,
Bath & North East Somerset Council,80356038,LM3,Residential Care,P03,Wellbeing,DIMENSIONS (UK) LTD,02/07/2014,385.26,
Bath & North East Somerset Council,80356038,LM3,Residential Care,P03,Wellbeing,DIMENSIONS (UK) LTD,02/07/2014,385.26,
Bath & North East Somerset Council,80356038,LM3,Residential Care,P03,Wellbeing,DIMENSIONS (UK) LTD,02/07/2014,385.26,
Bath & North East Somerset Council,80356038,LM3,Residential Care,P03,Wellbeing,DIMENSIONS (UK) LTD,02/07/2014,385.26,
Bath & North East Somerset Council,80356040,LM3,Residential Care,P03,Wellbeing,DIMENSIONS (UK) LTD,02/07/2014,385.26,
Bath & North East Somerset Council,80356040,LM3,Residential Care,P03,Wellbeing,DIMENSIONS (UK) LTD,02/07/2014,385.26,
Bath & North East Somerset Council,80356040,LM3,Residential Care,P03,Wellbeing,DIMENSIONS (UK) LTD,02/07/2014,385.26,
Bath & North East Somerset Council,80356040,LM3,Residential Care,P03,Wellbeing,DIMENSIONS (UK) LTD,02/07/2014,385.26,
Bath & North East Somerset Council,80356040,LM3,Residential Care,P03,Wellbeing,DIMENSIONS (UK) LTD,02/07/2014,385.26,
Bath & North East Somerset Council,80356040,LM3,Residential Care,P03,Wellbeing,DIMENSIONS (UK) LTD,02/07/2014,385.26,
Bath & North East Somerset Council,80356039,LL3,Supported Living,P03,Wellbeing,DIMENSIONS (UK) LTD,02/07/2014,499.84,
Bath & North East Somerset Council,80356039,LL3,Supported Living,P03,Wellbeing,DIMENSIONS (UK) LTD,02/07/2014,499.84,
Bath & North East Somerset Council,80356036,LM3,Residential Care,P03,Wellbeing,DIMENSIONS (UK) LTD,02/07/2014,800.73,
Bath & North East Somerset Council,80356036,LM3,Residential Care,P03,Wellbeing,DIMENSIONS (UK) LTD,02/07/2014,800.73,
Bath & North East Somerset Council,80356036,LM3,Residential Care,P03,Wellbeing,DIMENSIONS (UK) LTD,02/07/2014,800.73,
Bath & North East Somerset Council,80356036,LM3,Residential Care,P03,Wellbeing,DIMENSIONS (UK) LTD,02/07/2014,800.73,
Bath & North East Somerset Council,80356036,LM3,Residential Care,P03,Wellbeing,DIMENSIONS (UK) LTD,02/07/2014,800.73,
Bath & North East Somerset Council,80356036,LM3,Residential Care,P03,Wellbeing,DIMENSIONS (UK) LTD,02/07/2014,800.73,
Bath & North East Somerset Council,80356036,LM3,Residential Care,P03,Wellbeing,DIMENSIONS (UK) LTD,02/07/2014,800.73,
Bath & North East Somerset Council,80356036,LM3,Residential Care,P03,Wellbeing,DIMENSIONS (UK) LTD,02/07/2014,800.73,
Bath & North East Somerset Council,80356036,LM3,Residential Care,P03,Wellbeing,DIMENSIONS (UK) LTD,02/07/2014,800.73,
Bath & North East Somerset Council,80356036,LM3,Residential Care,P03,Wellbeing,DIMENSIONS (UK) LTD,02/07/2014,800.73,
Bath & North East Somerset Council,80356037,LM3,Residential Care,P03,Wellbeing,DIMENSIONS (UK) LTD,02/07/2014,1121.56,
Bath & North East Somerset Council,80356037,LM3,Residential Care,P03,Wellbeing,DIMENSIONS (UK) LTD,02/07/2014,1121.56,
Bath & North East Somerset Council,80356040,LM3,Residential Care,P03,Wellbeing,DIMENSIONS (UK) LTD,02/07/2014,1190.1,
Bath & North East Somerset Council,80356040,LM3,Residential Care,P03,Wellbeing,DIMENSIONS (UK) LTD,02/07/2014,1190.1,
Bath & North East Somerset Council,80356040,LM3,Residential Care,P03,Wellbeing,DIMENSIONS (UK) LTD,02/07/2014,1190.1,
Bath & North East Somerset Council,80356040,LM3,Residential Care,P03,Wellbeing,DIMENSIONS (UK) LTD,02/07/2014,1190.1,
Bath & North East Somerset Council,80356040,LM3,Residential Care,P03,Wellbeing,DIMENSIONS (UK) LTD,02/07/2014,1190.1,
Bath & North East Somerset Council,80356040,LM3,Residential Care,P03,Wellbeing,DIMENSIONS (UK) LTD,02/07/2014,1190.1,
Bath & North East Somerset Council,80356040,LM3,Residential Care,P03,Wellbeing,DIMENSIONS (UK) LTD,02/07/2014,1190.1,
Bath & North East Somerset Council,80356040,LM3,Residential Care,P03,Wellbeing,DIMENSIONS (UK) LTD,02/07/2014,1190.1,
Bath & North East Somerset Council,80356038,LM3,Residential Care,P03,Wellbeing,DIMENSIONS (UK) LTD,02/07/2014,1251.65,
Bath & North East Somerset Council,80356038,LM3,Residential Care,P03,Wellbeing,DIMENSIONS (UK) LTD,02/07/2014,1251.65,
Bath & North East Somerset Council,80356038,LM3,Residential Care,P03,Wellbeing,DIMENSIONS (UK) LTD,02/07/2014,1251.65,
Bath & North East Somerset Council,80356038,LM3,Residential Care,P03,Wellbeing,DIMENSIONS (UK) LTD,02/07/2014,1251.65,
Bath & North East Somerset Council,80356038,LM3,Residential Care,P03,Wellbeing,DIMENSIONS (UK) LTD,02/07/2014,1251.65,
Bath & North East Somerset Council,80356038,LM3,Residential Care,P03,Wellbeing,DIMENSIONS (UK) LTD,02/07/2014,1251.65,
Bath & North East Somerset Council,80356041,LM3,Residential Care,P03,Wellbeing,DIMENSIONS (UK) LTD,02/07/2014,1325.61,
Bath & North East Somerset Council,80356041,LM3,Residential Care,P03,Wellbeing,DIMENSIONS (UK) LTD,02/07/2014,1325.61,
Bath & North East Somerset Council,80356041,LM3,Residential Care,P03,Wellbeing,DIMENSIONS (UK) LTD,02/07/2014,1325.61,
Bath & North East Somerset Council,80356041,LM3,Residential Care,P03,Wellbeing,DIMENSIONS (UK) LTD,02/07/2014,1325.61,
Bath & North East Somerset Council,80356037,LM3,Residential Care,P03,Wellbeing,DIMENSIONS (UK) LTD,02/07/2014,1602.39,
Bath & North East Somerset Council,80356037,LM3,Residential Care,P03,Wellbeing,DIMENSIONS (UK) LTD,02/07/2014,1602.39,
Bath & North East Somerset Council,80356037,LM3,Residential Care,P03,Wellbeing,DIMENSIONS (UK) LTD,02/07/2014,1782.36,
Bath & North East Somerset Council,80356037,LM3,Residential Care,P03,Wellbeing,DIMENSIONS (UK) LTD,02/07/2014,1782.36,
Bath & North East Somerset Council,80356066,YF2,Fees & Charges,P03,Wellbeing,DRAFTCREATE LTD,02/07/2014,72.85,
Bath & North East Somerset Council,80356066,YF2,Fees & Charges,P03,Wellbeing,DRAFTCREATE LTD,02/07/2014,72.85,
Bath & North East Somerset Council,80356066,YF2,Fees & Charges,P03,Wellbeing,DRAFTCREATE LTD,02/07/2014,72.85,
Bath & North East Somerset Council,80356066,YF2,Fees & Charges,P03,Wellbeing,DRAFTCREATE LTD,02/07/2014,72.85,
Bath & North East Somerset Council,80356066,YF2,Fees & Charges,P03,Wellbeing,DRAFTCREATE LTD,02/07/2014,72.85,
Bath & North East Somerset Council,80356066,YF2,Fees & Charges,P03,Wellbeing,DRAFTCREATE LTD,02/07/2014,72.85,
Bath & North East Somerset Council,80356066,YF2,Fees & Charges,P03,Wellbeing,DRAFTCREATE LTD,02/07/2014,72.85,
Bath & North East Somerset Council,80356066,YF2,Fees & Charges,P03,Wellbeing,DRAFTCREATE LTD,02/07/2014,72.85,
Bath & North East Somerset Council,80356066,YF2,Fees & Charges,P03,Wellbeing,DRAFTCREATE LTD,02/07/2014,72.85,
Bath & North East Somerset Council,80356066,YF2,Fees & Charges,P03,Wellbeing,DRAFTCREATE LTD,02/07/2014,72.85,
Bath & North East Somerset Council,80356066,YF2,Fees & Charges,P03,Wellbeing,DRAFTCREATE LTD,02/07/2014,72.85,
Bath & North East Somerset Council,80356066,LM3,Residential Care,P03,Wellbeing,DRAFTCREATE LTD,02/07/2014,1610.84,
Bath & North East Somerset Council,80356066,LM3,Residential Care,P03,Wellbeing,DRAFTCREATE LTD,02/07/2014,1610.84,
Bath & North East Somerset Council,80356155,LM6,Nursing Care,P03,Wellbeing,EASTLEIGH CARE HOMES LTD,02/07/2014,950,
Bath & North East Somerset Council,80356155,LM6,Nursing Care,P03,Wellbeing,EASTLEIGH CARE HOMES LTD,02/07/2014,950,
Bath & North East Somerset Council,80356213,YF2,Fees & Charges,P03,Wellbeing,EUROPEAN CARE (UK) LTD - REDACTED,02/07/2014,58.32,
Bath & North East Somerset Council,80356213,LM3,Residential Care,P03,Wellbeing,EUROPEAN CARE (UK) LTD - REDACTED,02/07/2014,63.29,
Bath & North East Somerset Council,80356213,YF2,Fees & Charges,P03,Wellbeing,EUROPEAN CARE (UK) LTD - REDACTED,02/07/2014,77.85,
Bath & North East Somerset Council,80356213,YF2,Fees & Charges,P03,Wellbeing,EUROPEAN CARE (UK) LTD - REDACTED,02/07/2014,77.85,
Bath & North East Somerset Council,80356213,YF2,Fees & Charges,P03,Wellbeing,EUROPEAN CARE (UK) LTD - REDACTED,02/07/2014,77.85,
Bath & North East Somerset Council,80356213,YF2,Fees & Charges,P03,Wellbeing,EUROPEAN CARE (UK) LTD - REDACTED,02/07/2014,77.85,
Bath & North East Somerset Council,80356213,YF2,Fees & Charges,P03,Wellbeing,EUROPEAN CARE (UK) LTD - REDACTED,02/07/2014,77.85,
Bath & North East Somerset Council,80356213,YF2,Fees & Charges,P03,Wellbeing,EUROPEAN CARE (UK) LTD - REDACTED,02/07/2014,77.85,
Bath & North East Somerset Council,80356213,YF2,Fees & Charges,P03,Wellbeing,EUROPEAN CARE (UK) LTD - REDACTED,02/07/2014,77.85,
Bath & North East Somerset Council,80356213,YF2,Fees & Charges,P03,Wellbeing,EUROPEAN CARE (UK) LTD - REDACTED,02/07/2014,77.85,
Bath & North East Somerset Council,80356213,YF2,Fees & Charges,P03,Wellbeing,EUROPEAN CARE (UK) LTD - REDACTED,02/07/2014,77.85,
Bath & North East Somerset Council,80356213,YF2,Fees & Charges,P03,Wellbeing,EUROPEAN CARE (UK) LTD - REDACTED,02/07/2014,77.85,
Bath & North East Somerset Council,80356213,YF2,Fees & Charges,P03,Wellbeing,EUROPEAN CARE (UK) LTD - REDACTED,02/07/2014,77.85,
Bath & North East Somerset Council,80356213,YF2,Fees & Charges,P03,Wellbeing,EUROPEAN CARE (UK) LTD - REDACTED,02/07/2014,128.48,
Bath & North East Somerset Council,80356213,YF2,Fees & Charges,P03,Wellbeing,EUROPEAN CARE (UK) LTD - REDACTED,02/07/2014,129.73,
Bath & North East Somerset Council,80356213,YF2,Fees & Charges,P03,Wellbeing,EUROPEAN CARE (UK) LTD - REDACTED,02/07/2014,129.73,
Bath & North East Somerset Council,80356213,YF2,Fees & Charges,P03,Wellbeing,EUROPEAN CARE (UK) LTD - REDACTED,02/07/2014,129.73,
Bath & North East Somerset Council,80356213,YF2,Fees & Charges,P03,Wellbeing,EUROPEAN CARE (UK) LTD - REDACTED,02/07/2014,129.73,
Bath & North East Somerset Council,80356213,YF2,Fees & Charges,P03,Wellbeing,EUROPEAN CARE (UK) LTD - REDACTED,02/07/2014,129.73,
Bath & North East Somerset Council,80356213,YF2,Fees & Charges,P03,Wellbeing,EUROPEAN CARE (UK) LTD - REDACTED,02/07/2014,129.73,
Bath & North East Somerset Council,80356213,YF2,Fees & Charges,P03,Wellbeing,EUROPEAN CARE (UK) LTD - REDACTED,02/07/2014,129.73,
Bath & North East Somerset Council,80356213,YF2,Fees & Charges,P03,Wellbeing,EUROPEAN CARE (UK) LTD - REDACTED,02/07/2014,129.73,
Bath & North East Somerset Council,80356213,YF2,Fees & Charges,P03,Wellbeing,EUROPEAN CARE (UK) LTD - REDACTED,02/07/2014,129.73,
Bath & North East Somerset Council,80356213,YF2,Fees & Charges,P03,Wellbeing,EUROPEAN CARE (UK) LTD - REDACTED,02/07/2014,129.73,
Bath & North East Somerset Council,80356213,YF2,Fees & Charges,P03,Wellbeing,EUROPEAN CARE (UK) LTD - REDACTED,02/07/2014,129.73,
Bath & North East Somerset Council,80356213,YF2,Fees & Charges,P03,Wellbeing,EUROPEAN CARE (UK) LTD - REDACTED,02/07/2014,179.87,
Bath & North East Somerset Council,80356213,YF2,Fees & Charges,P03,Wellbeing,EUROPEAN CARE (UK) LTD - REDACTED,02/07/2014,204.11,
Bath & North East Somerset Council,80356213,YF2,Fees & Charges,P03,Wellbeing,EUROPEAN CARE (UK) LTD - REDACTED,02/07/2014,204.11,
Bath & North East Somerset Council,80356213,YF2,Fees & Charges,P03,Wellbeing,EUROPEAN CARE (UK) LTD - REDACTED,02/07/2014,204.11,
Bath & North East Somerset Council,80356213,LM6,Nursing Care,P03,Wellbeing,EUROPEAN CARE (UK) LTD - REDACTED,02/07/2014,241.71,
Bath & North East Somerset Council,80356213,LM6,Nursing Care,P03,Wellbeing,EUROPEAN CARE (UK) LTD - REDACTED,02/07/2014,241.71,
Bath & North East Somerset Council,80356213,LM3,Residential Care,P03,Wellbeing,EUROPEAN CARE (UK) LTD - REDACTED,02/07/2014,316.43,
Bath & North East Somerset Council,80356213,LM3,Residential Care,P03,Wellbeing,EUROPEAN CARE (UK) LTD - REDACTED,02/07/2014,443,
Bath & North East Somerset Council,80356213,LM3,Residential Care,P03,Wellbeing,EUROPEAN CARE (UK) LTD - REDACTED,02/07/2014,443,
Bath & North East Somerset Council,80356213,LM3,Residential Care,P03,Wellbeing,EUROPEAN CARE (UK) LTD - REDACTED,02/07/2014,443,
Bath & North East Somerset Council,80356213,LM3,Residential Care,P03,Wellbeing,EUROPEAN CARE (UK) LTD - REDACTED,02/07/2014,443,
Bath & North East Somerset Council,80356213,LM3,Residential Care,P03,Wellbeing,EUROPEAN CARE (UK) LTD - REDACTED,02/07/2014,443,
Bath & North East Somerset Council,80356213,LM3,Residential Care,P03,Wellbeing,EUROPEAN CARE (UK) LTD - REDACTED,02/07/2014,443,
Bath & North East Somerset Council,80356213,LM3,Residential Care,P03,Wellbeing,EUROPEAN CARE (UK) LTD - REDACTED,02/07/2014,443,
Bath & North East Somerset Council,80356213,LM3,Residential Care,P03,Wellbeing,EUROPEAN CARE (UK) LTD - REDACTED,02/07/2014,443,
Bath & North East Somerset Council,80356213,LM3,Residential Care,P03,Wellbeing,EUROPEAN CARE (UK) LTD - REDACTED,02/07/2014,443,
Bath & North East Somerset Council,80356213,LM3,Residential Care,P03,Wellbeing,EUROPEAN CARE (UK) LTD - REDACTED,02/07/2014,443,
Bath & North East Somerset Council,80356213,LM3,Residential Care,P03,Wellbeing,EUROPEAN CARE (UK) LTD - REDACTED,02/07/2014,443,
Bath & North East Somerset Council,80356213,LM3,Residential Care,P03,Wellbeing,EUROPEAN CARE (UK) LTD - REDACTED,02/07/2014,443,
Bath & North East Somerset Council,80356213,LM3,Residential Care,P03,Wellbeing,EUROPEAN CARE (UK) LTD - REDACTED,02/07/2014,443,
Bath & North East Somerset Council,80356213,LM3,Residential Care,P03,Wellbeing,EUROPEAN CARE (UK) LTD - REDACTED,02/07/2014,443,
Bath & North East Somerset Council,80356213,LM3,Residential Care,P03,Wellbeing,EUROPEAN CARE (UK) LTD - REDACTED,02/07/2014,443,
Bath & North East Somerset Council,80356213,LM3,Residential Care,P03,Wellbeing,EUROPEAN CARE (UK) LTD - REDACTED,02/07/2014,443,
Bath & North East Somerset Council,80356213,LM3,Residential Care,P03,Wellbeing,EUROPEAN CARE (UK) LTD - REDACTED,02/07/2014,443,
Bath & North East Somerset Council,80356213,LM3,Residential Care,P03,Wellbeing,EUROPEAN CARE (UK) LTD - REDACTED,02/07/2014,443,
Bath & North East Somerset Council,80356213,LM3,Residential Care,P03,Wellbeing,EUROPEAN CARE (UK) LTD - REDACTED,02/07/2014,443,
Bath & North East Somerset Council,80356213,LM3,Residential Care,P03,Wellbeing,EUROPEAN CARE (UK) LTD - REDACTED,02/07/2014,443,
Bath & North East Somerset Council,80356213,LM3,Residential Care,P03,Wellbeing,EUROPEAN CARE (UK) LTD - REDACTED,02/07/2014,443,
Bath & North East Somerset Council,80356213,LM3,Residential Care,P03,Wellbeing,EUROPEAN CARE (UK) LTD - REDACTED,02/07/2014,443,
Bath & North East Somerset Council,80356213,LM3,Residential Care,P03,Wellbeing,EUROPEAN CARE (UK) LTD - REDACTED,02/07/2014,443,
Bath & North East Somerset Council,80356213,LM3,Residential Care,P03,Wellbeing,EUROPEAN CARE (UK) LTD - REDACTED,02/07/2014,443,
Bath & North East Somerset Council,80356213,LM3,Residential Care,P03,Wellbeing,EUROPEAN CARE (UK) LTD - REDACTED,02/07/2014,443,
Bath & North East Somerset Council,80356213,LM3,Residential Care,P03,Wellbeing,EUROPEAN CARE (UK) LTD - REDACTED,02/07/2014,443,
Bath & North East Somerset Council,80356213,LM3,Residential Care,P03,Wellbeing,EUROPEAN CARE (UK) LTD - REDACTED,02/07/2014,443,
Bath & North East Somerset Council,80356213,LM3,Residential Care,P03,Wellbeing,EUROPEAN CARE (UK) LTD - REDACTED,02/07/2014,443,
Bath & North East Somerset Council,80356213,LM6,Nursing Care,P03,Wellbeing,EUROPEAN CARE (UK) LTD - REDACTED,02/07/2014,564,
Bath & North East Somerset Council,80356213,LM6,Nursing Care,P03,Wellbeing,EUROPEAN CARE (UK) LTD - REDACTED,02/07/2014,564,
Bath & North East Somerset Council,80356213,LM6,Nursing Care,P03,Wellbeing,EUROPEAN CARE (UK) LTD - REDACTED,02/07/2014,564,
Bath & North East Somerset Council,80356213,LM6,Nursing Care,P03,Wellbeing,EUROPEAN CARE (UK) LTD - REDACTED,02/07/2014,564,
Bath & North East Somerset Council,80356213,LM6,Nursing Care,P03,Wellbeing,EUROPEAN CARE (UK) LTD - REDACTED,02/07/2014,564,
Bath & North East Somerset Council,80356213,LM6,Nursing Care,P03,Wellbeing,EUROPEAN CARE (UK) LTD - REDACTED,02/07/2014,564,
Bath & North East Somerset Council,80356213,LM6,Nursing Care,P03,Wellbeing,EUROPEAN CARE (UK) LTD - REDACTED,02/07/2014,564,
Bath & North East Somerset Council,80356213,LM6,Nursing Care,P03,Wellbeing,EUROPEAN CARE (UK) LTD - REDACTED,02/07/2014,564,
Bath & North East Somerset Council,80356213,LM6,Nursing Care,P03,Wellbeing,EUROPEAN CARE (UK) LTD - REDACTED,02/07/2014,564,
Bath & North East Somerset Council,80356213,LM6,Nursing Care,P03,Wellbeing,EUROPEAN CARE (UK) LTD - REDACTED,02/07/2014,564,
Bath & North East Somerset Council,80356213,LM6,Nursing Care,P03,Wellbeing,EUROPEAN CARE (UK) LTD - REDACTED,02/07/2014,564,
Bath & North East Somerset Council,80356213,LM6,Nursing Care,P03,Wellbeing,EUROPEAN CARE (UK) LTD - REDACTED,02/07/2014,564,
Bath & North East Somerset Council,80356213,LM6,Nursing Care,P03,Wellbeing,EUROPEAN CARE (UK) LTD - REDACTED,02/07/2014,564,
Bath & North East Somerset Council,80356213,LM6,Nursing Care,P03,Wellbeing,EUROPEAN CARE (UK) LTD - REDACTED,02/07/2014,564,
Bath & North East Somerset Council,80356213,LM6,Nursing Care,P03,Wellbeing,EUROPEAN CARE (UK) LTD - REDACTED,02/07/2014,564,
Bath & North East Somerset Council,80356213,LM6,Nursing Care,P03,Wellbeing,EUROPEAN CARE (UK) LTD - REDACTED,02/07/2014,564,
Bath & North East Somerset Council,80356213,LM6,Nursing Care,P03,Wellbeing,EUROPEAN CARE (UK) LTD - REDACTED,02/07/2014,564,
Bath & North East Somerset Council,80356213,LM6,Nursing Care,P03,Wellbeing,EUROPEAN CARE (UK) LTD - REDACTED,02/07/2014,564,
Bath & North East Somerset Council,80356213,LM6,Nursing Care,P03,Wellbeing,EUROPEAN CARE (UK) LTD - REDACTED,02/07/2014,564,
Bath & North East Somerset Council,80356213,LM6,Nursing Care,P03,Wellbeing,EUROPEAN CARE (UK) LTD - REDACTED,02/07/2014,564,
Bath & North East Somerset Council,80356213,LM6,Nursing Care,P03,Wellbeing,EUROPEAN CARE (UK) LTD - REDACTED,02/07/2014,564,
Bath & North East Somerset Council,80356213,LM6,Nursing Care,P03,Wellbeing,EUROPEAN CARE (UK) LTD - REDACTED,02/07/2014,564,
Bath & North East Somerset Council,80356213,LM6,Nursing Care,P03,Wellbeing,EUROPEAN CARE (UK) LTD - REDACTED,02/07/2014,564,
Bath & North East Somerset Council,80356213,LM6,Nursing Care,P03,Wellbeing,EUROPEAN CARE (UK) LTD - REDACTED,02/07/2014,564,
Bath & North East Somerset Council,80356213,LM6,Nursing Care,P03,Wellbeing,EUROPEAN CARE (UK) LTD - REDACTED,02/07/2014,564,
Bath & North East Somerset Council,80356213,LM6,Nursing Care,P03,Wellbeing,EUROPEAN CARE (UK) LTD - REDACTED,02/07/2014,564,
Bath & North East Somerset Council,80356213,LM6,Nursing Care,P03,Wellbeing,EUROPEAN CARE (UK) LTD - REDACTED,02/07/2014,564,
Bath & North East Somerset Council,80356213,LM6,Nursing Care,P03,Wellbeing,EUROPEAN CARE (UK) LTD - REDACTED,02/07/2014,564,
Bath & North East Somerset Council,80356213,LM6,Nursing Care,P03,Wellbeing,EUROPEAN CARE (UK) LTD - REDACTED,02/07/2014,564,
Bath & North East Somerset Council,80356213,LM6,Nursing Care,P03,Wellbeing,EUROPEAN CARE (UK) LTD - REDACTED,02/07/2014,564,
Bath & North East Somerset Council,80356213,LM6,Nursing Care,P03,Wellbeing,EUROPEAN CARE (UK) LTD - REDACTED,02/07/2014,564,
Bath & North East Somerset Council,80356213,LM6,Nursing Care,P03,Wellbeing,EUROPEAN CARE (UK) LTD - REDACTED,02/07/2014,564,
Bath & North East Somerset Council,80356213,LM6,Nursing Care,P03,Wellbeing,EUROPEAN CARE (UK) LTD - REDACTED,02/07/2014,564,
Bath & North East Somerset Council,80356213,LM6,Nursing Care,P03,Wellbeing,EUROPEAN CARE (UK) LTD - REDACTED,02/07/2014,564,
Bath & North East Somerset Council,80356213,LM6,Nursing Care,P03,Wellbeing,EUROPEAN CARE (UK) LTD - REDACTED,02/07/2014,564,
Bath & North East Somerset Council,80356213,LM6,Nursing Care,P03,Wellbeing,EUROPEAN CARE (UK) LTD - REDACTED,02/07/2014,564,
Bath & North East Somerset Council,80356213,LM6,Nursing Care,P03,Wellbeing,EUROPEAN CARE (UK) LTD - REDACTED,02/07/2014,564,
Bath & North East Somerset Council,80356213,LM6,Nursing Care,P03,Wellbeing,EUROPEAN CARE (UK) LTD - REDACTED,02/07/2014,564,
Bath & North East Somerset Council,80356213,LM6,Nursing Care,P03,Wellbeing,EUROPEAN CARE (UK) LTD - REDACTED,02/07/2014,564,
Bath & North East Somerset Council,80356213,LM6,Nursing Care,P03,Wellbeing,EUROPEAN CARE (UK) LTD - REDACTED,02/07/2014,564,
Bath & North East Somerset Council,80356213,LM6,Nursing Care,P03,Wellbeing,EUROPEAN CARE (UK) LTD - REDACTED,02/07/2014,564,
Bath & North East Somerset Council,80356213,LM6,Nursing Care,P03,Wellbeing,EUROPEAN CARE (UK) LTD - REDACTED,02/07/2014,564,
Bath & North East Somerset Council,80356213,LM6,Nursing Care,P03,Wellbeing,EUROPEAN CARE (UK) LTD - REDACTED,02/07/2014,564,
Bath & North East Somerset Council,80356213,LM6,Nursing Care,P03,Wellbeing,EUROPEAN CARE (UK) LTD - REDACTED,02/07/2014,564,
Bath & North East Somerset Council,80356213,LM6,Nursing Care,P03,Wellbeing,EUROPEAN CARE (UK) LTD - REDACTED,02/07/2014,564,
Bath & North East Somerset Council,80356213,LM6,Nursing Care,P03,Wellbeing,EUROPEAN CARE (UK) LTD - REDACTED,02/07/2014,564,
Bath & North East Somerset Council,80356213,LM6,Nursing Care,P03,Wellbeing,EUROPEAN CARE (UK) LTD - REDACTED,02/07/2014,564,
Bath & North East Somerset Council,80356213,LM6,Nursing Care,P03,Wellbeing,EUROPEAN CARE (UK) LTD - REDACTED,02/07/2014,564,
Bath & North East Somerset Council,80356213,LM6,Nursing Care,P03,Wellbeing,EUROPEAN CARE (UK) LTD - REDACTED,02/07/2014,564,
Bath & North East Somerset Council,80356213,LM6,Nursing Care,P03,Wellbeing,EUROPEAN CARE (UK) LTD - REDACTED,02/07/2014,564,
Bath & North East Somerset Council,80356213,LM6,Nursing Care,P03,Wellbeing,EUROPEAN CARE (UK) LTD - REDACTED,02/07/2014,564,
Bath & North East Somerset Council,80356213,LM6,Nursing Care,P03,Wellbeing,EUROPEAN CARE (UK) LTD - REDACTED,02/07/2014,564,
Bath & North East Somerset Council,80356213,LM6,Nursing Care,P03,Wellbeing,EUROPEAN CARE (UK) LTD - REDACTED,02/07/2014,564,
Bath & North East Somerset Council,80356213,LM6,Nursing Care,P03,Wellbeing,EUROPEAN CARE (UK) LTD - REDACTED,02/07/2014,564,
Bath & North East Somerset Council,80356213,LM6,Nursing Care,P03,Wellbeing,EUROPEAN CARE (UK) LTD - REDACTED,02/07/2014,564,
Bath & North East Somerset Council,80356213,LM6,Nursing Care,P03,Wellbeing,EUROPEAN CARE (UK) LTD - REDACTED,02/07/2014,564,
Bath & North East Somerset Council,80356213,LM6,Nursing Care,P03,Wellbeing,EUROPEAN CARE (UK) LTD - REDACTED,02/07/2014,564,
Bath & North East Somerset Council,80356213,LM6,Nursing Care,P03,Wellbeing,EUROPEAN CARE (UK) LTD - REDACTED,02/07/2014,564,
Bath & North East Somerset Council,80356213,LM6,Nursing Care,P03,Wellbeing,EUROPEAN CARE (UK) LTD - REDACTED,02/07/2014,564,
Bath & North East Somerset Council,80356213,LM6,Nursing Care,P03,Wellbeing,EUROPEAN CARE (UK) LTD - REDACTED,02/07/2014,564,
Bath & North East Somerset Council,80356213,LM6,Nursing Care,P03,Wellbeing,EUROPEAN CARE (UK) LTD - REDACTED,02/07/2014,564,
Bath & North East Somerset Council,80356213,LM6,Nursing Care,P03,Wellbeing,EUROPEAN CARE (UK) LTD - REDACTED,02/07/2014,564,
Bath & North East Somerset Council,80356213,LM6,Nursing Care,P03,Wellbeing,EUROPEAN CARE (UK) LTD - REDACTED,02/07/2014,564,
Bath & North East Somerset Council,80356213,LM6,Nursing Care,P03,Wellbeing,EUROPEAN CARE (UK) LTD - REDACTED,02/07/2014,564,
Bath & North East Somerset Council,80356213,LM6,Nursing Care,P03,Wellbeing,EUROPEAN CARE (UK) LTD - REDACTED,02/07/2014,564,
Bath & North East Somerset Council,80356213,LM6,Nursing Care,P03,Wellbeing,EUROPEAN CARE (UK) LTD - REDACTED,02/07/2014,564,
Bath & North East Somerset Council,80356213,LM6,Nursing Care,P03,Wellbeing,EUROPEAN CARE (UK) LTD - REDACTED,02/07/2014,564,
Bath & North East Somerset Council,80356213,LM6,Nursing Care,P03,Wellbeing,EUROPEAN CARE (UK) LTD - REDACTED,02/07/2014,564,
Bath & North East Somerset Council,80356213,LM6,Nursing Care,P03,Wellbeing,EUROPEAN CARE (UK) LTD - REDACTED,02/07/2014,587.82,
Bath & North East Somerset Council,80356213,LM6,Nursing Care,P03,Wellbeing,EUROPEAN CARE (UK) LTD - REDACTED,02/07/2014,587.82,
Bath & North East Somerset Council,80356213,LM6,Nursing Care,P03,Wellbeing,EUROPEAN CARE (UK) LTD - REDACTED,02/07/2014,588,
Bath & North East Somerset Council,80356213,LM6,Nursing Care,P03,Wellbeing,EUROPEAN CARE (UK) LTD - REDACTED,02/07/2014,588,
Bath & North East Somerset Council,80356213,LM6,Nursing Care,P03,Wellbeing,EUROPEAN CARE (UK) LTD - REDACTED,02/07/2014,757.57,
Bath & North East Somerset Council,80356213,LM6,Nursing Care,P03,Wellbeing,EUROPEAN CARE (UK) LTD - REDACTED,02/07/2014,757.57,
Bath & North East Somerset Council,80356053,LM6,Nursing Care,P03,Wellbeing,EUROPEAN CARE SW LTD - REDACTED,02/07/2014,241.71,
Bath & North East Somerset Council,80356053,LM3,Residential Care,P03,Wellbeing,EUROPEAN CARE SW LTD - REDACTED,02/07/2014,443,
Bath & North East Somerset Council,80356053,LM3,Residential Care,P03,Wellbeing,EUROPEAN CARE SW LTD - REDACTED,02/07/2014,443,
Bath & North East Somerset Council,80356053,LM3,Residential Care,P03,Wellbeing,EUROPEAN CARE SW LTD - REDACTED,02/07/2014,443,
Bath & North East Somerset Council,80356053,LM3,Residential Care,P03,Wellbeing,EUROPEAN CARE SW LTD - REDACTED,02/07/2014,443,
Bath & North East Somerset Council,80356053,LM6,Nursing Care,P03,Wellbeing,EUROPEAN CARE SW LTD - REDACTED,02/07/2014,483.43,
Bath & North East Somerset Council,80356053,LM6,Nursing Care,P03,Wellbeing,EUROPEAN CARE SW LTD - REDACTED,02/07/2014,564,
Bath & North East Somerset Council,80356053,LM6,Nursing Care,P03,Wellbeing,EUROPEAN CARE SW LTD - REDACTED,02/07/2014,564,
Bath & North East Somerset Council,80356053,LM6,Nursing Care,P03,Wellbeing,EUROPEAN CARE SW LTD - REDACTED,02/07/2014,564,
Bath & North East Somerset Council,80356053,LM6,Nursing Care,P03,Wellbeing,EUROPEAN CARE SW LTD - REDACTED,02/07/2014,564,
Bath & North East Somerset Council,80356053,LM6,Nursing Care,P03,Wellbeing,EUROPEAN CARE SW LTD - REDACTED,02/07/2014,564,
Bath & North East Somerset Council,80356053,LM6,Nursing Care,P03,Wellbeing,EUROPEAN CARE SW LTD - REDACTED,02/07/2014,564,
Bath & North East Somerset Council,80356053,LM6,Nursing Care,P03,Wellbeing,EUROPEAN CARE SW LTD - REDACTED,02/07/2014,564,
Bath & North East Somerset Council,80356053,LM6,Nursing Care,P03,Wellbeing,EUROPEAN CARE SW LTD - REDACTED,02/07/2014,564,
Bath & North East Somerset Council,80356053,LM6,Nursing Care,P03,Wellbeing,EUROPEAN CARE SW LTD - REDACTED,02/07/2014,564,
Bath & North East Somerset Council,80356053,LM6,Nursing Care,P03,Wellbeing,EUROPEAN CARE SW LTD - REDACTED,02/07/2014,564,
Bath & North East Somerset Council,80356053,LM6,Nursing Care,P03,Wellbeing,EUROPEAN CARE SW LTD - REDACTED,02/07/2014,564,
Bath & North East Somerset Council,80356053,LM6,Nursing Care,P03,Wellbeing,EUROPEAN CARE SW LTD - REDACTED,02/07/2014,564,
Bath & North East Somerset Council,80356053,LM6,Nursing Care,P03,Wellbeing,EUROPEAN CARE SW LTD - REDACTED,02/07/2014,564,
Bath & North East Somerset Council,80356053,LM6,Nursing Care,P03,Wellbeing,EUROPEAN CARE SW LTD - REDACTED,02/07/2014,564,
Bath & North East Somerset Council,80356053,LM6,Nursing Care,P03,Wellbeing,EUROPEAN CARE SW LTD - REDACTED,02/07/2014,564,
Bath & North East Somerset Council,80356053,LM6,Nursing Care,P03,Wellbeing,EUROPEAN CARE SW LTD - REDACTED,02/07/2014,564,
Bath & North East Somerset Council,80356053,LM6,Nursing Care,P03,Wellbeing,EUROPEAN CARE SW LTD - REDACTED,02/07/2014,564,
Bath & North East Somerset Council,80356053,LM6,Nursing Care,P03,Wellbeing,EUROPEAN CARE SW LTD - REDACTED,02/07/2014,564,
Bath & North East Somerset Council,80356053,LM6,Nursing Care,P03,Wellbeing,EUROPEAN CARE SW LTD - REDACTED,02/07/2014,564,
Bath & North East Somerset Council,80356053,LM6,Nursing Care,P03,Wellbeing,EUROPEAN CARE SW LTD - REDACTED,02/07/2014,564,
Bath & North East Somerset Council,80356053,LM6,Nursing Care,P03,Wellbeing,EUROPEAN CARE SW LTD - REDACTED,02/07/2014,564,
Bath & North East Somerset Council,80356053,LM6,Nursing Care,P03,Wellbeing,EUROPEAN CARE SW LTD - REDACTED,02/07/2014,564,
Bath & North East Somerset Council,80356053,LM6,Nursing Care,P03,Wellbeing,EUROPEAN CARE SW LTD - REDACTED,02/07/2014,564,
Bath & North East Somerset Council,80356053,LM6,Nursing Care,P03,Wellbeing,EUROPEAN CARE SW LTD - REDACTED,02/07/2014,564,
Bath & North East Somerset Council,80356053,LM6,Nursing Care,P03,Wellbeing,EUROPEAN CARE SW LTD - REDACTED,02/07/2014,564,
Bath & North East Somerset Council,80356053,LM6,Nursing Care,P03,Wellbeing,EUROPEAN CARE SW LTD - REDACTED,02/07/2014,564,
Bath & North East Somerset Council,80356053,LM6,Nursing Care,P03,Wellbeing,EUROPEAN CARE SW LTD - REDACTED,02/07/2014,564,
Bath & North East Somerset Council,80356053,LM6,Nursing Care,P03,Wellbeing,EUROPEAN CARE SW LTD - REDACTED,02/07/2014,564,
Bath & North East Somerset Council,80356053,LM6,Nursing Care,P03,Wellbeing,EUROPEAN CARE SW LTD - REDACTED,02/07/2014,564,
Bath & North East Somerset Council,80356053,LM6,Nursing Care,P03,Wellbeing,EUROPEAN CARE SW LTD - REDACTED,02/07/2014,564,
Bath & North East Somerset Council,80356053,LM6,Nursing Care,P03,Wellbeing,EUROPEAN CARE SW LTD - REDACTED,02/07/2014,564,
Bath & North East Somerset Council,80356053,LM6,Nursing Care,P03,Wellbeing,EUROPEAN CARE SW LTD - REDACTED,02/07/2014,564,
Bath & North East Somerset Council,80356053,LM6,Nursing Care,P03,Wellbeing,EUROPEAN CARE SW LTD - REDACTED,02/07/2014,564,
Bath & North East Somerset Council,80356053,LM6,Nursing Care,P03,Wellbeing,EUROPEAN CARE SW LTD - REDACTED,02/07/2014,564,
Bath & North East Somerset Council,80356053,LM6,Nursing Care,P03,Wellbeing,EUROPEAN CARE SW LTD - REDACTED,02/07/2014,564,
Bath & North East Somerset Council,80356053,LM6,Nursing Care,P03,Wellbeing,EUROPEAN CARE SW LTD - REDACTED,02/07/2014,564,
Bath & North East Somerset Council,80356053,LM6,Nursing Care,P03,Wellbeing,EUROPEAN CARE SW LTD - REDACTED,02/07/2014,588,
Bath & North East Somerset Council,80356053,LM6,Nursing Care,P03,Wellbeing,EUROPEAN CARE SW LTD - REDACTED,02/07/2014,588,
Bath & North East Somerset Council,80356053,LM6,Nursing Care,P03,Wellbeing,EUROPEAN CARE SW LTD - REDACTED,02/07/2014,588,
Bath & North East Somerset Council,80356053,LM6,Nursing Care,P03,Wellbeing,EUROPEAN CARE SW LTD - REDACTED,02/07/2014,588,
Bath & North East Somerset Council,80356089,LM6,Nursing Care,P03,Wellbeing,EXTRAFRIEND LTD,02/07/2014,592.08,
Bath & North East Somerset Council,80356089,LM6,Nursing Care,P03,Wellbeing,EXTRAFRIEND LTD,02/07/2014,592.08,
Bath & North East Somerset Council,80356089,LM6,Nursing Care,P03,Wellbeing,EXTRAFRIEND LTD,02/07/2014,900,
Bath & North East Somerset Council,80356089,LM6,Nursing Care,P03,Wellbeing,EXTRAFRIEND LTD,02/07/2014,900,
Bath & North East Somerset Council,80356065,LM6,Nursing Care,P03,Wellbeing,FAIRVIEW NURSING HOME,02/07/2014,564,
Bath & North East Somerset Council,80356065,LM6,Nursing Care,P03,Wellbeing,FAIRVIEW NURSING HOME,02/07/2014,564,
Bath & North East Somerset Council,80356099,LM3,Residential Care,P03,Wellbeing,FARLEIGH SCHOOLS LIMITED,02/07/2014,2027.13,
Bath & North East Somerset Council,80356099,LM3,Residential Care,P03,Wellbeing,FARLEIGH SCHOOLS LIMITED,02/07/2014,2027.13,
Bath & North East Somerset Council,80356215,LM3,Residential Care,P03,Wellbeing,FERFOOT LTD,02/07/2014,575,
Bath & North East Somerset Council,80356215,LM3,Residential Care,P03,Wellbeing,FERFOOT LTD,02/07/2014,575,
Bath & North East Somerset Council,10742103,LH2,Advertising,P01,Transport,TMP (UK) LTD,02/07/2014,450.42,
Bath & North East Somerset Council,80356108,LM6,Nursing Care,P03,Wellbeing,FIR LAWN NURSING HOME LTD,02/07/2014,564,
Bath & North East Somerset Council,80356108,LM6,Nursing Care,P03,Wellbeing,FIR LAWN NURSING HOME LTD,02/07/2014,564,
Bath & North East Somerset Council,80356132,LM6,Nursing Care,P03,Wellbeing,FLOLLIE INVESTMENTS LTD T/A STANTON NURS,02/07/2014,650,
Bath & North East Somerset Council,80356132,LM6,Nursing Care,P03,Wellbeing,FLOLLIE INVESTMENTS LTD T/A STANTON NURS,02/07/2014,650,
Bath & North East Somerset Council,80356117,LM6,Nursing Care,P03,Wellbeing,FOREST CARE LTD - OAK LODGE,02/07/2014,564,
Bath & North East Somerset Council,80356117,LM6,Nursing Care,P03,Wellbeing,FOREST CARE LTD - OAK LODGE,02/07/2014,564,
Bath & North East Somerset Council,80356153,LM6,Nursing Care,P03,Wellbeing,FOUR SEASONS (BAMFORD) LIMITED RE KINGSWOOD,02/07/2014,574.39,
Bath & North East Somerset Council,80356153,LM6,Nursing Care,P03,Wellbeing,FOUR SEASONS (BAMFORD) LIMITED RE KINGSWOOD,02/07/2014,574.39,
Bath & North East Somerset Council,80356151,LM6,Nursing Care,P03,Wellbeing,FOUR SEASONS EVEDALE LTD WHITCHURCH,02/07/2014,564,
Bath & North East Somerset Council,80356151,LM6,Nursing Care,P03,Wellbeing,FOUR SEASONS EVEDALE LTD WHITCHURCH,02/07/2014,564,
Bath & North East Somerset Council,80356151,LM6,Nursing Care,P03,Wellbeing,FOUR SEASONS EVEDALE LTD WHITCHURCH,02/07/2014,564,
Bath & North East Somerset Council,80356151,LM6,Nursing Care,P03,Wellbeing,FOUR SEASONS EVEDALE LTD WHITCHURCH,02/07/2014,564,
Bath & North East Somerset Council,10742564,HV4,Cleaning Materials,P06,Sustainable Development,AVANTI HYGIENE LTD,02/07/2014,458,
Bath & North East Somerset Council,80356151,LM6,Nursing Care,P03,Wellbeing,FOUR SEASONS EVEDALE LTD WHITCHURCH,02/07/2014,564,
Bath & North East Somerset Council,80356151,LM6,Nursing Care,P03,Wellbeing,FOUR SEASONS EVEDALE LTD WHITCHURCH,02/07/2014,564,
Bath & North East Somerset Council,80356224,LM3,Residential Care,P03,Wellbeing,FREEWAYS TRUST LTD,02/07/2014,578.02,
Bath & North East Somerset Council,80356224,LM3,Residential Care,P03,Wellbeing,FREEWAYS TRUST LTD,02/07/2014,578.02,
Bath & North East Somerset Council,80356223,LM3,Residential Care,P03,Wellbeing,FREEWAYS TRUST LTD,02/07/2014,701.05,
Bath & North East Somerset Council,80356223,LM3,Residential Care,P03,Wellbeing,FREEWAYS TRUST LTD,02/07/2014,701.05,
Bath & North East Somerset Council,80356223,LM3,Residential Care,P03,Wellbeing,FREEWAYS TRUST LTD,02/07/2014,737.3,
Bath & North East Somerset Council,80356223,LM3,Residential Care,P03,Wellbeing,FREEWAYS TRUST LTD,02/07/2014,737.3,
Bath & North East Somerset Council,80356114,LM3,Residential Care,P03,Wellbeing,FSHC NEWCO 2 LTD: REDACTED,02/07/2014,443,
Bath & North East Somerset Council,80356114,LM3,Residential Care,P03,Wellbeing,FSHC NEWCO 2 LTD: REDACTED,02/07/2014,443,
Bath & North East Somerset Council,80356114,LM3,Residential Care,P03,Wellbeing,FSHC NEWCO 2 LTD: REDACTED,02/07/2014,443,
Bath & North East Somerset Council,80356114,LM3,Residential Care,P03,Wellbeing,FSHC NEWCO 2 LTD: REDACTED,02/07/2014,443,
Bath & North East Somerset Council,80356114,LM3,Residential Care,P03,Wellbeing,FSHC NEWCO 2 LTD: REDACTED,02/07/2014,443,
Bath & North East Somerset Council,80356114,LM3,Residential Care,P03,Wellbeing,FSHC NEWCO 2 LTD: REDACTED,02/07/2014,443,
Bath & North East Somerset Council,80356114,LM3,Residential Care,P03,Wellbeing,FSHC NEWCO 2 LTD: REDACTED,02/07/2014,443,
Bath & North East Somerset Council,80356114,LM3,Residential Care,P03,Wellbeing,FSHC NEWCO 2 LTD: REDACTED,02/07/2014,443,
Bath & North East Somerset Council,80356114,LM3,Residential Care,P03,Wellbeing,FSHC NEWCO 2 LTD: REDACTED,02/07/2014,443,
Bath & North East Somerset Council,80356114,LM3,Residential Care,P03,Wellbeing,FSHC NEWCO 2 LTD: REDACTED,02/07/2014,443,
Bath & North East Somerset Council,80356114,LM3,Residential Care,P03,Wellbeing,FSHC NEWCO 2 LTD: REDACTED,02/07/2014,443,
Bath & North East Somerset Council,80356114,LM3,Residential Care,P03,Wellbeing,FSHC NEWCO 2 LTD: REDACTED,02/07/2014,443,
Bath & North East Somerset Council,80356114,LM3,Residential Care,P03,Wellbeing,FSHC NEWCO 2 LTD: REDACTED,02/07/2014,443,
Bath & North East Somerset Council,80356114,LM3,Residential Care,P03,Wellbeing,FSHC NEWCO 2 LTD: REDACTED,02/07/2014,443,
Bath & North East Somerset Council,80356114,LM3,Residential Care,P03,Wellbeing,FSHC NEWCO 2 LTD: REDACTED,02/07/2014,443,
Bath & North East Somerset Council,80356114,LM3,Residential Care,P03,Wellbeing,FSHC NEWCO 2 LTD: REDACTED,02/07/2014,443,
Bath & North East Somerset Council,80356114,LM3,Residential Care,P03,Wellbeing,FSHC NEWCO 2 LTD: REDACTED,02/07/2014,443,
Bath & North East Somerset Council,80356114,LM3,Residential Care,P03,Wellbeing,FSHC NEWCO 2 LTD: REDACTED,02/07/2014,443,
Bath & North East Somerset Council,80356114,LM3,Residential Care,P03,Wellbeing,FSHC NEWCO 2 LTD: REDACTED,02/07/2014,443,
Bath & North East Somerset Council,80356114,LM3,Residential Care,P03,Wellbeing,FSHC NEWCO 2 LTD: REDACTED,02/07/2014,443,
Bath & North East Somerset Council,80356114,LM3,Residential Care,P03,Wellbeing,FSHC NEWCO 2 LTD: REDACTED,02/07/2014,443,
Bath & North East Somerset Council,80356114,LM3,Residential Care,P03,Wellbeing,FSHC NEWCO 2 LTD: REDACTED,02/07/2014,443,
Bath & North East Somerset Council,80356114,LM3,Residential Care,P03,Wellbeing,FSHC NEWCO 2 LTD: REDACTED,02/07/2014,443,
Bath & North East Somerset Council,80356114,LM3,Residential Care,P03,Wellbeing,FSHC NEWCO 2 LTD: REDACTED,02/07/2014,443,
Bath & North East Somerset Council,80356114,LM3,Residential Care,P03,Wellbeing,FSHC NEWCO 2 LTD: REDACTED,02/07/2014,443,
Bath & North East Somerset Council,80356114,LM3,Residential Care,P03,Wellbeing,FSHC NEWCO 2 LTD: REDACTED,02/07/2014,443,
Bath & North East Somerset Council,80356114,LM3,Residential Care,P03,Wellbeing,FSHC NEWCO 2 LTD: REDACTED,02/07/2014,486,
Bath & North East Somerset Council,80356114,LM3,Residential Care,P03,Wellbeing,FSHC NEWCO 2 LTD: REDACTED,02/07/2014,486,
Bath & North East Somerset Council,80356114,LM3,Residential Care,P03,Wellbeing,FSHC NEWCO 2 LTD: REDACTED,02/07/2014,486,
Bath & North East Somerset Council,80356114,LM3,Residential Care,P03,Wellbeing,FSHC NEWCO 2 LTD: REDACTED,02/07/2014,486,
Bath & North East Somerset Council,80356114,LM3,Residential Care,P03,Wellbeing,FSHC NEWCO 2 LTD: REDACTED,02/07/2014,486,
Bath & North East Somerset Council,80356114,LM3,Residential Care,P03,Wellbeing,FSHC NEWCO 2 LTD: REDACTED,02/07/2014,486,
Bath & North East Somerset Council,80356202,LM6,Nursing Care,P03,Wellbeing,GRAND CROSS LTD RE KINGSWOOD COURT,02/07/2014,564,
Bath & North East Somerset Council,80356202,LM6,Nursing Care,P03,Wellbeing,GRAND CROSS LTD RE KINGSWOOD COURT,02/07/2014,564,
Bath & North East Somerset Council,80356149,LM3,Residential Care,P03,Wellbeing,GREENSLEEVES HOMES TRUST KINGSTON HOUS,02/07/2014,499.95,
Bath & North East Somerset Council,80356149,LM3,Residential Care,P03,Wellbeing,GREENSLEEVES HOMES TRUST KINGSTON HOUS,02/07/2014,499.95,
Bath & North East Somerset Council,80356110,LM3,Residential Care,P03,Wellbeing,GROVE CARE LTD T/A ORIEL LODGE,02/07/2014,486,
Bath & North East Somerset Council,80356110,LM3,Residential Care,P03,Wellbeing,GROVE CARE LTD T/A ORIEL LODGE,02/07/2014,486,
Bath & North East Somerset Council,80356110,LM3,Residential Care,P03,Wellbeing,GROVE CARE LTD T/A ORIEL LODGE,02/07/2014,600,
Bath & North East Somerset Council,80356110,LM3,Residential Care,P03,Wellbeing,GROVE CARE LTD T/A ORIEL LODGE,02/07/2014,600,
Bath & North East Somerset Council,80356110,LM3,Residential Care,P03,Wellbeing,GROVE CARE LTD T/A ORIEL LODGE,02/07/2014,600,
Bath & North East Somerset Council,80356110,LM3,Residential Care,P03,Wellbeing,GROVE CARE LTD T/A ORIEL LODGE,02/07/2014,600,
Bath & North East Somerset Council,80356110,LM3,Residential Care,P03,Wellbeing,GROVE CARE LTD T/A ORIEL LODGE,02/07/2014,600,
Bath & North East Somerset Council,80356110,LM3,Residential Care,P03,Wellbeing,GROVE CARE LTD T/A ORIEL LODGE,02/07/2014,600,
Bath & North East Somerset Council,80356110,LM3,Residential Care,P03,Wellbeing,GROVE CARE LTD T/A ORIEL LODGE,02/07/2014,630,
Bath & North East Somerset Council,80356110,LM3,Residential Care,P03,Wellbeing,GROVE CARE LTD T/A ORIEL LODGE,02/07/2014,630,
Bath & North East Somerset Council,80356201,LM3,Residential Care,P03,Wellbeing,HC1 LTD RE CATHERINE HOUSE,02/07/2014,486,
Bath & North East Somerset Council,80356201,LM3,Residential Care,P03,Wellbeing,HC1 LTD RE CATHERINE HOUSE,02/07/2014,486,
Bath & North East Somerset Council,80356201,LM6,Nursing Care,P03,Wellbeing,HC1 LTD RE CATHERINE HOUSE,02/07/2014,588,
Bath & North East Somerset Council,80356201,LM6,Nursing Care,P03,Wellbeing,HC1 LTD RE CATHERINE HOUSE,02/07/2014,588,
Bath & North East Somerset Council,80356201,LM6,Nursing Care,P03,Wellbeing,HC1 LTD RE CATHERINE HOUSE,02/07/2014,588,
Bath & North East Somerset Council,80356201,LM6,Nursing Care,P03,Wellbeing,HC1 LTD RE CATHERINE HOUSE,02/07/2014,588,
Bath & North East Somerset Council,80356201,LM6,Nursing Care,P03,Wellbeing,HC1 LTD RE CATHERINE HOUSE,02/07/2014,588,
Bath & North East Somerset Council,80356201,LM6,Nursing Care,P03,Wellbeing,HC1 LTD RE CATHERINE HOUSE,02/07/2014,588,
Bath & North East Somerset Council,80356201,LM6,Nursing Care,P03,Wellbeing,HC1 LTD RE CATHERINE HOUSE,02/07/2014,588,
Bath & North East Somerset Council,80356201,LM6,Nursing Care,P03,Wellbeing,HC1 LTD RE CATHERINE HOUSE,02/07/2014,588,
Bath & North East Somerset Council,80356201,LM6,Nursing Care,P03,Wellbeing,HC1 LTD RE CATHERINE HOUSE,02/07/2014,588,
Bath & North East Somerset Council,80356201,LM6,Nursing Care,P03,Wellbeing,HC1 LTD RE CATHERINE HOUSE,02/07/2014,588,
Bath & North East Somerset Council,80356201,LM6,Nursing Care,P03,Wellbeing,HC1 LTD RE CATHERINE HOUSE,02/07/2014,588,
Bath & North East Somerset Council,80356201,LM6,Nursing Care,P03,Wellbeing,HC1 LTD RE CATHERINE HOUSE,02/07/2014,588,
Bath & North East Somerset Council,80356201,LM6,Nursing Care,P03,Wellbeing,HC1 LTD RE CATHERINE HOUSE,02/07/2014,593.59,
Bath & North East Somerset Council,80356201,LM6,Nursing Care,P03,Wellbeing,HC1 LTD RE CATHERINE HOUSE,02/07/2014,593.59,
Bath & North East Somerset Council,80356210,LM6,Nursing Care,P03,Wellbeing,HEATHER HOUSE,02/07/2014,236.57,
Bath & North East Somerset Council,80356210,LM3,Residential Care,P03,Wellbeing,HEATHER HOUSE,02/07/2014,443,
Bath & North East Somerset Council,80356210,LM3,Residential Care,P03,Wellbeing,HEATHER HOUSE,02/07/2014,443,
Bath & North East Somerset Council,80356210,LM3,Residential Care,P03,Wellbeing,HEATHER HOUSE,02/07/2014,443,
Bath & North East Somerset Council,80356210,LM3,Residential Care,P03,Wellbeing,HEATHER HOUSE,02/07/2014,443,
Bath & North East Somerset Council,80356210,LM6,Nursing Care,P03,Wellbeing,HEATHER HOUSE,02/07/2014,552,
Bath & North East Somerset Council,80356210,LM6,Nursing Care,P03,Wellbeing,HEATHER HOUSE,02/07/2014,552,
Bath & North East Somerset Council,80356210,LM6,Nursing Care,P03,Wellbeing,HEATHER HOUSE,02/07/2014,552,
Bath & North East Somerset Council,80356210,LM6,Nursing Care,P03,Wellbeing,HEATHER HOUSE,02/07/2014,552,
Bath & North East Somerset Council,80356210,LM6,Nursing Care,P03,Wellbeing,HEATHER HOUSE,02/07/2014,552,
Bath & North East Somerset Council,80356210,LM6,Nursing Care,P03,Wellbeing,HEATHER HOUSE,02/07/2014,552,
Bath & North East Somerset Council,80356210,LM6,Nursing Care,P03,Wellbeing,HEATHER HOUSE,02/07/2014,552,
Bath & North East Somerset Council,80356210,LM6,Nursing Care,P03,Wellbeing,HEATHER HOUSE,02/07/2014,552,
Bath & North East Somerset Council,80356210,LM6,Nursing Care,P03,Wellbeing,HEATHER HOUSE,02/07/2014,552,
Bath & North East Somerset Council,80356210,LM6,Nursing Care,P03,Wellbeing,HEATHER HOUSE,02/07/2014,552,
Bath & North East Somerset Council,80356210,LM6,Nursing Care,P03,Wellbeing,HEATHER HOUSE,02/07/2014,552,
Bath & North East Somerset Council,80356210,LM6,Nursing Care,P03,Wellbeing,HEATHER HOUSE,02/07/2014,552,
Bath & North East Somerset Council,80356210,LM6,Nursing Care,P03,Wellbeing,HEATHER HOUSE,02/07/2014,552,
Bath & North East Somerset Council,80356210,LM6,Nursing Care,P03,Wellbeing,HEATHER HOUSE,02/07/2014,552,
Bath & North East Somerset Council,80356210,LM6,Nursing Care,P03,Wellbeing,HEATHER HOUSE,02/07/2014,552,
Bath & North East Somerset Council,80356210,LM6,Nursing Care,P03,Wellbeing,HEATHER HOUSE,02/07/2014,552,
Bath & North East Somerset Council,80356210,LM6,Nursing Care,P03,Wellbeing,HEATHER HOUSE,02/07/2014,564,
Bath & North East Somerset Council,80356210,LM6,Nursing Care,P03,Wellbeing,HEATHER HOUSE,02/07/2014,564,
Bath & North East Somerset Council,80356210,LM6,Nursing Care,P03,Wellbeing,HEATHER HOUSE,02/07/2014,564,
Bath & North East Somerset Council,80356210,LM6,Nursing Care,P03,Wellbeing,HEATHER HOUSE,02/07/2014,564,
Bath & North East Somerset Council,80356210,LM6,Nursing Care,P03,Wellbeing,HEATHER HOUSE,02/07/2014,564,
Bath & North East Somerset Council,80356210,LM6,Nursing Care,P03,Wellbeing,HEATHER HOUSE,02/07/2014,564,
Bath & North East Somerset Council,80356210,LM6,Nursing Care,P03,Wellbeing,HEATHER HOUSE,02/07/2014,564,
Bath & North East Somerset Council,80356210,LM6,Nursing Care,P03,Wellbeing,HEATHER HOUSE,02/07/2014,564,
Bath & North East Somerset Council,80356210,LM6,Nursing Care,P03,Wellbeing,HEATHER HOUSE,02/07/2014,564,
Bath & North East Somerset Council,80356210,LM6,Nursing Care,P03,Wellbeing,HEATHER HOUSE,02/07/2014,564,
Bath & North East Somerset Council,80356210,LM6,Nursing Care,P03,Wellbeing,HEATHER HOUSE,02/07/2014,564,
Bath & North East Somerset Council,80356210,LM6,Nursing Care,P03,Wellbeing,HEATHER HOUSE,02/07/2014,564,
Bath & North East Somerset Council,80356210,LM6,Nursing Care,P03,Wellbeing,HEATHER HOUSE,02/07/2014,564,
Bath & North East Somerset Council,80356210,LM6,Nursing Care,P03,Wellbeing,HEATHER HOUSE,02/07/2014,564,
Bath & North East Somerset Council,80356210,LM6,Nursing Care,P03,Wellbeing,HEATHER HOUSE,02/07/2014,564,
Bath & North East Somerset Council,80356210,LM6,Nursing Care,P03,Wellbeing,HEATHER HOUSE,02/07/2014,564,
Bath & North East Somerset Council,80356210,LM6,Nursing Care,P03,Wellbeing,HEATHER HOUSE,02/07/2014,564,
Bath & North East Somerset Council,80356210,LM6,Nursing Care,P03,Wellbeing,HEATHER HOUSE,02/07/2014,564,
Bath & North East Somerset Council,80356210,LM6,Nursing Care,P03,Wellbeing,HEATHER HOUSE,02/07/2014,564,
Bath & North East Somerset Council,80356210,LM6,Nursing Care,P03,Wellbeing,HEATHER HOUSE,02/07/2014,564,
Bath & North East Somerset Council,80356210,LM6,Nursing Care,P03,Wellbeing,HEATHER HOUSE,02/07/2014,588,
Bath & North East Somerset Council,80356210,LM6,Nursing Care,P03,Wellbeing,HEATHER HOUSE,02/07/2014,588,
Bath & North East Somerset Council,80356210,LM6,Nursing Care,P03,Wellbeing,HEATHER HOUSE,02/07/2014,588,
Bath & North East Somerset Council,80356210,LM6,Nursing Care,P03,Wellbeing,HEATHER HOUSE,02/07/2014,588,
Bath & North East Somerset Council,80356176,LM3,Residential Care,P03,Wellbeing,HF TRUST LTD,02/07/2014,967.28,
Bath & North East Somerset Council,80356176,LM3,Residential Care,P03,Wellbeing,HF TRUST LTD,02/07/2014,967.28,
Bath & North East Somerset Council,80356054,YF2,Fees & Charges,P03,Wellbeing,HOME FARM TRUST,02/07/2014,73.75,
Bath & North East Somerset Council,80356054,YF2,Fees & Charges,P03,Wellbeing,HOME FARM TRUST,02/07/2014,73.75,
Bath & North East Somerset Council,80356054,YF2,Fees & Charges,P03,Wellbeing,HOME FARM TRUST,02/07/2014,73.75,
Bath & North East Somerset Council,80356054,YF2,Fees & Charges,P03,Wellbeing,HOME FARM TRUST,02/07/2014,73.75,
Bath & North East Somerset Council,80356054,YF2,Fees & Charges,P03,Wellbeing,HOME FARM TRUST,02/07/2014,73.75,
Bath & North East Somerset Council,80356054,YF2,Fees & Charges,P03,Wellbeing,HOME FARM TRUST,02/07/2014,73.75,
Bath & North East Somerset Council,80356054,YF2,Fees & Charges,P03,Wellbeing,HOME FARM TRUST,02/07/2014,73.75,
Bath & North East Somerset Council,80356054,YF2,Fees & Charges,P03,Wellbeing,HOME FARM TRUST,02/07/2014,73.75,
Bath & North East Somerset Council,80356054,YF2,Fees & Charges,P03,Wellbeing,HOME FARM TRUST,02/07/2014,73.75,
Bath & North East Somerset Council,80356054,YF2,Fees & Charges,P03,Wellbeing,HOME FARM TRUST,02/07/2014,73.75,
Bath & North East Somerset Council,80356054,YF2,Fees & Charges,P03,Wellbeing,HOME FARM TRUST,02/07/2014,73.75,
Bath & North East Somerset Council,10741685,LA1,Equipment Purchase,P07,Community Resources,KINNARPS (UK) LTD,02/07/2014,502.97,
Bath & North East Somerset Council,80356054,LM3,Residential Care,P03,Wellbeing,HOME FARM TRUST,02/07/2014,948.05,
Bath & North East Somerset Council,80356054,LM3,Residential Care,P03,Wellbeing,HOME FARM TRUST,02/07/2014,948.05,
Bath & North East Somerset Council,80356093,LM3,Residential Care,P03,Wellbeing,HOME FARM TRUST LTD,02/07/2014,835.87,
Bath & North East Somerset Council,80356093,LM3,Residential Care,P03,Wellbeing,HOME FARM TRUST LTD,02/07/2014,835.87,
Bath & North East Somerset Council,80356177,LM3,Residential Care,P03,Wellbeing,HOMES CARING FOR AUTISM LTD,02/07/2014,2696.9,
Bath & North East Somerset Council,80356177,LM3,Residential Care,P03,Wellbeing,HOMES CARING FOR AUTISM LTD,02/07/2014,2696.9,
Bath & North East Somerset Council,80356177,LM3,Residential Care,P03,Wellbeing,HOMES CARING FOR AUTISM LTD,02/07/2014,3176.28,
Bath & North East Somerset Council,80356177,LM3,Residential Care,P03,Wellbeing,HOMES CARING FOR AUTISM LTD,02/07/2014,3176.28,
Bath & North East Somerset Council,80356042,LM3,Residential Care,P03,Wellbeing,HOMES TOGETHER LTD,02/07/2014,1014.98,
Bath & North East Somerset Council,80356042,LM3,Residential Care,P03,Wellbeing,HOMES TOGETHER LTD,02/07/2014,1014.98,
Bath & North East Somerset Council,80356154,LM6,Nursing Care,P03,Wellbeing,JASMINE COURT NURSIING HOME,02/07/2014,564,
Bath & North East Somerset Council,80356154,LM6,Nursing Care,P03,Wellbeing,JASMINE COURT NURSIING HOME,02/07/2014,564,
Bath & North East Somerset Council,80356148,LM3,Residential Care,P03,Wellbeing,KINGFISHER HEALTHCARE LIMITED,02/07/2014,443,
Bath & North East Somerset Council,80356148,LM3,Residential Care,P03,Wellbeing,KINGFISHER HEALTHCARE LIMITED,02/07/2014,443,
Bath & North East Somerset Council,80356211,LM6,Nursing Care,P03,Wellbeing,LARKHALL SPRINGS NURSING HOME,02/07/2014,564,
Bath & North East Somerset Council,80356211,LM6,Nursing Care,P03,Wellbeing,LARKHALL SPRINGS NURSING HOME,02/07/2014,564,
Bath & North East Somerset Council,80356211,LM6,Nursing Care,P03,Wellbeing,LARKHALL SPRINGS NURSING HOME,02/07/2014,564,
Bath & North East Somerset Council,80356211,LM6,Nursing Care,P03,Wellbeing,LARKHALL SPRINGS NURSING HOME,02/07/2014,564,
Bath & North East Somerset Council,80356211,LM6,Nursing Care,P03,Wellbeing,LARKHALL SPRINGS NURSING HOME,02/07/2014,588,
Bath & North East Somerset Council,80356211,LM6,Nursing Care,P03,Wellbeing,LARKHALL SPRINGS NURSING HOME,02/07/2014,588,
Bath & North East Somerset Council,80356211,LM6,Nursing Care,P03,Wellbeing,LARKHALL SPRINGS NURSING HOME,02/07/2014,599.94,
Bath & North East Somerset Council,80356211,LM6,Nursing Care,P03,Wellbeing,LARKHALL SPRINGS NURSING HOME,02/07/2014,599.94,
Bath & North East Somerset Council,80356211,LM6,Nursing Care,P03,Wellbeing,LARKHALL SPRINGS NURSING HOME,02/07/2014,600,
Bath & North East Somerset Council,80356211,LM6,Nursing Care,P03,Wellbeing,LARKHALL SPRINGS NURSING HOME,02/07/2014,600,
Bath & North East Somerset Council,80356211,LM6,Nursing Care,P03,Wellbeing,LARKHALL SPRINGS NURSING HOME,02/07/2014,600,
Bath & North East Somerset Council,80356211,LM6,Nursing Care,P03,Wellbeing,LARKHALL SPRINGS NURSING HOME,02/07/2014,600,
Bath & North East Somerset Council,80356211,LM6,Nursing Care,P03,Wellbeing,LARKHALL SPRINGS NURSING HOME,02/07/2014,650,
Bath & North East Somerset Council,80356211,LM6,Nursing Care,P03,Wellbeing,LARKHALL SPRINGS NURSING HOME,02/07/2014,650,
Bath & North East Somerset Council,80356211,LM6,Nursing Care,P03,Wellbeing,LARKHALL SPRINGS NURSING HOME,02/07/2014,650,
Bath & North East Somerset Council,80356211,LM6,Nursing Care,P03,Wellbeing,LARKHALL SPRINGS NURSING HOME,02/07/2014,650,
Bath & North East Somerset Council,80356211,LM6,Nursing Care,P03,Wellbeing,LARKHALL SPRINGS NURSING HOME,02/07/2014,650,
Bath & North East Somerset Council,80356211,LM6,Nursing Care,P03,Wellbeing,LARKHALL SPRINGS NURSING HOME,02/07/2014,650,
Bath & North East Somerset Council,80356211,LM6,Nursing Care,P03,Wellbeing,LARKHALL SPRINGS NURSING HOME,02/07/2014,650,
Bath & North East Somerset Council,80356211,LM6,Nursing Care,P03,Wellbeing,LARKHALL SPRINGS NURSING HOME,02/07/2014,650,
Bath & North East Somerset Council,80356211,LM6,Nursing Care,P03,Wellbeing,LARKHALL SPRINGS NURSING HOME,02/07/2014,650,
Bath & North East Somerset Council,80356211,LM6,Nursing Care,P03,Wellbeing,LARKHALL SPRINGS NURSING HOME,02/07/2014,650,
Bath & North East Somerset Council,80356211,LM6,Nursing Care,P03,Wellbeing,LARKHALL SPRINGS NURSING HOME,02/07/2014,650,
Bath & North East Somerset Council,80356211,LM6,Nursing Care,P03,Wellbeing,LARKHALL SPRINGS NURSING HOME,02/07/2014,650,
Bath & North East Somerset Council,80356211,LM6,Nursing Care,P03,Wellbeing,LARKHALL SPRINGS NURSING HOME,02/07/2014,700,
Bath & North East Somerset Council,80356211,LM6,Nursing Care,P03,Wellbeing,LARKHALL SPRINGS NURSING HOME,02/07/2014,700,
Bath & North East Somerset Council,80356211,LM6,Nursing Care,P03,Wellbeing,LARKHALL SPRINGS NURSING HOME,02/07/2014,700,
Bath & North East Somerset Council,80356211,LM6,Nursing Care,P03,Wellbeing,LARKHALL SPRINGS NURSING HOME,02/07/2014,700,
Bath & North East Somerset Council,80356162,LM3,Residential Care,P03,Wellbeing,LATIMER LODGE RESIDENTIAL HOME,02/07/2014,443,
Bath & North East Somerset Council,80356162,LM3,Residential Care,P03,Wellbeing,LATIMER LODGE RESIDENTIAL HOME,02/07/2014,443,
Bath & North East Somerset Council,80356175,LM6,Nursing Care,P03,Wellbeing,LAUDCARE LIMITED RE SUNNYMEAD CARE HOME,02/07/2014,486,
Bath & North East Somerset Council,80356175,LM6,Nursing Care,P03,Wellbeing,LAUDCARE LIMITED RE SUNNYMEAD CARE HOME,02/07/2014,486,
Bath & North East Somerset Council,80356175,LM6,Nursing Care,P03,Wellbeing,LAUDCARE LIMITED RE SUNNYMEAD CARE HOME,02/07/2014,588,
Bath & North East Somerset Council,80356175,LM6,Nursing Care,P03,Wellbeing,LAUDCARE LIMITED RE SUNNYMEAD CARE HOME,02/07/2014,588,
Bath & North East Somerset Council,80356173,LM6,Nursing Care,P03,Wellbeing,LAUDCARE LTD,02/07/2014,568.7,
Bath & North East Somerset Council,80356173,LM6,Nursing Care,P03,Wellbeing,LAUDCARE LTD,02/07/2014,568.7,
Bath & North East Somerset Council,80356143,LM6,Nursing Care,P03,Wellbeing,LAUDCARE LTD RE LADYMEAD CARE HOME,02/07/2014,588,
Bath & North East Somerset Council,80356143,LM6,Nursing Care,P03,Wellbeing,LAUDCARE LTD RE LADYMEAD CARE HOME,02/07/2014,588,
Bath & North East Somerset Council,80356086,YF2,Fees & Charges,P03,Wellbeing,LEONARD CHESHIRE FOUNDATION,02/07/2014,73.75,
Bath & North East Somerset Council,80356086,YF2,Fees & Charges,P03,Wellbeing,LEONARD CHESHIRE FOUNDATION,02/07/2014,73.75,
Bath & North East Somerset Council,80356086,YF2,Fees & Charges,P03,Wellbeing,LEONARD CHESHIRE FOUNDATION,02/07/2014,73.75,
Bath & North East Somerset Council,80356086,YF2,Fees & Charges,P03,Wellbeing,LEONARD CHESHIRE FOUNDATION,02/07/2014,73.75,
Bath & North East Somerset Council,80356086,YF2,Fees & Charges,P03,Wellbeing,LEONARD CHESHIRE FOUNDATION,02/07/2014,73.75,
Bath & North East Somerset Council,80356086,YF2,Fees & Charges,P03,Wellbeing,LEONARD CHESHIRE FOUNDATION,02/07/2014,73.75,
Bath & North East Somerset Council,80356086,YF2,Fees & Charges,P03,Wellbeing,LEONARD CHESHIRE FOUNDATION,02/07/2014,73.75,
Bath & North East Somerset Council,80356086,YF2,Fees & Charges,P03,Wellbeing,LEONARD CHESHIRE FOUNDATION,02/07/2014,73.75,
Bath & North East Somerset Council,80356086,YF2,Fees & Charges,P03,Wellbeing,LEONARD CHESHIRE FOUNDATION,02/07/2014,73.75,
Bath & North East Somerset Council,80356086,YF2,Fees & Charges,P03,Wellbeing,LEONARD CHESHIRE FOUNDATION,02/07/2014,73.75,
Bath & North East Somerset Council,80356086,YF2,Fees & Charges,P03,Wellbeing,LEONARD CHESHIRE FOUNDATION,02/07/2014,73.75,
Bath & North East Somerset Council,80356086,YF2,Fees & Charges,P03,Wellbeing,LEONARD CHESHIRE FOUNDATION,02/07/2014,73.98,
Bath & North East Somerset Council,80356086,YF2,Fees & Charges,P03,Wellbeing,LEONARD CHESHIRE FOUNDATION,02/07/2014,73.98,
Bath & North East Somerset Council,80356086,YF2,Fees & Charges,P03,Wellbeing,LEONARD CHESHIRE FOUNDATION,02/07/2014,73.98,
Bath & North East Somerset Council,80356086,YF2,Fees & Charges,P03,Wellbeing,LEONARD CHESHIRE FOUNDATION,02/07/2014,73.98,
Bath & North East Somerset Council,80356086,YF2,Fees & Charges,P03,Wellbeing,LEONARD CHESHIRE FOUNDATION,02/07/2014,73.98,
Bath & North East Somerset Council,80356086,YF2,Fees & Charges,P03,Wellbeing,LEONARD CHESHIRE FOUNDATION,02/07/2014,73.98,
Bath & North East Somerset Council,80356086,YF2,Fees & Charges,P03,Wellbeing,LEONARD CHESHIRE FOUNDATION,02/07/2014,73.98,
Bath & North East Somerset Council,80356086,YF2,Fees & Charges,P03,Wellbeing,LEONARD CHESHIRE FOUNDATION,02/07/2014,73.98,
Bath & North East Somerset Council,80356086,YF2,Fees & Charges,P03,Wellbeing,LEONARD CHESHIRE FOUNDATION,02/07/2014,73.98,
Bath & North East Somerset Council,80356086,YF2,Fees & Charges,P03,Wellbeing,LEONARD CHESHIRE FOUNDATION,02/07/2014,73.98,
Bath & North East Somerset Council,80356086,YF2,Fees & Charges,P03,Wellbeing,LEONARD CHESHIRE FOUNDATION,02/07/2014,73.98,
Bath & North East Somerset Council,80356086,YF2,Fees & Charges,P03,Wellbeing,LEONARD CHESHIRE FOUNDATION,02/07/2014,74.9,
Bath & North East Somerset Council,80356086,YF2,Fees & Charges,P03,Wellbeing,LEONARD CHESHIRE FOUNDATION,02/07/2014,74.9,
Bath & North East Somerset Council,80356086,YF2,Fees & Charges,P03,Wellbeing,LEONARD CHESHIRE FOUNDATION,02/07/2014,74.9,
Bath & North East Somerset Council,80356086,YF2,Fees & Charges,P03,Wellbeing,LEONARD CHESHIRE FOUNDATION,02/07/2014,74.9,
Bath & North East Somerset Council,80356086,YF2,Fees & Charges,P03,Wellbeing,LEONARD CHESHIRE FOUNDATION,02/07/2014,74.9,
Bath & North East Somerset Council,80356086,YF2,Fees & Charges,P03,Wellbeing,LEONARD CHESHIRE FOUNDATION,02/07/2014,74.9,
Bath & North East Somerset Council,80356086,YF2,Fees & Charges,P03,Wellbeing,LEONARD CHESHIRE FOUNDATION,02/07/2014,74.9,
Bath & North East Somerset Council,80356086,YF2,Fees & Charges,P03,Wellbeing,LEONARD CHESHIRE FOUNDATION,02/07/2014,74.9,
Bath & North East Somerset Council,80356086,YF2,Fees & Charges,P03,Wellbeing,LEONARD CHESHIRE FOUNDATION,02/07/2014,74.9,
Bath & North East Somerset Council,80356086,YF2,Fees & Charges,P03,Wellbeing,LEONARD CHESHIRE FOUNDATION,02/07/2014,74.9,
Bath & North East Somerset Council,80356086,YF2,Fees & Charges,P03,Wellbeing,LEONARD CHESHIRE FOUNDATION,02/07/2014,74.9,
Bath & North East Somerset Council,80356086,YF2,Fees & Charges,P03,Wellbeing,LEONARD CHESHIRE FOUNDATION,02/07/2014,77.85,
Bath & North East Somerset Council,80356086,YF2,Fees & Charges,P03,Wellbeing,LEONARD CHESHIRE FOUNDATION,02/07/2014,77.85,
Bath & North East Somerset Council,80356086,YF2,Fees & Charges,P03,Wellbeing,LEONARD CHESHIRE FOUNDATION,02/07/2014,77.85,
Bath & North East Somerset Council,80356086,YF2,Fees & Charges,P03,Wellbeing,LEONARD CHESHIRE FOUNDATION,02/07/2014,77.85,
Bath & North East Somerset Council,80356086,YF2,Fees & Charges,P03,Wellbeing,LEONARD CHESHIRE FOUNDATION,02/07/2014,77.85,
Bath & North East Somerset Council,80356086,YF2,Fees & Charges,P03,Wellbeing,LEONARD CHESHIRE FOUNDATION,02/07/2014,77.85,
Bath & North East Somerset Council,80356086,YF2,Fees & Charges,P03,Wellbeing,LEONARD CHESHIRE FOUNDATION,02/07/2014,77.85,
Bath & North East Somerset Council,80356086,YF2,Fees & Charges,P03,Wellbeing,LEONARD CHESHIRE FOUNDATION,02/07/2014,77.85,
Bath & North East Somerset Council,80356086,YF2,Fees & Charges,P03,Wellbeing,LEONARD CHESHIRE FOUNDATION,02/07/2014,77.85,
Bath & North East Somerset Council,80356086,YF2,Fees & Charges,P03,Wellbeing,LEONARD CHESHIRE FOUNDATION,02/07/2014,77.85,
Bath & North East Somerset Council,80356086,YF2,Fees & Charges,P03,Wellbeing,LEONARD CHESHIRE FOUNDATION,02/07/2014,77.85,
Bath & North East Somerset Council,80356086,YF2,Fees & Charges,P03,Wellbeing,LEONARD CHESHIRE FOUNDATION,02/07/2014,84.27,
Bath & North East Somerset Council,80356086,YF2,Fees & Charges,P03,Wellbeing,LEONARD CHESHIRE FOUNDATION,02/07/2014,84.27,
Bath & North East Somerset Council,80356086,YF2,Fees & Charges,P03,Wellbeing,LEONARD CHESHIRE FOUNDATION,02/07/2014,84.27,
Bath & North East Somerset Council,80356086,YF2,Fees & Charges,P03,Wellbeing,LEONARD CHESHIRE FOUNDATION,02/07/2014,84.27,
Bath & North East Somerset Council,80356086,YF2,Fees & Charges,P03,Wellbeing,LEONARD CHESHIRE FOUNDATION,02/07/2014,84.27,
Bath & North East Somerset Council,80356086,YF2,Fees & Charges,P03,Wellbeing,LEONARD CHESHIRE FOUNDATION,02/07/2014,84.27,
Bath & North East Somerset Council,80356086,YF2,Fees & Charges,P03,Wellbeing,LEONARD CHESHIRE FOUNDATION,02/07/2014,84.27,
Bath & North East Somerset Council,80356086,YF2,Fees & Charges,P03,Wellbeing,LEONARD CHESHIRE FOUNDATION,02/07/2014,84.27,
Bath & North East Somerset Council,80356086,YF2,Fees & Charges,P03,Wellbeing,LEONARD CHESHIRE FOUNDATION,02/07/2014,84.27,
Bath & North East Somerset Council,80356086,YF2,Fees & Charges,P03,Wellbeing,LEONARD CHESHIRE FOUNDATION,02/07/2014,84.27,
Bath & North East Somerset Council,80356086,YF2,Fees & Charges,P03,Wellbeing,LEONARD CHESHIRE FOUNDATION,02/07/2014,84.27,
Bath & North East Somerset Council,80356087,YF2,Fees & Charges,P03,Wellbeing,LEONARD CHESHIRE FOUNDATION,02/07/2014,143.45,
Bath & North East Somerset Council,80356087,YF2,Fees & Charges,P03,Wellbeing,LEONARD CHESHIRE FOUNDATION,02/07/2014,143.45,
Bath & North East Somerset Council,80356087,YF2,Fees & Charges,P03,Wellbeing,LEONARD CHESHIRE FOUNDATION,02/07/2014,143.45,
Bath & North East Somerset Council,80356087,YF2,Fees & Charges,P03,Wellbeing,LEONARD CHESHIRE FOUNDATION,02/07/2014,143.45,
Bath & North East Somerset Council,80356087,YF2,Fees & Charges,P03,Wellbeing,LEONARD CHESHIRE FOUNDATION,02/07/2014,143.45,
Bath & North East Somerset Council,80356087,YF2,Fees & Charges,P03,Wellbeing,LEONARD CHESHIRE FOUNDATION,02/07/2014,143.45,
Bath & North East Somerset Council,80356087,YF2,Fees & Charges,P03,Wellbeing,LEONARD CHESHIRE FOUNDATION,02/07/2014,143.45,
Bath & North East Somerset Council,80356087,YF2,Fees & Charges,P03,Wellbeing,LEONARD CHESHIRE FOUNDATION,02/07/2014,143.45,
Bath & North East Somerset Council,80356087,YF2,Fees & Charges,P03,Wellbeing,LEONARD CHESHIRE FOUNDATION,02/07/2014,143.45,
Bath & North East Somerset Council,80356087,YF2,Fees & Charges,P03,Wellbeing,LEONARD CHESHIRE FOUNDATION,02/07/2014,143.45,
Bath & North East Somerset Council,80356087,YF2,Fees & Charges,P03,Wellbeing,LEONARD CHESHIRE FOUNDATION,02/07/2014,143.45,
Bath & North East Somerset Council,80356086,LM6,Nursing Care,P03,Wellbeing,LEONARD CHESHIRE FOUNDATION,02/07/2014,157.14,
Bath & North East Somerset Council,80356086,LM6,Nursing Care,P03,Wellbeing,LEONARD CHESHIRE FOUNDATION,02/07/2014,628.57,
Bath & North East Somerset Council,80356086,LM3,Residential Care,P03,Wellbeing,LEONARD CHESHIRE FOUNDATION,02/07/2014,671.04,
Bath & North East Somerset Council,80356086,LM3,Residential Care,P03,Wellbeing,LEONARD CHESHIRE FOUNDATION,02/07/2014,671.04,
Bath & North East Somerset Council,80356086,LM3,Residential Care,P03,Wellbeing,LEONARD CHESHIRE FOUNDATION,02/07/2014,724.35,
Bath & North East Somerset Council,80356086,LM3,Residential Care,P03,Wellbeing,LEONARD CHESHIRE FOUNDATION,02/07/2014,724.35,
Bath & North East Somerset Council,80356087,LM3,Residential Care,P03,Wellbeing,LEONARD CHESHIRE FOUNDATION,02/07/2014,737.81,
Bath & North East Somerset Council,80356087,LM3,Residential Care,P03,Wellbeing,LEONARD CHESHIRE FOUNDATION,02/07/2014,737.81,
Bath & North East Somerset Council,80356086,LM3,Residential Care,P03,Wellbeing,LEONARD CHESHIRE FOUNDATION,02/07/2014,822.69,
Bath & North East Somerset Council,80356086,LM3,Residential Care,P03,Wellbeing,LEONARD CHESHIRE FOUNDATION,02/07/2014,822.69,
Bath & North East Somerset Council,80356086,LM6,Nursing Care,P03,Wellbeing,LEONARD CHESHIRE FOUNDATION,02/07/2014,835.56,
Bath & North East Somerset Council,80356086,LM6,Nursing Care,P03,Wellbeing,LEONARD CHESHIRE FOUNDATION,02/07/2014,835.56,
Bath & North East Somerset Council,80356086,LM6,Nursing Care,P03,Wellbeing,LEONARD CHESHIRE FOUNDATION,02/07/2014,900,
Bath & North East Somerset Council,80356086,LM6,Nursing Care,P03,Wellbeing,LEONARD CHESHIRE FOUNDATION,02/07/2014,900,
Bath & North East Somerset Council,80356086,LM6,Nursing Care,P03,Wellbeing,LEONARD CHESHIRE FOUNDATION,02/07/2014,928.71,
Bath & North East Somerset Council,80356086,LM6,Nursing Care,P03,Wellbeing,LEONARD CHESHIRE FOUNDATION,02/07/2014,928.71,
Bath & North East Somerset Council,80356086,LM3,Residential Care,P03,Wellbeing,LEONARD CHESHIRE FOUNDATION,02/07/2014,988.5,
Bath & North East Somerset Council,80356086,LM3,Residential Care,P03,Wellbeing,LEONARD CHESHIRE FOUNDATION,02/07/2014,988.5,
Bath & North East Somerset Council,80356086,LM3,Residential Care,P03,Wellbeing,LEONARD CHESHIRE FOUNDATION,02/07/2014,1011.85,
Bath & North East Somerset Council,80356086,LM3,Residential Care,P03,Wellbeing,LEONARD CHESHIRE FOUNDATION,02/07/2014,1011.85,
Bath & North East Somerset Council,80356086,LM3,Residential Care,P03,Wellbeing,LEONARD CHESHIRE FOUNDATION,02/07/2014,1039.2,
Bath & North East Somerset Council,80356086,LM3,Residential Care,P03,Wellbeing,LEONARD CHESHIRE FOUNDATION,02/07/2014,1039.2,
Bath & North East Somerset Council,80356086,LM6,Nursing Care,P03,Wellbeing,LEONARD CHESHIRE FOUNDATION,02/07/2014,1069.95,
Bath & North East Somerset Council,80356086,LM6,Nursing Care,P03,Wellbeing,LEONARD CHESHIRE FOUNDATION,02/07/2014,1069.95,
Bath & North East Somerset Council,80356085,LM3,Residential Care,P03,Wellbeing,LEONARD CHESHIRE FOUNDATION,02/07/2014,1150.83,
Bath & North East Somerset Council,80356085,LM3,Residential Care,P03,Wellbeing,LEONARD CHESHIRE FOUNDATION,02/07/2014,1150.83,
Bath & North East Somerset Council,80356086,LM6,Nursing Care,P03,Wellbeing,LEONARD CHESHIRE FOUNDATION,02/07/2014,1186.52,
Bath & North East Somerset Council,80356086,LM6,Nursing Care,P03,Wellbeing,LEONARD CHESHIRE FOUNDATION,02/07/2014,1186.52,
Bath & North East Somerset Council,80356122,LM6,Nursing Care,P03,Wellbeing,LIFESTYLE CARE (2005) PLC,02/07/2014,618,
Bath & North East Somerset Council,80356122,LM6,Nursing Care,P03,Wellbeing,LIFESTYLE CARE (2005) PLC,02/07/2014,618,
Bath & North East Somerset Council,80356127,LM3,Residential Care,P03,Wellbeing,LILLIPUT HOUSE REST HOME,02/07/2014,518.13,
Bath & North East Somerset Council,80356127,LM3,Residential Care,P03,Wellbeing,LILLIPUT HOUSE REST HOME,02/07/2014,518.13,
Bath & North East Somerset Council,80356119,LM6,Nursing Care,P03,Wellbeing,LINKSMAX LTD TDA - REDACTED,02/07/2014,825,
Bath & North East Somerset Council,80356119,LM6,Nursing Care,P03,Wellbeing,LINKSMAX LTD TDA - REDACTED,02/07/2014,825,
Bath & North East Somerset Council,80356058,LM3,Residential Care,P03,Wellbeing,MANOR COMMUNITY CARE HOME,02/07/2014,798,
Bath & North East Somerset Council,80356058,LM3,Residential Care,P03,Wellbeing,MANOR COMMUNITY CARE HOME,02/07/2014,798,
Bath & North East Somerset Council,80356058,LM3,Residential Care,P03,Wellbeing,MANOR COMMUNITY CARE HOME,02/07/2014,1278,
Bath & North East Somerset Council,80356058,LM3,Residential Care,P03,Wellbeing,MANOR COMMUNITY CARE HOME,02/07/2014,1278,
Bath & North East Somerset Council,80356112,YF2,Fees & Charges,P03,Wellbeing,MANOR HOUSE,02/07/2014,87.35,
Bath & North East Somerset Council,80356112,YF2,Fees & Charges,P03,Wellbeing,MANOR HOUSE,02/07/2014,87.35,
Bath & North East Somerset Council,80356112,YF2,Fees & Charges,P03,Wellbeing,MANOR HOUSE,02/07/2014,87.35,
Bath & North East Somerset Council,80356112,YF2,Fees & Charges,P03,Wellbeing,MANOR HOUSE,02/07/2014,87.35,
Bath & North East Somerset Council,80356112,YF2,Fees & Charges,P03,Wellbeing,MANOR HOUSE,02/07/2014,87.35,
Bath & North East Somerset Council,80356112,YF2,Fees & Charges,P03,Wellbeing,MANOR HOUSE,02/07/2014,87.35,
Bath & North East Somerset Council,80356112,YF2,Fees & Charges,P03,Wellbeing,MANOR HOUSE,02/07/2014,87.35,
Bath & North East Somerset Council,80356112,YF2,Fees & Charges,P03,Wellbeing,MANOR HOUSE,02/07/2014,87.35,
Bath & North East Somerset Council,80356112,YF2,Fees & Charges,P03,Wellbeing,MANOR HOUSE,02/07/2014,87.35,
Bath & North East Somerset Council,80356112,YF2,Fees & Charges,P03,Wellbeing,MANOR HOUSE,02/07/2014,87.35,
Bath & North East Somerset Council,80356112,YF2,Fees & Charges,P03,Wellbeing,MANOR HOUSE,02/07/2014,87.35,
Bath & North East Somerset Council,80356112,LM3,Residential Care,P03,Wellbeing,MANOR HOUSE,02/07/2014,546.05,
Bath & North East Somerset Council,80356112,LM3,Residential Care,P03,Wellbeing,MANOR HOUSE,02/07/2014,546.05,
Bath & North East Somerset Council,80356101,LM3,Residential Care,P03,Wellbeing,MANOR HOUSE,02/07/2014,661.56,
Bath & North East Somerset Council,80356101,LM3,Residential Care,P03,Wellbeing,MANOR HOUSE,02/07/2014,661.56,
Bath & North East Somerset Council,80356112,LM3,Residential Care,P03,Wellbeing,MANOR HOUSE,02/07/2014,725.61,
Bath & North East Somerset Council,80356112,LM3,Residential Care,P03,Wellbeing,MANOR HOUSE,02/07/2014,725.61,
Bath & North East Somerset Council,80356112,LM3,Residential Care,P03,Wellbeing,MANOR HOUSE,02/07/2014,1307,
Bath & North East Somerset Council,80356112,LM3,Residential Care,P03,Wellbeing,MANOR HOUSE,02/07/2014,1307,
Bath & North East Somerset Council,80356180,LM3,Residential Care,P03,Wellbeing,MARTHA TRUST HEREFORD LTD CORPORATE SP,02/07/2014,2848.51,
Bath & North East Somerset Council,80356180,LM3,Residential Care,P03,Wellbeing,MARTHA TRUST HEREFORD LTD CORPORATE SP,02/07/2014,2848.51,
Bath & North East Somerset Council,80356182,LM6,Nursing Care,P03,Wellbeing,MELTON HEALTH CARE LTD,02/07/2014,670,
Bath & North East Somerset Council,80356182,LM6,Nursing Care,P03,Wellbeing,MELTON HEALTH CARE LTD,02/07/2014,670,
Bath & North East Somerset Council,80356031,YF2,Fees & Charges,P03,Wellbeing,METHODIST HOMES FOR THE AGED,02/07/2014,154.71,
Bath & North East Somerset Council,80356031,YF2,Fees & Charges,P03,Wellbeing,METHODIST HOMES FOR THE AGED,02/07/2014,180.49,
Bath & North East Somerset Council,80356031,LM3,Residential Care,P03,Wellbeing,METHODIST HOMES FOR THE AGED,02/07/2014,443,
Bath & North East Somerset Council,80356031,LM3,Residential Care,P03,Wellbeing,METHODIST HOMES FOR THE AGED,02/07/2014,443,
Bath & North East Somerset Council,80356031,LM3,Residential Care,P03,Wellbeing,METHODIST HOMES FOR THE AGED,02/07/2014,443,
Bath & North East Somerset Council,80356031,LM3,Residential Care,P03,Wellbeing,METHODIST HOMES FOR THE AGED,02/07/2014,443,
Bath & North East Somerset Council,80356031,LM3,Residential Care,P03,Wellbeing,METHODIST HOMES FOR THE AGED,02/07/2014,443,
Bath & North East Somerset Council,80356031,LM3,Residential Care,P03,Wellbeing,METHODIST HOMES FOR THE AGED,02/07/2014,443,
Bath & North East Somerset Council,80356031,LM3,Residential Care,P03,Wellbeing,METHODIST HOMES FOR THE AGED,02/07/2014,443,
Bath & North East Somerset Council,80356031,LM3,Residential Care,P03,Wellbeing,METHODIST HOMES FOR THE AGED,02/07/2014,443,
Bath & North East Somerset Council,80356031,LM3,Residential Care,P03,Wellbeing,METHODIST HOMES FOR THE AGED,02/07/2014,443,
Bath & North East Somerset Council,80356031,LM3,Residential Care,P03,Wellbeing,METHODIST HOMES FOR THE AGED,02/07/2014,443,
Bath & North East Somerset Council,80356030,LM6,Nursing Care,P03,Wellbeing,METHODIST HOMES FOR THE AGED,02/07/2014,588,
Bath & North East Somerset Council,80356030,LM6,Nursing Care,P03,Wellbeing,METHODIST HOMES FOR THE AGED,02/07/2014,588,
Bath & North East Somerset Council,80356030,LM6,Nursing Care,P03,Wellbeing,METHODIST HOMES FOR THE AGED,02/07/2014,810,
Bath & North East Somerset Council,80356030,LM6,Nursing Care,P03,Wellbeing,METHODIST HOMES FOR THE AGED,02/07/2014,810,
Bath & North East Somerset Council,80356147,YF2,Fees & Charges,P03,Wellbeing,MILESTONES TRUST,02/07/2014,65.85,
Bath & North East Somerset Council,80356147,YF2,Fees & Charges,P03,Wellbeing,MILESTONES TRUST,02/07/2014,65.85,
Bath & North East Somerset Council,80356147,YF2,Fees & Charges,P03,Wellbeing,MILESTONES TRUST,02/07/2014,65.85,
Bath & North East Somerset Council,80356147,YF2,Fees & Charges,P03,Wellbeing,MILESTONES TRUST,02/07/2014,65.85,
Bath & North East Somerset Council,80356147,YF2,Fees & Charges,P03,Wellbeing,MILESTONES TRUST,02/07/2014,65.85,
Bath & North East Somerset Council,80356147,YF2,Fees & Charges,P03,Wellbeing,MILESTONES TRUST,02/07/2014,65.85,
Bath & North East Somerset Council,80356147,YF2,Fees & Charges,P03,Wellbeing,MILESTONES TRUST,02/07/2014,65.85,
Bath & North East Somerset Council,80356147,YF2,Fees & Charges,P03,Wellbeing,MILESTONES TRUST,02/07/2014,65.85,
Bath & North East Somerset Council,80356147,YF2,Fees & Charges,P03,Wellbeing,MILESTONES TRUST,02/07/2014,65.85,
Bath & North East Somerset Council,80356147,YF2,Fees & Charges,P03,Wellbeing,MILESTONES TRUST,02/07/2014,65.85,
Bath & North East Somerset Council,80356147,YF2,Fees & Charges,P03,Wellbeing,MILESTONES TRUST,02/07/2014,65.85,
Bath & North East Somerset Council,80356147,LM3,Residential Care,P03,Wellbeing,MILESTONES TRUST,02/07/2014,946,
Bath & North East Somerset Council,80356147,LM3,Residential Care,P03,Wellbeing,MILESTONES TRUST,02/07/2014,946,
Bath & North East Somerset Council,80356147,LM3,Residential Care,P03,Wellbeing,MILESTONES TRUST,02/07/2014,956.76,
Bath & North East Somerset Council,80356147,LM3,Residential Care,P03,Wellbeing,MILESTONES TRUST,02/07/2014,956.76,
Bath & North East Somerset Council,80356158,LM3,Residential Care,P03,Wellbeing,MILESTONES TRUST,02/07/2014,986.36,
Bath & North East Somerset Council,80356158,LM3,Residential Care,P03,Wellbeing,MILESTONES TRUST,02/07/2014,986.36,
Bath & North East Somerset Council,80356217,YF2,Fees & Charges,P03,Wellbeing,MIMOSA (NO13) - PONDSMEAD,02/07/2014,17.71,
Bath & North East Somerset Council,80356217,LM6,Nursing Care,P03,Wellbeing,MIMOSA (NO13) - PONDSMEAD,02/07/2014,241.71,
Bath & North East Somerset Council,80356217,LM3,Residential Care,P03,Wellbeing,MIMOSA (NO13) - PONDSMEAD,02/07/2014,443,
Bath & North East Somerset Council,80356217,LM3,Residential Care,P03,Wellbeing,MIMOSA (NO13) - PONDSMEAD,02/07/2014,443,
Bath & North East Somerset Council,80356217,LM3,Residential Care,P03,Wellbeing,MIMOSA (NO13) - PONDSMEAD,02/07/2014,443,
Bath & North East Somerset Council,80356217,LM3,Residential Care,P03,Wellbeing,MIMOSA (NO13) - PONDSMEAD,02/07/2014,443,
Bath & North East Somerset Council,80356217,LM3,Residential Care,P03,Wellbeing,MIMOSA (NO13) - PONDSMEAD,02/07/2014,443,
Bath & North East Somerset Council,80356217,LM3,Residential Care,P03,Wellbeing,MIMOSA (NO13) - PONDSMEAD,02/07/2014,443,
Bath & North East Somerset Council,80356217,LM3,Residential Care,P03,Wellbeing,MIMOSA (NO13) - PONDSMEAD,02/07/2014,443,
Bath & North East Somerset Council,80356217,LM3,Residential Care,P03,Wellbeing,MIMOSA (NO13) - PONDSMEAD,02/07/2014,443,
Bath & North East Somerset Council,80356217,LM3,Residential Care,P03,Wellbeing,MIMOSA (NO13) - PONDSMEAD,02/07/2014,443,
Bath & North East Somerset Council,80356217,LM3,Residential Care,P03,Wellbeing,MIMOSA (NO13) - PONDSMEAD,02/07/2014,443,
Bath & North East Somerset Council,80356217,LM3,Residential Care,P03,Wellbeing,MIMOSA (NO13) - PONDSMEAD,02/07/2014,486,
Bath & North East Somerset Council,80356217,LM3,Residential Care,P03,Wellbeing,MIMOSA (NO13) - PONDSMEAD,02/07/2014,486,
Bath & North East Somerset Council,80356217,LM6,Nursing Care,P03,Wellbeing,MIMOSA (NO13) - PONDSMEAD,02/07/2014,564,
Bath & North East Somerset Council,80356217,LM6,Nursing Care,P03,Wellbeing,MIMOSA (NO13) - PONDSMEAD,02/07/2014,564,
Bath & North East Somerset Council,80356217,LM6,Nursing Care,P03,Wellbeing,MIMOSA (NO13) - PONDSMEAD,02/07/2014,564,
Bath & North East Somerset Council,80356217,LM6,Nursing Care,P03,Wellbeing,MIMOSA (NO13) - PONDSMEAD,02/07/2014,564,
Bath & North East Somerset Council,80356217,LM6,Nursing Care,P03,Wellbeing,MIMOSA (NO13) - PONDSMEAD,02/07/2014,564,
Bath & North East Somerset Council,80356217,LM6,Nursing Care,P03,Wellbeing,MIMOSA (NO13) - PONDSMEAD,02/07/2014,564,
Bath & North East Somerset Council,80356217,LM6,Nursing Care,P03,Wellbeing,MIMOSA (NO13) - PONDSMEAD,02/07/2014,564,
Bath & North East Somerset Council,80356217,LM6,Nursing Care,P03,Wellbeing,MIMOSA (NO13) - PONDSMEAD,02/07/2014,564,
Bath & North East Somerset Council,80356217,LM6,Nursing Care,P03,Wellbeing,MIMOSA (NO13) - PONDSMEAD,02/07/2014,564,
Bath & North East Somerset Council,80356217,LM6,Nursing Care,P03,Wellbeing,MIMOSA (NO13) - PONDSMEAD,02/07/2014,564,
Bath & North East Somerset Council,80356217,LM6,Nursing Care,P03,Wellbeing,MIMOSA (NO13) - PONDSMEAD,02/07/2014,564,
Bath & North East Somerset Council,80356217,LM6,Nursing Care,P03,Wellbeing,MIMOSA (NO13) - PONDSMEAD,02/07/2014,564,
Bath & North East Somerset Council,80356217,LM6,Nursing Care,P03,Wellbeing,MIMOSA (NO13) - PONDSMEAD,02/07/2014,564,
Bath & North East Somerset Council,80356217,LM6,Nursing Care,P03,Wellbeing,MIMOSA (NO13) - PONDSMEAD,02/07/2014,564,
Bath & North East Somerset Council,80356217,LM6,Nursing Care,P03,Wellbeing,MIMOSA (NO13) - PONDSMEAD,02/07/2014,564,
Bath & North East Somerset Council,80356217,LM6,Nursing Care,P03,Wellbeing,MIMOSA (NO13) - PONDSMEAD,02/07/2014,564,
Bath & North East Somerset Council,80356217,LM6,Nursing Care,P03,Wellbeing,MIMOSA (NO13) - PONDSMEAD,02/07/2014,564,
Bath & North East Somerset Council,80356217,LM6,Nursing Care,P03,Wellbeing,MIMOSA (NO13) - PONDSMEAD,02/07/2014,564,
Bath & North East Somerset Council,80356187,LM6,Nursing Care,P03,Wellbeing,MORRIS CARE LTD,02/07/2014,1627.92,
Bath & North East Somerset Council,80356187,LM6,Nursing Care,P03,Wellbeing,MORRIS CARE LTD,02/07/2014,1627.92,
Bath & North East Somerset Council,80356068,LM3,Residential Care,P03,Wellbeing,MOSTYN LODGE,02/07/2014,443,
Bath & North East Somerset Council,80356068,LM3,Residential Care,P03,Wellbeing,MOSTYN LODGE,02/07/2014,443,
Bath & North East Somerset Council,80356068,LM3,Residential Care,P03,Wellbeing,MOSTYN LODGE,02/07/2014,443,
Bath & North East Somerset Council,80356068,LM3,Residential Care,P03,Wellbeing,MOSTYN LODGE,02/07/2014,443,
Bath & North East Somerset Council,80356068,LM3,Residential Care,P03,Wellbeing,MOSTYN LODGE,02/07/2014,475,
Bath & North East Somerset Council,80356068,LM3,Residential Care,P03,Wellbeing,MOSTYN LODGE,02/07/2014,475,
Bath & North East Somerset Council,80356181,LM3,Residential Care,P03,Wellbeing,N BRADBURY HOUSE ORGANISATION,02/07/2014,2182,
Bath & North East Somerset Council,80356181,LM3,Residential Care,P03,Wellbeing,N BRADBURY HOUSE ORGANISATION,02/07/2014,2182,
Bath & North East Somerset Council,80356181,LM3,Residential Care,P03,Wellbeing,N BRADBURY HOUSE ORGANISATION,02/07/2014,4395.7,
Bath & North East Somerset Council,80356181,LM3,Residential Care,P03,Wellbeing,N BRADBURY HOUSE ORGANISATION,02/07/2014,4395.7,
Bath & North East Somerset Council,80356140,LM3,Residential Care,P03,Wellbeing,NEWBRIDGE TOWERS RESIDENTIAL CARE HOME,02/07/2014,443,
Bath & North East Somerset Council,80356140,LM3,Residential Care,P03,Wellbeing,NEWBRIDGE TOWERS RESIDENTIAL CARE HOME,02/07/2014,443,
Bath & North East Somerset Council,80356140,LM3,Residential Care,P03,Wellbeing,NEWBRIDGE TOWERS RESIDENTIAL CARE HOME,02/07/2014,443,
Bath & North East Somerset Council,80356140,LM3,Residential Care,P03,Wellbeing,NEWBRIDGE TOWERS RESIDENTIAL CARE HOME,02/07/2014,443,
Bath & North East Somerset Council,80356140,LM3,Residential Care,P03,Wellbeing,NEWBRIDGE TOWERS RESIDENTIAL CARE HOME,02/07/2014,443,
Bath & North East Somerset Council,80356140,LM3,Residential Care,P03,Wellbeing,NEWBRIDGE TOWERS RESIDENTIAL CARE HOME,02/07/2014,443,
Bath & North East Somerset Council,80356140,LM3,Residential Care,P03,Wellbeing,NEWBRIDGE TOWERS RESIDENTIAL CARE HOME,02/07/2014,443,
Bath & North East Somerset Council,80356140,LM3,Residential Care,P03,Wellbeing,NEWBRIDGE TOWERS RESIDENTIAL CARE HOME,02/07/2014,443,
Bath & North East Somerset Council,80356140,LM3,Residential Care,P03,Wellbeing,NEWBRIDGE TOWERS RESIDENTIAL CARE HOME,02/07/2014,443,
Bath & North East Somerset Council,80356140,LM3,Residential Care,P03,Wellbeing,NEWBRIDGE TOWERS RESIDENTIAL CARE HOME,02/07/2014,443,
Bath & North East Somerset Council,80356140,LM3,Residential Care,P03,Wellbeing,NEWBRIDGE TOWERS RESIDENTIAL CARE HOME,02/07/2014,443,
Bath & North East Somerset Council,80356140,LM3,Residential Care,P03,Wellbeing,NEWBRIDGE TOWERS RESIDENTIAL CARE HOME,02/07/2014,443,
Bath & North East Somerset Council,80356140,LM3,Residential Care,P03,Wellbeing,NEWBRIDGE TOWERS RESIDENTIAL CARE HOME,02/07/2014,443,
Bath & North East Somerset Council,80356140,LM3,Residential Care,P03,Wellbeing,NEWBRIDGE TOWERS RESIDENTIAL CARE HOME,02/07/2014,443,
Bath & North East Somerset Council,80356140,LM3,Residential Care,P03,Wellbeing,NEWBRIDGE TOWERS RESIDENTIAL CARE HOME,02/07/2014,450,
Bath & North East Somerset Council,80356140,LM3,Residential Care,P03,Wellbeing,NEWBRIDGE TOWERS RESIDENTIAL CARE HOME,02/07/2014,450,
Bath & North East Somerset Council,80356140,LM3,Residential Care,P03,Wellbeing,NEWBRIDGE TOWERS RESIDENTIAL CARE HOME,02/07/2014,486,
Bath & North East Somerset Council,80356140,LM3,Residential Care,P03,Wellbeing,NEWBRIDGE TOWERS RESIDENTIAL CARE HOME,02/07/2014,486,
Bath & North East Somerset Council,80356140,LM3,Residential Care,P03,Wellbeing,NEWBRIDGE TOWERS RESIDENTIAL CARE HOME,02/07/2014,486,
Bath & North East Somerset Council,80356140,LM3,Residential Care,P03,Wellbeing,NEWBRIDGE TOWERS RESIDENTIAL CARE HOME,02/07/2014,486,
Bath & North East Somerset Council,80356140,LM3,Residential Care,P03,Wellbeing,NEWBRIDGE TOWERS RESIDENTIAL CARE HOME,02/07/2014,500,
Bath & North East Somerset Council,80356140,LM3,Residential Care,P03,Wellbeing,NEWBRIDGE TOWERS RESIDENTIAL CARE HOME,02/07/2014,500,
Bath & North East Somerset Council,80356160,YF2,Fees & Charges,P03,Wellbeing,OAK BANK RESIDENTIAL HOME LTD,02/07/2014,87.35,
Bath & North East Somerset Council,80356160,YF2,Fees & Charges,P03,Wellbeing,OAK BANK RESIDENTIAL HOME LTD,02/07/2014,87.35,
Bath & North East Somerset Council,80356160,YF2,Fees & Charges,P03,Wellbeing,OAK BANK RESIDENTIAL HOME LTD,02/07/2014,87.35,
Bath & North East Somerset Council,80356160,YF2,Fees & Charges,P03,Wellbeing,OAK BANK RESIDENTIAL HOME LTD,02/07/2014,87.35,
Bath & North East Somerset Council,80356160,YF2,Fees & Charges,P03,Wellbeing,OAK BANK RESIDENTIAL HOME LTD,02/07/2014,87.35,
Bath & North East Somerset Council,80356160,YF2,Fees & Charges,P03,Wellbeing,OAK BANK RESIDENTIAL HOME LTD,02/07/2014,87.35,
Bath & North East Somerset Council,80356160,YF2,Fees & Charges,P03,Wellbeing,OAK BANK RESIDENTIAL HOME LTD,02/07/2014,87.35,
